{"text_format":"3","workbook":"xlsx","n_sheets":12,"sheets":["SAU","VAS","KOV","BAL","GEG","BIR","LIE","RGP","RGS","SPL","LAP","GRD"],"not_rendered":{"defined_names":40},"read":"whole","date_system":"1900"}

{"sheet":"SAU","index":0,"n_rows":20,"n_cols":9,"rows_kept":20,"merged":[[16,2,17,2],[16,3,17,3],[17,4,19,8]]}
[null,"SAU","SK",{"$f":"UPPER(TEXT(D3,\"aaa\"))","v":"PR"},"AN","TR","KT","PN","ŠT"]
[null,{"$f":"YEAR(TODAY())","v":2018}]
[null,null,{"$f":"DienosIrSavaitės+DATE(KalendoriniaiMetai,1,1)-WEEKDAY(DATE(KalendoriniaiMetai,1,1),(SavaitėsPradžia=\"PR\")+1)+1","v":"2017-12-31"},"2018-01-01","2018-01-02","2018-01-03","2018-01-04","2018-01-05","2018-01-06"]
[null,null,{"$f":"IF(DAY(KalendoriausDiena)=1,CONCATENATE(\"Savaitė \",WEEKNUM(KalendoriausDiena),\"/Diena \",KalendoriausDiena-DATE(YEAR(KalendoriausDiena),1,0)),CONCATENATE(\"Diena \",KalendoriausDiena-DATE(YEAR(KalendoriausDiena),1,0)))","v":"Diena 365"},{"$f":"IF(DAY(KalendoriausDiena)=1,CONCATENATE(\"Savaitė \",WEEKNUM(KalendoriausDiena),\"/Diena \",KalendoriausDiena-DATE(YEAR(KalendoriausDiena),1,0)),CONCATENATE(\"Diena \",KalendoriausDiena-DATE(YEAR(KalendoriausDiena),1,0)))","v":"Savaitė 1/Diena 1"},{"$f":"IF(DAY(KalendoriausDiena)=1,CONCATENATE(\"Savaitė \",WEEKNUM(KalendoriausDiena),\"/Diena \",KalendoriausDiena-DATE(YEAR(KalendoriausDiena),1,0)),CONCATENATE(\"Diena \",KalendoriausDiena-DATE(YEAR(KalendoriausDiena),1,0)))","v":"Diena 2"},{"$f":"IF(DAY(KalendoriausDiena)=1,CONCATENATE(\"Savaitė \",WEEKNUM(KalendoriausDiena),\"/Diena \",KalendoriausDiena-DATE(YEAR(KalendoriausDiena),1,0)),CONCATENATE(\"Diena \",KalendoriausDiena-DATE(YEAR(KalendoriausDiena),1,0)))","v":"Diena 3"},{"$f":"IF(DAY(KalendoriausDiena)=1,CONCATENATE(\"Savaitė \",WEEKNUM(KalendoriausDiena),\"/Diena \",KalendoriausDiena-DATE(YEAR(KalendoriausDiena),1,0)),CONCATENATE(\"Diena \",KalendoriausDiena-DATE(YEAR(KalendoriausDiena),1,0)))","v":"Diena 4"},{"$f":"IF(DAY(KalendoriausDiena)=1,CONCATENATE(\"Savaitė \",WEEKNUM(KalendoriausDiena),\"/Diena \",KalendoriausDiena-DATE(YEAR(KalendoriausDiena),1,0)),CONCATENATE(\"Diena \",KalendoriausDiena-DATE(YEAR(KalendoriausDiena),1,0)))","v":"Diena 5"},{"$f":"IF(DAY(KalendoriausDiena)=1,CONCATENATE(\"Savaitė \",WEEKNUM(KalendoriausDiena),\"/Diena \",KalendoriausDiena-DATE(YEAR(KalendoriausDiena),1,0)),CONCATENATE(\"Diena \",KalendoriausDiena-DATE(YEAR(KalendoriausDiena),1,0)))","v":"Diena 6"}]
[]
[null,null,{"$f":"DienosIrSavaitės+DATE(KalendoriniaiMetai,1,1)-WEEKDAY(DATE(KalendoriniaiMetai,1,1),(SavaitėsPradžia=\"PR\")+1)+8","v":"2018-01-07"},"2018-01-08","2018-01-09","2018-01-10","2018-01-11","2018-01-12","2018-01-13"]
[null,null,{"$f":"IF(WEEKDAY(KalendoriausDiena)=SavaitėsPradžiosReikšmė,CONCATENATE(\"Savaitė \",WEEKNUM(KalendoriausDiena),\"/Diena \",KalendoriausDiena-DATE(YEAR(KalendoriausDiena),1,0)),CONCATENATE(\"Diena \",KalendoriausDiena-DATE(YEAR(KalendoriausDiena),1,0)))","v":"Savaitė 2/Diena 7"},{"$f":"IF(WEEKDAY(KalendoriausDiena)=SavaitėsPradžiosReikšmė,CONCATENATE(\"Savaitė \",WEEKNUM(KalendoriausDiena),\"/Diena \",KalendoriausDiena-DATE(YEAR(KalendoriausDiena),1,0)),CONCATENATE(\"Diena \",KalendoriausDiena-DATE(YEAR(KalendoriausDiena),1,0)))","v":"Diena 8"},{"$f":"IF(WEEKDAY(KalendoriausDiena)=SavaitėsPradžiosReikšmė,CONCATENATE(\"Savaitė \",WEEKNUM(KalendoriausDiena),\"/Diena \",KalendoriausDiena-DATE(YEAR(KalendoriausDiena),1,0)),CONCATENATE(\"Diena \",KalendoriausDiena-DATE(YEAR(KalendoriausDiena),1,0)))","v":"Diena 9"},{"$f":"IF(WEEKDAY(KalendoriausDiena)=SavaitėsPradžiosReikšmė,CONCATENATE(\"Savaitė \",WEEKNUM(KalendoriausDiena),\"/Diena \",KalendoriausDiena-DATE(YEAR(KalendoriausDiena),1,0)),CONCATENATE(\"Diena \",KalendoriausDiena-DATE(YEAR(KalendoriausDiena),1,0)))","v":"Diena 10"},{"$f":"IF(WEEKDAY(KalendoriausDiena)=SavaitėsPradžiosReikšmė,CONCATENATE(\"Savaitė \",WEEKNUM(KalendoriausDiena),\"/Diena \",KalendoriausDiena-DATE(YEAR(KalendoriausDiena),1,0)),CONCATENATE(\"Diena \",KalendoriausDiena-DATE(YEAR(KalendoriausDiena),1,0)))","v":"Diena 11"},{"$f":"IF(WEEKDAY(KalendoriausDiena)=SavaitėsPradžiosReikšmė,CONCATENATE(\"Savaitė \",WEEKNUM(KalendoriausDiena),\"/Diena \",KalendoriausDiena-DATE(YEAR(KalendoriausDiena),1,0)),CONCATENATE(\"Diena \",KalendoriausDiena-DATE(YEAR(KalendoriausDiena),1,0)))","v":"Diena 12"},{"$f":"IF(WEEKDAY(KalendoriausDiena)=SavaitėsPradžiosReikšmė,CONCATENATE(\"Savaitė \",WEEKNUM(KalendoriausDiena),\"/Diena \",KalendoriausDiena-DATE(YEAR(KalendoriausDiena),1,0)),CONCATENATE(\"Diena \",KalendoriausDiena-DATE(YEAR(KalendoriausDiena),1,0)))","v":"Diena 13"}]
[]
[null,null,{"$f":"DienosIrSavaitės+DATE(KalendoriniaiMetai,1,1)-WEEKDAY(DATE(KalendoriniaiMetai,1,1),(SavaitėsPradžia=\"PR\")+1)+15","v":"2018-01-14"},"2018-01-15","2018-01-16","2018-01-17","2018-01-18","2018-01-19","2018-01-20"]
[null,null,{"$f":"IF(WEEKDAY(KalendoriausDiena)=SavaitėsPradžiosReikšmė,CONCATENATE(\"Savaitė \",WEEKNUM(KalendoriausDiena),\"/Diena \",KalendoriausDiena-DATE(YEAR(KalendoriausDiena),1,0)),CONCATENATE(\"Diena \",KalendoriausDiena-DATE(YEAR(KalendoriausDiena),1,0)))","v":"Savaitė 3/Diena 14"},{"$f":"IF(WEEKDAY(KalendoriausDiena)=SavaitėsPradžiosReikšmė,CONCATENATE(\"Savaitė \",WEEKNUM(KalendoriausDiena),\"/Diena \",KalendoriausDiena-DATE(YEAR(KalendoriausDiena),1,0)),CONCATENATE(\"Diena \",KalendoriausDiena-DATE(YEAR(KalendoriausDiena),1,0)))","v":"Diena 15"},{"$f":"IF(WEEKDAY(KalendoriausDiena)=SavaitėsPradžiosReikšmė,CONCATENATE(\"Savaitė \",WEEKNUM(KalendoriausDiena),\"/Diena \",KalendoriausDiena-DATE(YEAR(KalendoriausDiena),1,0)),CONCATENATE(\"Diena \",KalendoriausDiena-DATE(YEAR(KalendoriausDiena),1,0)))","v":"Diena 16"},{"$f":"IF(WEEKDAY(KalendoriausDiena)=SavaitėsPradžiosReikšmė,CONCATENATE(\"Savaitė \",WEEKNUM(KalendoriausDiena),\"/Diena \",KalendoriausDiena-DATE(YEAR(KalendoriausDiena),1,0)),CONCATENATE(\"Diena \",KalendoriausDiena-DATE(YEAR(KalendoriausDiena),1,0)))","v":"Diena 17"},{"$f":"IF(WEEKDAY(KalendoriausDiena)=SavaitėsPradžiosReikšmė,CONCATENATE(\"Savaitė \",WEEKNUM(KalendoriausDiena),\"/Diena \",KalendoriausDiena-DATE(YEAR(KalendoriausDiena),1,0)),CONCATENATE(\"Diena \",KalendoriausDiena-DATE(YEAR(KalendoriausDiena),1,0)))","v":"Diena 18"},{"$f":"IF(WEEKDAY(KalendoriausDiena)=SavaitėsPradžiosReikšmė,CONCATENATE(\"Savaitė \",WEEKNUM(KalendoriausDiena),\"/Diena \",KalendoriausDiena-DATE(YEAR(KalendoriausDiena),1,0)),CONCATENATE(\"Diena \",KalendoriausDiena-DATE(YEAR(KalendoriausDiena),1,0)))","v":"Diena 19"},{"$f":"IF(WEEKDAY(KalendoriausDiena)=SavaitėsPradžiosReikšmė,CONCATENATE(\"Savaitė \",WEEKNUM(KalendoriausDiena),\"/Diena \",KalendoriausDiena-DATE(YEAR(KalendoriausDiena),1,0)),CONCATENATE(\"Diena \",KalendoriausDiena-DATE(YEAR(KalendoriausDiena),1,0)))","v":"Diena 20"}]
[]
[null,null,{"$f":"DienosIrSavaitės+DATE(KalendoriniaiMetai,1,1)-WEEKDAY(DATE(KalendoriniaiMetai,1,1),(SavaitėsPradžia=\"PR\")+1)+22","v":"2018-01-21"},"2018-01-22","2018-01-23","2018-01-24","2018-01-25","2018-01-26","2018-01-27"]
[null,null,{"$f":"IF(WEEKDAY(KalendoriausDiena)=SavaitėsPradžiosReikšmė,CONCATENATE(\"Savaitė \",WEEKNUM(KalendoriausDiena),\"/Diena \",KalendoriausDiena-DATE(YEAR(KalendoriausDiena),1,0)),CONCATENATE(\"Diena \",KalendoriausDiena-DATE(YEAR(KalendoriausDiena),1,0)))","v":"Savaitė 4/Diena 21"},{"$f":"IF(WEEKDAY(KalendoriausDiena)=SavaitėsPradžiosReikšmė,CONCATENATE(\"Savaitė \",WEEKNUM(KalendoriausDiena),\"/Diena \",KalendoriausDiena-DATE(YEAR(KalendoriausDiena),1,0)),CONCATENATE(\"Diena \",KalendoriausDiena-DATE(YEAR(KalendoriausDiena),1,0)))","v":"Diena 22"},{"$f":"IF(WEEKDAY(KalendoriausDiena)=SavaitėsPradžiosReikšmė,CONCATENATE(\"Savaitė \",WEEKNUM(KalendoriausDiena),\"/Diena \",KalendoriausDiena-DATE(YEAR(KalendoriausDiena),1,0)),CONCATENATE(\"Diena \",KalendoriausDiena-DATE(YEAR(KalendoriausDiena),1,0)))","v":"Diena 23"},{"$f":"IF(WEEKDAY(KalendoriausDiena)=SavaitėsPradžiosReikšmė,CONCATENATE(\"Savaitė \",WEEKNUM(KalendoriausDiena),\"/Diena \",KalendoriausDiena-DATE(YEAR(KalendoriausDiena),1,0)),CONCATENATE(\"Diena \",KalendoriausDiena-DATE(YEAR(KalendoriausDiena),1,0)))","v":"Diena 24"},{"$f":"IF(WEEKDAY(KalendoriausDiena)=SavaitėsPradžiosReikšmė,CONCATENATE(\"Savaitė \",WEEKNUM(KalendoriausDiena),\"/Diena \",KalendoriausDiena-DATE(YEAR(KalendoriausDiena),1,0)),CONCATENATE(\"Diena \",KalendoriausDiena-DATE(YEAR(KalendoriausDiena),1,0)))","v":"Diena 25"},{"$f":"IF(WEEKDAY(KalendoriausDiena)=SavaitėsPradžiosReikšmė,CONCATENATE(\"Savaitė \",WEEKNUM(KalendoriausDiena),\"/Diena \",KalendoriausDiena-DATE(YEAR(KalendoriausDiena),1,0)),CONCATENATE(\"Diena \",KalendoriausDiena-DATE(YEAR(KalendoriausDiena),1,0)))","v":"Diena 26"},{"$f":"IF(WEEKDAY(KalendoriausDiena)=SavaitėsPradžiosReikšmė,CONCATENATE(\"Savaitė \",WEEKNUM(KalendoriausDiena),\"/Diena \",KalendoriausDiena-DATE(YEAR(KalendoriausDiena),1,0)),CONCATENATE(\"Diena \",KalendoriausDiena-DATE(YEAR(KalendoriausDiena),1,0)))","v":"Diena 27"}]
[]
[null,null,{"$f":"DienosIrSavaitės+DATE(KalendoriniaiMetai,1,1)-WEEKDAY(DATE(KalendoriniaiMetai,1,1),(SavaitėsPradžia=\"PR\")+1)+29","v":"2018-01-28"},"2018-01-29","2018-01-30","2018-01-31","2018-02-01","2018-02-02","2018-02-03"]
[null,null,{"$f":"IF(WEEKDAY(KalendoriausDiena)=SavaitėsPradžiosReikšmė,CONCATENATE(\"Savaitė \",WEEKNUM(KalendoriausDiena),\"/Diena \",KalendoriausDiena-DATE(YEAR(KalendoriausDiena),1,0)),CONCATENATE(\"Diena \",KalendoriausDiena-DATE(YEAR(KalendoriausDiena),1,0)))","v":"Savaitė 5/Diena 28"},{"$f":"IF(WEEKDAY(KalendoriausDiena)=SavaitėsPradžiosReikšmė,CONCATENATE(\"Savaitė \",WEEKNUM(KalendoriausDiena),\"/Diena \",KalendoriausDiena-DATE(YEAR(KalendoriausDiena),1,0)),CONCATENATE(\"Diena \",KalendoriausDiena-DATE(YEAR(KalendoriausDiena),1,0)))","v":"Diena 29"},{"$f":"IF(WEEKDAY(KalendoriausDiena)=SavaitėsPradžiosReikšmė,CONCATENATE(\"Savaitė \",WEEKNUM(KalendoriausDiena),\"/Diena \",KalendoriausDiena-DATE(YEAR(KalendoriausDiena),1,0)),CONCATENATE(\"Diena \",KalendoriausDiena-DATE(YEAR(KalendoriausDiena),1,0)))","v":"Diena 30"},{"$f":"IF(WEEKDAY(KalendoriausDiena)=SavaitėsPradžiosReikšmė,CONCATENATE(\"Savaitė \",WEEKNUM(KalendoriausDiena),\"/Diena \",KalendoriausDiena-DATE(YEAR(KalendoriausDiena),1,0)),CONCATENATE(\"Diena \",KalendoriausDiena-DATE(YEAR(KalendoriausDiena),1,0)))","v":"Diena 31"},{"$f":"IF(WEEKDAY(KalendoriausDiena)=SavaitėsPradžiosReikšmė,CONCATENATE(\"Savaitė \",WEEKNUM(KalendoriausDiena),\"/Diena \",KalendoriausDiena-DATE(YEAR(KalendoriausDiena),1,0)),CONCATENATE(\"Diena \",KalendoriausDiena-DATE(YEAR(KalendoriausDiena),1,0)))","v":"Diena 32"},{"$f":"IF(WEEKDAY(KalendoriausDiena)=SavaitėsPradžiosReikšmė,CONCATENATE(\"Savaitė \",WEEKNUM(KalendoriausDiena),\"/Diena \",KalendoriausDiena-DATE(YEAR(KalendoriausDiena),1,0)),CONCATENATE(\"Diena \",KalendoriausDiena-DATE(YEAR(KalendoriausDiena),1,0)))","v":"Diena 33"},{"$f":"IF(WEEKDAY(KalendoriausDiena)=SavaitėsPradžiosReikšmė,CONCATENATE(\"Savaitė \",WEEKNUM(KalendoriausDiena),\"/Diena \",KalendoriausDiena-DATE(YEAR(KalendoriausDiena),1,0)),CONCATENATE(\"Diena \",KalendoriausDiena-DATE(YEAR(KalendoriausDiena),1,0)))","v":"Diena 34"}]
[{"$nulls":4},"PASTABOS"]
[]
[null,null,{"$f":"DienosIrSavaitės+DATE(KalendoriniaiMetai,1,1)-WEEKDAY(DATE(KalendoriniaiMetai,1,1),(SavaitėsPradžia=\"PR\")+1)+36","v":"2018-02-04"},"2018-02-05"]
[null,null,{"$f":"IF(WEEKDAY(KalendoriausDiena)=SavaitėsPradžiosReikšmė,CONCATENATE(\"Savaitė \",WEEKNUM(KalendoriausDiena),\"/Diena \",KalendoriausDiena-DATE(YEAR(KalendoriausDiena),1,0)),CONCATENATE(\"Diena \",KalendoriausDiena-DATE(YEAR(KalendoriausDiena),1,0)))","v":"Savaitė 6/Diena 35"},{"$f":"IF(WEEKDAY(KalendoriausDiena)=SavaitėsPradžiosReikšmė,CONCATENATE(\"Savaitė \",WEEKNUM(KalendoriausDiena),\"/Diena \",KalendoriausDiena-DATE(YEAR(KalendoriausDiena),1,0)),CONCATENATE(\"Diena \",KalendoriausDiena-DATE(YEAR(KalendoriausDiena),1,0)))","v":"Diena 36"}]

{"sheet":"VAS","index":1,"n_rows":20,"n_cols":9,"rows_kept":20,"merged":[[16,2,17,2],[17,4,19,8]]}
[null,"VAS",{"$f":"UPPER(TEXT(SavaitėsPradžia,\"ddd\"))","v":"SK"},{"$f":"UPPER(TEXT(D3,\"aaa\"))","v":"PR"},"AN","TR","KT","PN","ŠT"]
[null,{"$f":"KalendoriniaiMetai","v":2018}]
[null,null,{"$f":"DienosIrSavaitės+DATE(KalendoriniaiMetai,2,1)-WEEKDAY(DATE(KalendoriniaiMetai,2,1),(SavaitėsPradžia=\"PR\")+1)+1","v":"2018-01-28"},"2018-01-29","2018-01-30","2018-01-31","2018-02-01","2018-02-02","2018-02-03"]
[null,null,{"$f":"IF(DAY(KalendoriausDiena)=1,CONCATENATE(\"Savaitė \",WEEKNUM(KalendoriausDiena),\"/Diena \",KalendoriausDiena-DATE(YEAR(KalendoriausDiena),1,0)),CONCATENATE(\"Diena \",KalendoriausDiena-DATE(YEAR(KalendoriausDiena),1,0)))","v":"Diena 28"},{"$f":"IF(DAY(KalendoriausDiena)=1,CONCATENATE(\"Savaitė \",WEEKNUM(KalendoriausDiena),\"/Diena \",KalendoriausDiena-DATE(YEAR(KalendoriausDiena),1,0)),CONCATENATE(\"Diena \",KalendoriausDiena-DATE(YEAR(KalendoriausDiena),1,0)))","v":"Diena 29"},{"$f":"IF(DAY(KalendoriausDiena)=1,CONCATENATE(\"Savaitė \",WEEKNUM(KalendoriausDiena),\"/Diena \",KalendoriausDiena-DATE(YEAR(KalendoriausDiena),1,0)),CONCATENATE(\"Diena \",KalendoriausDiena-DATE(YEAR(KalendoriausDiena),1,0)))","v":"Diena 30"},{"$f":"IF(DAY(KalendoriausDiena)=1,CONCATENATE(\"Savaitė \",WEEKNUM(KalendoriausDiena),\"/Diena \",KalendoriausDiena-DATE(YEAR(KalendoriausDiena),1,0)),CONCATENATE(\"Diena \",KalendoriausDiena-DATE(YEAR(KalendoriausDiena),1,0)))","v":"Diena 31"},{"$f":"IF(DAY(KalendoriausDiena)=1,CONCATENATE(\"Savaitė \",WEEKNUM(KalendoriausDiena),\"/Diena \",KalendoriausDiena-DATE(YEAR(KalendoriausDiena),1,0)),CONCATENATE(\"Diena \",KalendoriausDiena-DATE(YEAR(KalendoriausDiena),1,0)))","v":"Savaitė 5/Diena 32"},{"$f":"IF(DAY(KalendoriausDiena)=1,CONCATENATE(\"Savaitė \",WEEKNUM(KalendoriausDiena),\"/Diena \",KalendoriausDiena-DATE(YEAR(KalendoriausDiena),1,0)),CONCATENATE(\"Diena \",KalendoriausDiena-DATE(YEAR(KalendoriausDiena),1,0)))","v":"Diena 33"},{"$f":"IF(DAY(KalendoriausDiena)=1,CONCATENATE(\"Savaitė \",WEEKNUM(KalendoriausDiena),\"/Diena \",KalendoriausDiena-DATE(YEAR(KalendoriausDiena),1,0)),CONCATENATE(\"Diena \",KalendoriausDiena-DATE(YEAR(KalendoriausDiena),1,0)))","v":"Diena 34"}]
[]
[null,null,{"$f":"DienosIrSavaitės+DATE(KalendoriniaiMetai,2,1)-WEEKDAY(DATE(KalendoriniaiMetai,2,1),(SavaitėsPradžia=\"PR\")+1)+8","v":"2018-02-04"},"2018-02-05","2018-02-06","2018-02-07","2018-02-08","2018-02-09","2018-02-10"]
[null,null,{"$f":"IF(WEEKDAY(KalendoriausDiena)=SavaitėsPradžiosReikšmė,CONCATENATE(\"Savaitė \",WEEKNUM(KalendoriausDiena),\"/Diena \",KalendoriausDiena-DATE(YEAR(KalendoriausDiena),1,0)),CONCATENATE(\"Diena \",KalendoriausDiena-DATE(YEAR(KalendoriausDiena),1,0)))","v":"Savaitė 6/Diena 35"},{"$f":"IF(WEEKDAY(KalendoriausDiena)=SavaitėsPradžiosReikšmė,CONCATENATE(\"Savaitė \",WEEKNUM(KalendoriausDiena),\"/Diena \",KalendoriausDiena-DATE(YEAR(KalendoriausDiena),1,0)),CONCATENATE(\"Diena \",KalendoriausDiena-DATE(YEAR(KalendoriausDiena),1,0)))","v":"Diena 36"},{"$f":"IF(WEEKDAY(KalendoriausDiena)=SavaitėsPradžiosReikšmė,CONCATENATE(\"Savaitė \",WEEKNUM(KalendoriausDiena),\"/Diena \",KalendoriausDiena-DATE(YEAR(KalendoriausDiena),1,0)),CONCATENATE(\"Diena \",KalendoriausDiena-DATE(YEAR(KalendoriausDiena),1,0)))","v":"Diena 37"},{"$f":"IF(WEEKDAY(KalendoriausDiena)=SavaitėsPradžiosReikšmė,CONCATENATE(\"Savaitė \",WEEKNUM(KalendoriausDiena),\"/Diena \",KalendoriausDiena-DATE(YEAR(KalendoriausDiena),1,0)),CONCATENATE(\"Diena \",KalendoriausDiena-DATE(YEAR(KalendoriausDiena),1,0)))","v":"Diena 38"},{"$f":"IF(WEEKDAY(KalendoriausDiena)=SavaitėsPradžiosReikšmė,CONCATENATE(\"Savaitė \",WEEKNUM(KalendoriausDiena),\"/Diena \",KalendoriausDiena-DATE(YEAR(KalendoriausDiena),1,0)),CONCATENATE(\"Diena \",KalendoriausDiena-DATE(YEAR(KalendoriausDiena),1,0)))","v":"Diena 39"},{"$f":"IF(WEEKDAY(KalendoriausDiena)=SavaitėsPradžiosReikšmė,CONCATENATE(\"Savaitė \",WEEKNUM(KalendoriausDiena),\"/Diena \",KalendoriausDiena-DATE(YEAR(KalendoriausDiena),1,0)),CONCATENATE(\"Diena \",KalendoriausDiena-DATE(YEAR(KalendoriausDiena),1,0)))","v":"Diena 40"},{"$f":"IF(WEEKDAY(KalendoriausDiena)=SavaitėsPradžiosReikšmė,CONCATENATE(\"Savaitė \",WEEKNUM(KalendoriausDiena),\"/Diena \",KalendoriausDiena-DATE(YEAR(KalendoriausDiena),1,0)),CONCATENATE(\"Diena \",KalendoriausDiena-DATE(YEAR(KalendoriausDiena),1,0)))","v":"Diena 41"}]
[]
[null,null,{"$f":"DienosIrSavaitės+DATE(KalendoriniaiMetai,2,1)-WEEKDAY(DATE(KalendoriniaiMetai,2,1),(SavaitėsPradžia=\"PR\")+1)+15","v":"2018-02-11"},"2018-02-12","2018-02-13","2018-02-14","2018-02-15","2018-02-16","2018-02-17"]
[null,null,{"$f":"IF(WEEKDAY(KalendoriausDiena)=SavaitėsPradžiosReikšmė,CONCATENATE(\"Savaitė \",WEEKNUM(KalendoriausDiena),\"/Diena \",KalendoriausDiena-DATE(YEAR(KalendoriausDiena),1,0)),CONCATENATE(\"Diena \",KalendoriausDiena-DATE(YEAR(KalendoriausDiena),1,0)))","v":"Savaitė 7/Diena 42"},{"$f":"IF(WEEKDAY(KalendoriausDiena)=SavaitėsPradžiosReikšmė,CONCATENATE(\"Savaitė \",WEEKNUM(KalendoriausDiena),\"/Diena \",KalendoriausDiena-DATE(YEAR(KalendoriausDiena),1,0)),CONCATENATE(\"Diena \",KalendoriausDiena-DATE(YEAR(KalendoriausDiena),1,0)))","v":"Diena 43"},{"$f":"IF(WEEKDAY(KalendoriausDiena)=SavaitėsPradžiosReikšmė,CONCATENATE(\"Savaitė \",WEEKNUM(KalendoriausDiena),\"/Diena \",KalendoriausDiena-DATE(YEAR(KalendoriausDiena),1,0)),CONCATENATE(\"Diena \",KalendoriausDiena-DATE(YEAR(KalendoriausDiena),1,0)))","v":"Diena 44"},{"$f":"IF(WEEKDAY(KalendoriausDiena)=SavaitėsPradžiosReikšmė,CONCATENATE(\"Savaitė \",WEEKNUM(KalendoriausDiena),\"/Diena \",KalendoriausDiena-DATE(YEAR(KalendoriausDiena),1,0)),CONCATENATE(\"Diena \",KalendoriausDiena-DATE(YEAR(KalendoriausDiena),1,0)))","v":"Diena 45"},{"$f":"IF(WEEKDAY(KalendoriausDiena)=SavaitėsPradžiosReikšmė,CONCATENATE(\"Savaitė \",WEEKNUM(KalendoriausDiena),\"/Diena \",KalendoriausDiena-DATE(YEAR(KalendoriausDiena),1,0)),CONCATENATE(\"Diena \",KalendoriausDiena-DATE(YEAR(KalendoriausDiena),1,0)))","v":"Diena 46"},{"$f":"IF(WEEKDAY(KalendoriausDiena)=SavaitėsPradžiosReikšmė,CONCATENATE(\"Savaitė \",WEEKNUM(KalendoriausDiena),\"/Diena \",KalendoriausDiena-DATE(YEAR(KalendoriausDiena),1,0)),CONCATENATE(\"Diena \",KalendoriausDiena-DATE(YEAR(KalendoriausDiena),1,0)))","v":"Diena 47"},{"$f":"IF(WEEKDAY(KalendoriausDiena)=SavaitėsPradžiosReikšmė,CONCATENATE(\"Savaitė \",WEEKNUM(KalendoriausDiena),\"/Diena \",KalendoriausDiena-DATE(YEAR(KalendoriausDiena),1,0)),CONCATENATE(\"Diena \",KalendoriausDiena-DATE(YEAR(KalendoriausDiena),1,0)))","v":"Diena 48"}]
[]
[null,null,{"$f":"DienosIrSavaitės+DATE(KalendoriniaiMetai,2,1)-WEEKDAY(DATE(KalendoriniaiMetai,2,1),(SavaitėsPradžia=\"PR\")+1)+22","v":"2018-02-18"},"2018-02-19","2018-02-20","2018-02-21","2018-02-22","2018-02-23","2018-02-24"]
[null,null,{"$f":"IF(WEEKDAY(KalendoriausDiena)=SavaitėsPradžiosReikšmė,CONCATENATE(\"Savaitė \",WEEKNUM(KalendoriausDiena),\"/Diena \",KalendoriausDiena-DATE(YEAR(KalendoriausDiena),1,0)),CONCATENATE(\"Diena \",KalendoriausDiena-DATE(YEAR(KalendoriausDiena),1,0)))","v":"Savaitė 8/Diena 49"},{"$f":"IF(WEEKDAY(KalendoriausDiena)=SavaitėsPradžiosReikšmė,CONCATENATE(\"Savaitė \",WEEKNUM(KalendoriausDiena),\"/Diena \",KalendoriausDiena-DATE(YEAR(KalendoriausDiena),1,0)),CONCATENATE(\"Diena \",KalendoriausDiena-DATE(YEAR(KalendoriausDiena),1,0)))","v":"Diena 50"},{"$f":"IF(WEEKDAY(KalendoriausDiena)=SavaitėsPradžiosReikšmė,CONCATENATE(\"Savaitė \",WEEKNUM(KalendoriausDiena),\"/Diena \",KalendoriausDiena-DATE(YEAR(KalendoriausDiena),1,0)),CONCATENATE(\"Diena \",KalendoriausDiena-DATE(YEAR(KalendoriausDiena),1,0)))","v":"Diena 51"},{"$f":"IF(WEEKDAY(KalendoriausDiena)=SavaitėsPradžiosReikšmė,CONCATENATE(\"Savaitė \",WEEKNUM(KalendoriausDiena),\"/Diena \",KalendoriausDiena-DATE(YEAR(KalendoriausDiena),1,0)),CONCATENATE(\"Diena \",KalendoriausDiena-DATE(YEAR(KalendoriausDiena),1,0)))","v":"Diena 52"},{"$f":"IF(WEEKDAY(KalendoriausDiena)=SavaitėsPradžiosReikšmė,CONCATENATE(\"Savaitė \",WEEKNUM(KalendoriausDiena),\"/Diena \",KalendoriausDiena-DATE(YEAR(KalendoriausDiena),1,0)),CONCATENATE(\"Diena \",KalendoriausDiena-DATE(YEAR(KalendoriausDiena),1,0)))","v":"Diena 53"},{"$f":"IF(WEEKDAY(KalendoriausDiena)=SavaitėsPradžiosReikšmė,CONCATENATE(\"Savaitė \",WEEKNUM(KalendoriausDiena),\"/Diena \",KalendoriausDiena-DATE(YEAR(KalendoriausDiena),1,0)),CONCATENATE(\"Diena \",KalendoriausDiena-DATE(YEAR(KalendoriausDiena),1,0)))","v":"Diena 54"},{"$f":"IF(WEEKDAY(KalendoriausDiena)=SavaitėsPradžiosReikšmė,CONCATENATE(\"Savaitė \",WEEKNUM(KalendoriausDiena),\"/Diena \",KalendoriausDiena-DATE(YEAR(KalendoriausDiena),1,0)),CONCATENATE(\"Diena \",KalendoriausDiena-DATE(YEAR(KalendoriausDiena),1,0)))","v":"Diena 55"}]
[]
[null,null,{"$f":"DienosIrSavaitės+DATE(KalendoriniaiMetai,2,1)-WEEKDAY(DATE(KalendoriniaiMetai,2,1),(SavaitėsPradžia=\"PR\")+1)+29","v":"2018-02-25"},"2018-02-26","2018-02-27","2018-02-28","2018-03-01","2018-03-02","2018-03-03"]
[null,null,{"$f":"IF(WEEKDAY(KalendoriausDiena)=SavaitėsPradžiosReikšmė,CONCATENATE(\"Savaitė \",WEEKNUM(KalendoriausDiena),\"/Diena \",KalendoriausDiena-DATE(YEAR(KalendoriausDiena),1,0)),CONCATENATE(\"Diena \",KalendoriausDiena-DATE(YEAR(KalendoriausDiena),1,0)))","v":"Savaitė 9/Diena 56"},{"$f":"IF(WEEKDAY(KalendoriausDiena)=SavaitėsPradžiosReikšmė,CONCATENATE(\"Savaitė \",WEEKNUM(KalendoriausDiena),\"/Diena \",KalendoriausDiena-DATE(YEAR(KalendoriausDiena),1,0)),CONCATENATE(\"Diena \",KalendoriausDiena-DATE(YEAR(KalendoriausDiena),1,0)))","v":"Diena 57"},{"$f":"IF(WEEKDAY(KalendoriausDiena)=SavaitėsPradžiosReikšmė,CONCATENATE(\"Savaitė \",WEEKNUM(KalendoriausDiena),\"/Diena \",KalendoriausDiena-DATE(YEAR(KalendoriausDiena),1,0)),CONCATENATE(\"Diena \",KalendoriausDiena-DATE(YEAR(KalendoriausDiena),1,0)))","v":"Diena 58"},{"$f":"IF(WEEKDAY(KalendoriausDiena)=SavaitėsPradžiosReikšmė,CONCATENATE(\"Savaitė \",WEEKNUM(KalendoriausDiena),\"/Diena \",KalendoriausDiena-DATE(YEAR(KalendoriausDiena),1,0)),CONCATENATE(\"Diena \",KalendoriausDiena-DATE(YEAR(KalendoriausDiena),1,0)))","v":"Diena 59"},{"$f":"IF(WEEKDAY(KalendoriausDiena)=SavaitėsPradžiosReikšmė,CONCATENATE(\"Savaitė \",WEEKNUM(KalendoriausDiena),\"/Diena \",KalendoriausDiena-DATE(YEAR(KalendoriausDiena),1,0)),CONCATENATE(\"Diena \",KalendoriausDiena-DATE(YEAR(KalendoriausDiena),1,0)))","v":"Diena 60"},{"$f":"IF(WEEKDAY(KalendoriausDiena)=SavaitėsPradžiosReikšmė,CONCATENATE(\"Savaitė \",WEEKNUM(KalendoriausDiena),\"/Diena \",KalendoriausDiena-DATE(YEAR(KalendoriausDiena),1,0)),CONCATENATE(\"Diena \",KalendoriausDiena-DATE(YEAR(KalendoriausDiena),1,0)))","v":"Diena 61"},{"$f":"IF(WEEKDAY(KalendoriausDiena)=SavaitėsPradžiosReikšmė,CONCATENATE(\"Savaitė \",WEEKNUM(KalendoriausDiena),\"/Diena \",KalendoriausDiena-DATE(YEAR(KalendoriausDiena),1,0)),CONCATENATE(\"Diena \",KalendoriausDiena-DATE(YEAR(KalendoriausDiena),1,0)))","v":"Diena 62"}]
[{"$nulls":4},"PASTABOS"]
[]
[null,null,{"$f":"DienosIrSavaitės+DATE(KalendoriniaiMetai,2,1)-WEEKDAY(DATE(KalendoriniaiMetai,2,1),(SavaitėsPradžia=\"PR\")+1)+36","v":"2018-03-04"},"2018-03-05"]
[null,null,{"$f":"IF(WEEKDAY(KalendoriausDiena)=SavaitėsPradžiosReikšmė,CONCATENATE(\"Savaitė \",WEEKNUM(KalendoriausDiena),\"/Diena \",KalendoriausDiena-DATE(YEAR(KalendoriausDiena),1,0)),CONCATENATE(\"Diena \",KalendoriausDiena-DATE(YEAR(KalendoriausDiena),1,0)))","v":"Savaitė 10/Diena 63"},{"$f":"IF(WEEKDAY(KalendoriausDiena)=SavaitėsPradžiosReikšmė,CONCATENATE(\"Savaitė \",WEEKNUM(KalendoriausDiena),\"/Diena \",KalendoriausDiena-DATE(YEAR(KalendoriausDiena),1,0)),CONCATENATE(\"Diena \",KalendoriausDiena-DATE(YEAR(KalendoriausDiena),1,0)))","v":"Diena 64"}]

{"sheet":"KOV","index":2,"n_rows":20,"n_cols":9,"rows_kept":20,"merged":[[16,2,17,2],[17,4,19,8]]}
[null,"KOV",{"$f":"UPPER(TEXT(SavaitėsPradžia,\"ddd\"))","v":"SK"},{"$f":"UPPER(TEXT(D3,\"aaa\"))","v":"PR"},"AN","TR","KT","PN","ŠT"]
[null,{"$f":"KalendoriniaiMetai","v":2018}]
[null,null,{"$f":"DienosIrSavaitės+DATE(KalendoriniaiMetai,3,1)-WEEKDAY(DATE(KalendoriniaiMetai,3,1),(SavaitėsPradžia=\"PR\")+1)+1","v":"2018-02-25"},"2018-02-26","2018-02-27","2018-02-28","2018-03-01","2018-03-02","2018-03-03"]
[null,null,{"$f":"IF(DAY(KalendoriausDiena)=1,CONCATENATE(\"Savaitė \",WEEKNUM(KalendoriausDiena),\"/Diena \",KalendoriausDiena-DATE(YEAR(KalendoriausDiena),1,0)),CONCATENATE(\"Diena \",KalendoriausDiena-DATE(YEAR(KalendoriausDiena),1,0)))","v":"Diena 56"},{"$f":"IF(DAY(KalendoriausDiena)=1,CONCATENATE(\"Savaitė \",WEEKNUM(KalendoriausDiena),\"/Diena \",KalendoriausDiena-DATE(YEAR(KalendoriausDiena),1,0)),CONCATENATE(\"Diena \",KalendoriausDiena-DATE(YEAR(KalendoriausDiena),1,0)))","v":"Diena 57"},{"$f":"IF(DAY(KalendoriausDiena)=1,CONCATENATE(\"Savaitė \",WEEKNUM(KalendoriausDiena),\"/Diena \",KalendoriausDiena-DATE(YEAR(KalendoriausDiena),1,0)),CONCATENATE(\"Diena \",KalendoriausDiena-DATE(YEAR(KalendoriausDiena),1,0)))","v":"Diena 58"},{"$f":"IF(DAY(KalendoriausDiena)=1,CONCATENATE(\"Savaitė \",WEEKNUM(KalendoriausDiena),\"/Diena \",KalendoriausDiena-DATE(YEAR(KalendoriausDiena),1,0)),CONCATENATE(\"Diena \",KalendoriausDiena-DATE(YEAR(KalendoriausDiena),1,0)))","v":"Diena 59"},{"$f":"IF(DAY(KalendoriausDiena)=1,CONCATENATE(\"Savaitė \",WEEKNUM(KalendoriausDiena),\"/Diena \",KalendoriausDiena-DATE(YEAR(KalendoriausDiena),1,0)),CONCATENATE(\"Diena \",KalendoriausDiena-DATE(YEAR(KalendoriausDiena),1,0)))","v":"Savaitė 9/Diena 60"},{"$f":"IF(DAY(KalendoriausDiena)=1,CONCATENATE(\"Savaitė \",WEEKNUM(KalendoriausDiena),\"/Diena \",KalendoriausDiena-DATE(YEAR(KalendoriausDiena),1,0)),CONCATENATE(\"Diena \",KalendoriausDiena-DATE(YEAR(KalendoriausDiena),1,0)))","v":"Diena 61"},{"$f":"IF(DAY(KalendoriausDiena)=1,CONCATENATE(\"Savaitė \",WEEKNUM(KalendoriausDiena),\"/Diena \",KalendoriausDiena-DATE(YEAR(KalendoriausDiena),1,0)),CONCATENATE(\"Diena \",KalendoriausDiena-DATE(YEAR(KalendoriausDiena),1,0)))","v":"Diena 62"}]
[]
[null,null,{"$f":"DienosIrSavaitės+DATE(KalendoriniaiMetai,3,1)-WEEKDAY(DATE(KalendoriniaiMetai,3,1),(SavaitėsPradžia=\"PR\")+1)+8","v":"2018-03-04"},"2018-03-05","2018-03-06","2018-03-07","2018-03-08","2018-03-09","2018-03-10"]
[null,null,{"$f":"IF(WEEKDAY(KalendoriausDiena)=SavaitėsPradžiosReikšmė,CONCATENATE(\"Savaitė \",WEEKNUM(KalendoriausDiena),\"/Diena \",KalendoriausDiena-DATE(YEAR(KalendoriausDiena),1,0)),CONCATENATE(\"Diena \",KalendoriausDiena-DATE(YEAR(KalendoriausDiena),1,0)))","v":"Savaitė 10/Diena 63"},{"$f":"IF(WEEKDAY(KalendoriausDiena)=SavaitėsPradžiosReikšmė,CONCATENATE(\"Savaitė \",WEEKNUM(KalendoriausDiena),\"/Diena \",KalendoriausDiena-DATE(YEAR(KalendoriausDiena),1,0)),CONCATENATE(\"Diena \",KalendoriausDiena-DATE(YEAR(KalendoriausDiena),1,0)))","v":"Diena 64"},{"$f":"IF(WEEKDAY(KalendoriausDiena)=SavaitėsPradžiosReikšmė,CONCATENATE(\"Savaitė \",WEEKNUM(KalendoriausDiena),\"/Diena \",KalendoriausDiena-DATE(YEAR(KalendoriausDiena),1,0)),CONCATENATE(\"Diena \",KalendoriausDiena-DATE(YEAR(KalendoriausDiena),1,0)))","v":"Diena 65"},{"$f":"IF(WEEKDAY(KalendoriausDiena)=SavaitėsPradžiosReikšmė,CONCATENATE(\"Savaitė \",WEEKNUM(KalendoriausDiena),\"/Diena \",KalendoriausDiena-DATE(YEAR(KalendoriausDiena),1,0)),CONCATENATE(\"Diena \",KalendoriausDiena-DATE(YEAR(KalendoriausDiena),1,0)))","v":"Diena 66"},{"$f":"IF(WEEKDAY(KalendoriausDiena)=SavaitėsPradžiosReikšmė,CONCATENATE(\"Savaitė \",WEEKNUM(KalendoriausDiena),\"/Diena \",KalendoriausDiena-DATE(YEAR(KalendoriausDiena),1,0)),CONCATENATE(\"Diena \",KalendoriausDiena-DATE(YEAR(KalendoriausDiena),1,0)))","v":"Diena 67"},{"$f":"IF(WEEKDAY(KalendoriausDiena)=SavaitėsPradžiosReikšmė,CONCATENATE(\"Savaitė \",WEEKNUM(KalendoriausDiena),\"/Diena \",KalendoriausDiena-DATE(YEAR(KalendoriausDiena),1,0)),CONCATENATE(\"Diena \",KalendoriausDiena-DATE(YEAR(KalendoriausDiena),1,0)))","v":"Diena 68"},{"$f":"IF(WEEKDAY(KalendoriausDiena)=SavaitėsPradžiosReikšmė,CONCATENATE(\"Savaitė \",WEEKNUM(KalendoriausDiena),\"/Diena \",KalendoriausDiena-DATE(YEAR(KalendoriausDiena),1,0)),CONCATENATE(\"Diena \",KalendoriausDiena-DATE(YEAR(KalendoriausDiena),1,0)))","v":"Diena 69"}]
[]
[null,null,{"$f":"DienosIrSavaitės+DATE(KalendoriniaiMetai,3,1)-WEEKDAY(DATE(KalendoriniaiMetai,3,1),(SavaitėsPradžia=\"PR\")+1)+15","v":"2018-03-11"},"2018-03-12","2018-03-13","2018-03-14","2018-03-15","2018-03-16","2018-03-17"]
[null,null,{"$f":"IF(WEEKDAY(KalendoriausDiena)=SavaitėsPradžiosReikšmė,CONCATENATE(\"Savaitė \",WEEKNUM(KalendoriausDiena),\"/Diena \",KalendoriausDiena-DATE(YEAR(KalendoriausDiena),1,0)),CONCATENATE(\"Diena \",KalendoriausDiena-DATE(YEAR(KalendoriausDiena),1,0)))","v":"Savaitė 11/Diena 70"},{"$f":"IF(WEEKDAY(KalendoriausDiena)=SavaitėsPradžiosReikšmė,CONCATENATE(\"Savaitė \",WEEKNUM(KalendoriausDiena),\"/Diena \",KalendoriausDiena-DATE(YEAR(KalendoriausDiena),1,0)),CONCATENATE(\"Diena \",KalendoriausDiena-DATE(YEAR(KalendoriausDiena),1,0)))","v":"Diena 71"},{"$f":"IF(WEEKDAY(KalendoriausDiena)=SavaitėsPradžiosReikšmė,CONCATENATE(\"Savaitė \",WEEKNUM(KalendoriausDiena),\"/Diena \",KalendoriausDiena-DATE(YEAR(KalendoriausDiena),1,0)),CONCATENATE(\"Diena \",KalendoriausDiena-DATE(YEAR(KalendoriausDiena),1,0)))","v":"Diena 72"},{"$f":"IF(WEEKDAY(KalendoriausDiena)=SavaitėsPradžiosReikšmė,CONCATENATE(\"Savaitė \",WEEKNUM(KalendoriausDiena),\"/Diena \",KalendoriausDiena-DATE(YEAR(KalendoriausDiena),1,0)),CONCATENATE(\"Diena \",KalendoriausDiena-DATE(YEAR(KalendoriausDiena),1,0)))","v":"Diena 73"},{"$f":"IF(WEEKDAY(KalendoriausDiena)=SavaitėsPradžiosReikšmė,CONCATENATE(\"Savaitė \",WEEKNUM(KalendoriausDiena),\"/Diena \",KalendoriausDiena-DATE(YEAR(KalendoriausDiena),1,0)),CONCATENATE(\"Diena \",KalendoriausDiena-DATE(YEAR(KalendoriausDiena),1,0)))","v":"Diena 74"},{"$f":"IF(WEEKDAY(KalendoriausDiena)=SavaitėsPradžiosReikšmė,CONCATENATE(\"Savaitė \",WEEKNUM(KalendoriausDiena),\"/Diena \",KalendoriausDiena-DATE(YEAR(KalendoriausDiena),1,0)),CONCATENATE(\"Diena \",KalendoriausDiena-DATE(YEAR(KalendoriausDiena),1,0)))","v":"Diena 75"},{"$f":"IF(WEEKDAY(KalendoriausDiena)=SavaitėsPradžiosReikšmė,CONCATENATE(\"Savaitė \",WEEKNUM(KalendoriausDiena),\"/Diena \",KalendoriausDiena-DATE(YEAR(KalendoriausDiena),1,0)),CONCATENATE(\"Diena \",KalendoriausDiena-DATE(YEAR(KalendoriausDiena),1,0)))","v":"Diena 76"}]
[]
[null,null,{"$f":"DienosIrSavaitės+DATE(KalendoriniaiMetai,3,1)-WEEKDAY(DATE(KalendoriniaiMetai,3,1),(SavaitėsPradžia=\"PR\")+1)+22","v":"2018-03-18"},"2018-03-19","2018-03-20","2018-03-21","2018-03-22","2018-03-23","2018-03-24"]
[null,null,{"$f":"IF(WEEKDAY(KalendoriausDiena)=SavaitėsPradžiosReikšmė,CONCATENATE(\"Savaitė \",WEEKNUM(KalendoriausDiena),\"/Diena \",KalendoriausDiena-DATE(YEAR(KalendoriausDiena),1,0)),CONCATENATE(\"Diena \",KalendoriausDiena-DATE(YEAR(KalendoriausDiena),1,0)))","v":"Savaitė 12/Diena 77"},{"$f":"IF(WEEKDAY(KalendoriausDiena)=SavaitėsPradžiosReikšmė,CONCATENATE(\"Savaitė \",WEEKNUM(KalendoriausDiena),\"/Diena \",KalendoriausDiena-DATE(YEAR(KalendoriausDiena),1,0)),CONCATENATE(\"Diena \",KalendoriausDiena-DATE(YEAR(KalendoriausDiena),1,0)))","v":"Diena 78"},{"$f":"IF(WEEKDAY(KalendoriausDiena)=SavaitėsPradžiosReikšmė,CONCATENATE(\"Savaitė \",WEEKNUM(KalendoriausDiena),\"/Diena \",KalendoriausDiena-DATE(YEAR(KalendoriausDiena),1,0)),CONCATENATE(\"Diena \",KalendoriausDiena-DATE(YEAR(KalendoriausDiena),1,0)))","v":"Diena 79"},{"$f":"IF(WEEKDAY(KalendoriausDiena)=SavaitėsPradžiosReikšmė,CONCATENATE(\"Savaitė \",WEEKNUM(KalendoriausDiena),\"/Diena \",KalendoriausDiena-DATE(YEAR(KalendoriausDiena),1,0)),CONCATENATE(\"Diena \",KalendoriausDiena-DATE(YEAR(KalendoriausDiena),1,0)))","v":"Diena 80"},{"$f":"IF(WEEKDAY(KalendoriausDiena)=SavaitėsPradžiosReikšmė,CONCATENATE(\"Savaitė \",WEEKNUM(KalendoriausDiena),\"/Diena \",KalendoriausDiena-DATE(YEAR(KalendoriausDiena),1,0)),CONCATENATE(\"Diena \",KalendoriausDiena-DATE(YEAR(KalendoriausDiena),1,0)))","v":"Diena 81"},{"$f":"IF(WEEKDAY(KalendoriausDiena)=SavaitėsPradžiosReikšmė,CONCATENATE(\"Savaitė \",WEEKNUM(KalendoriausDiena),\"/Diena \",KalendoriausDiena-DATE(YEAR(KalendoriausDiena),1,0)),CONCATENATE(\"Diena \",KalendoriausDiena-DATE(YEAR(KalendoriausDiena),1,0)))","v":"Diena 82"},{"$f":"IF(WEEKDAY(KalendoriausDiena)=SavaitėsPradžiosReikšmė,CONCATENATE(\"Savaitė \",WEEKNUM(KalendoriausDiena),\"/Diena \",KalendoriausDiena-DATE(YEAR(KalendoriausDiena),1,0)),CONCATENATE(\"Diena \",KalendoriausDiena-DATE(YEAR(KalendoriausDiena),1,0)))","v":"Diena 83"}]
[]
[null,null,{"$f":"DienosIrSavaitės+DATE(KalendoriniaiMetai,3,1)-WEEKDAY(DATE(KalendoriniaiMetai,3,1),(SavaitėsPradžia=\"PR\")+1)+29","v":"2018-03-25"},"2018-03-26","2018-03-27","2018-03-28","2018-03-29","2018-03-30","2018-03-31"]
[null,null,{"$f":"IF(WEEKDAY(KalendoriausDiena)=SavaitėsPradžiosReikšmė,CONCATENATE(\"Savaitė \",WEEKNUM(KalendoriausDiena),\"/Diena \",KalendoriausDiena-DATE(YEAR(KalendoriausDiena),1,0)),CONCATENATE(\"Diena \",KalendoriausDiena-DATE(YEAR(KalendoriausDiena),1,0)))","v":"Savaitė 13/Diena 84"},{"$f":"IF(WEEKDAY(KalendoriausDiena)=SavaitėsPradžiosReikšmė,CONCATENATE(\"Savaitė \",WEEKNUM(KalendoriausDiena),\"/Diena \",KalendoriausDiena-DATE(YEAR(KalendoriausDiena),1,0)),CONCATENATE(\"Diena \",KalendoriausDiena-DATE(YEAR(KalendoriausDiena),1,0)))","v":"Diena 85"},{"$f":"IF(WEEKDAY(KalendoriausDiena)=SavaitėsPradžiosReikšmė,CONCATENATE(\"Savaitė \",WEEKNUM(KalendoriausDiena),\"/Diena \",KalendoriausDiena-DATE(YEAR(KalendoriausDiena),1,0)),CONCATENATE(\"Diena \",KalendoriausDiena-DATE(YEAR(KalendoriausDiena),1,0)))","v":"Diena 86"},{"$f":"IF(WEEKDAY(KalendoriausDiena)=SavaitėsPradžiosReikšmė,CONCATENATE(\"Savaitė \",WEEKNUM(KalendoriausDiena),\"/Diena \",KalendoriausDiena-DATE(YEAR(KalendoriausDiena),1,0)),CONCATENATE(\"Diena \",KalendoriausDiena-DATE(YEAR(KalendoriausDiena),1,0)))","v":"Diena 87"},{"$f":"IF(WEEKDAY(KalendoriausDiena)=SavaitėsPradžiosReikšmė,CONCATENATE(\"Savaitė \",WEEKNUM(KalendoriausDiena),\"/Diena \",KalendoriausDiena-DATE(YEAR(KalendoriausDiena),1,0)),CONCATENATE(\"Diena \",KalendoriausDiena-DATE(YEAR(KalendoriausDiena),1,0)))","v":"Diena 88"},{"$f":"IF(WEEKDAY(KalendoriausDiena)=SavaitėsPradžiosReikšmė,CONCATENATE(\"Savaitė \",WEEKNUM(KalendoriausDiena),\"/Diena \",KalendoriausDiena-DATE(YEAR(KalendoriausDiena),1,0)),CONCATENATE(\"Diena \",KalendoriausDiena-DATE(YEAR(KalendoriausDiena),1,0)))","v":"Diena 89"},{"$f":"IF(WEEKDAY(KalendoriausDiena)=SavaitėsPradžiosReikšmė,CONCATENATE(\"Savaitė \",WEEKNUM(KalendoriausDiena),\"/Diena \",KalendoriausDiena-DATE(YEAR(KalendoriausDiena),1,0)),CONCATENATE(\"Diena \",KalendoriausDiena-DATE(YEAR(KalendoriausDiena),1,0)))","v":"Diena 90"}]
[{"$nulls":4},"PASTABOS"]
[]
[null,null,{"$f":"DienosIrSavaitės+DATE(KalendoriniaiMetai,3,1)-WEEKDAY(DATE(KalendoriniaiMetai,3,1),(SavaitėsPradžia=\"PR\")+1)+36","v":"2018-04-01"},"2018-04-02"]
[null,null,{"$f":"IF(WEEKDAY(KalendoriausDiena)=SavaitėsPradžiosReikšmė,CONCATENATE(\"Savaitė \",WEEKNUM(KalendoriausDiena),\"/Diena \",KalendoriausDiena-DATE(YEAR(KalendoriausDiena),1,0)),CONCATENATE(\"Diena \",KalendoriausDiena-DATE(YEAR(KalendoriausDiena),1,0)))","v":"Savaitė 14/Diena 91"},{"$f":"IF(WEEKDAY(KalendoriausDiena)=SavaitėsPradžiosReikšmė,CONCATENATE(\"Savaitė \",WEEKNUM(KalendoriausDiena),\"/Diena \",KalendoriausDiena-DATE(YEAR(KalendoriausDiena),1,0)),CONCATENATE(\"Diena \",KalendoriausDiena-DATE(YEAR(KalendoriausDiena),1,0)))","v":"Diena 92"}]

{"sheet":"BAL","index":3,"n_rows":20,"n_cols":9,"rows_kept":20,"merged":[[16,2,17,2],[17,4,19,8]]}
[null,"BAL",{"$f":"UPPER(TEXT(SavaitėsPradžia,\"ddd\"))","v":"SK"},{"$f":"UPPER(TEXT(D3,\"aaa\"))","v":"PR"},"AN","TR","KT","PN","ŠT"]
[null,{"$f":"KalendoriniaiMetai","v":2018}]
[null,null,{"$f":"DienosIrSavaitės+DATE(KalendoriniaiMetai,4,1)-WEEKDAY(DATE(KalendoriniaiMetai,4,1),(SavaitėsPradžia=\"PR\")+1)+1","v":"2018-04-01"},"2018-04-02","2018-04-03","2018-04-04","2018-04-05","2018-04-06","2018-04-07"]
[null,null,{"$f":"IF(DAY(KalendoriausDiena)=1,CONCATENATE(\"Savaitė \",WEEKNUM(KalendoriausDiena),\"/Diena \",KalendoriausDiena-DATE(YEAR(KalendoriausDiena),1,0)),CONCATENATE(\"Diena \",KalendoriausDiena-DATE(YEAR(KalendoriausDiena),1,0)))","v":"Savaitė 14/Diena 91"},{"$f":"IF(DAY(KalendoriausDiena)=1,CONCATENATE(\"Savaitė \",WEEKNUM(KalendoriausDiena),\"/Diena \",KalendoriausDiena-DATE(YEAR(KalendoriausDiena),1,0)),CONCATENATE(\"Diena \",KalendoriausDiena-DATE(YEAR(KalendoriausDiena),1,0)))","v":"Diena 92"},{"$f":"IF(DAY(KalendoriausDiena)=1,CONCATENATE(\"Savaitė \",WEEKNUM(KalendoriausDiena),\"/Diena \",KalendoriausDiena-DATE(YEAR(KalendoriausDiena),1,0)),CONCATENATE(\"Diena \",KalendoriausDiena-DATE(YEAR(KalendoriausDiena),1,0)))","v":"Diena 93"},{"$f":"IF(DAY(KalendoriausDiena)=1,CONCATENATE(\"Savaitė \",WEEKNUM(KalendoriausDiena),\"/Diena \",KalendoriausDiena-DATE(YEAR(KalendoriausDiena),1,0)),CONCATENATE(\"Diena \",KalendoriausDiena-DATE(YEAR(KalendoriausDiena),1,0)))","v":"Diena 94"},{"$f":"IF(DAY(KalendoriausDiena)=1,CONCATENATE(\"Savaitė \",WEEKNUM(KalendoriausDiena),\"/Diena \",KalendoriausDiena-DATE(YEAR(KalendoriausDiena),1,0)),CONCATENATE(\"Diena \",KalendoriausDiena-DATE(YEAR(KalendoriausDiena),1,0)))","v":"Diena 95"},{"$f":"IF(DAY(KalendoriausDiena)=1,CONCATENATE(\"Savaitė \",WEEKNUM(KalendoriausDiena),\"/Diena \",KalendoriausDiena-DATE(YEAR(KalendoriausDiena),1,0)),CONCATENATE(\"Diena \",KalendoriausDiena-DATE(YEAR(KalendoriausDiena),1,0)))","v":"Diena 96"},{"$f":"IF(DAY(KalendoriausDiena)=1,CONCATENATE(\"Savaitė \",WEEKNUM(KalendoriausDiena),\"/Diena \",KalendoriausDiena-DATE(YEAR(KalendoriausDiena),1,0)),CONCATENATE(\"Diena \",KalendoriausDiena-DATE(YEAR(KalendoriausDiena),1,0)))","v":"Diena 97"}]
[]
[null,null,{"$f":"DienosIrSavaitės+DATE(KalendoriniaiMetai,4,1)-WEEKDAY(DATE(KalendoriniaiMetai,4,1),(SavaitėsPradžia=\"PR\")+1)+8","v":"2018-04-08"},"2018-04-09","2018-04-10","2018-04-11","2018-04-12","2018-04-13","2018-04-14"]
[null,null,{"$f":"IF(WEEKDAY(KalendoriausDiena)=SavaitėsPradžiosReikšmė,CONCATENATE(\"Savaitė \",WEEKNUM(KalendoriausDiena),\"/Diena \",KalendoriausDiena-DATE(YEAR(KalendoriausDiena),1,0)),CONCATENATE(\"Diena \",KalendoriausDiena-DATE(YEAR(KalendoriausDiena),1,0)))","v":"Savaitė 15/Diena 98"},{"$f":"IF(WEEKDAY(KalendoriausDiena)=SavaitėsPradžiosReikšmė,CONCATENATE(\"Savaitė \",WEEKNUM(KalendoriausDiena),\"/Diena \",KalendoriausDiena-DATE(YEAR(KalendoriausDiena),1,0)),CONCATENATE(\"Diena \",KalendoriausDiena-DATE(YEAR(KalendoriausDiena),1,0)))","v":"Diena 99"},{"$f":"IF(WEEKDAY(KalendoriausDiena)=SavaitėsPradžiosReikšmė,CONCATENATE(\"Savaitė \",WEEKNUM(KalendoriausDiena),\"/Diena \",KalendoriausDiena-DATE(YEAR(KalendoriausDiena),1,0)),CONCATENATE(\"Diena \",KalendoriausDiena-DATE(YEAR(KalendoriausDiena),1,0)))","v":"Diena 100"},{"$f":"IF(WEEKDAY(KalendoriausDiena)=SavaitėsPradžiosReikšmė,CONCATENATE(\"Savaitė \",WEEKNUM(KalendoriausDiena),\"/Diena \",KalendoriausDiena-DATE(YEAR(KalendoriausDiena),1,0)),CONCATENATE(\"Diena \",KalendoriausDiena-DATE(YEAR(KalendoriausDiena),1,0)))","v":"Diena 101"},{"$f":"IF(WEEKDAY(KalendoriausDiena)=SavaitėsPradžiosReikšmė,CONCATENATE(\"Savaitė \",WEEKNUM(KalendoriausDiena),\"/Diena \",KalendoriausDiena-DATE(YEAR(KalendoriausDiena),1,0)),CONCATENATE(\"Diena \",KalendoriausDiena-DATE(YEAR(KalendoriausDiena),1,0)))","v":"Diena 102"},{"$f":"IF(WEEKDAY(KalendoriausDiena)=SavaitėsPradžiosReikšmė,CONCATENATE(\"Savaitė \",WEEKNUM(KalendoriausDiena),\"/Diena \",KalendoriausDiena-DATE(YEAR(KalendoriausDiena),1,0)),CONCATENATE(\"Diena \",KalendoriausDiena-DATE(YEAR(KalendoriausDiena),1,0)))","v":"Diena 103"},{"$f":"IF(WEEKDAY(KalendoriausDiena)=SavaitėsPradžiosReikšmė,CONCATENATE(\"Savaitė \",WEEKNUM(KalendoriausDiena),\"/Diena \",KalendoriausDiena-DATE(YEAR(KalendoriausDiena),1,0)),CONCATENATE(\"Diena \",KalendoriausDiena-DATE(YEAR(KalendoriausDiena),1,0)))","v":"Diena 104"}]
[]
[null,null,{"$f":"DienosIrSavaitės+DATE(KalendoriniaiMetai,4,1)-WEEKDAY(DATE(KalendoriniaiMetai,4,1),(SavaitėsPradžia=\"PR\")+1)+15","v":"2018-04-15"},"2018-04-16","2018-04-17","2018-04-18","2018-04-19","2018-04-20","2018-04-21"]
[null,null,{"$f":"IF(WEEKDAY(KalendoriausDiena)=SavaitėsPradžiosReikšmė,CONCATENATE(\"Savaitė \",WEEKNUM(KalendoriausDiena),\"/Diena \",KalendoriausDiena-DATE(YEAR(KalendoriausDiena),1,0)),CONCATENATE(\"Diena \",KalendoriausDiena-DATE(YEAR(KalendoriausDiena),1,0)))","v":"Savaitė 16/Diena 105"},{"$f":"IF(WEEKDAY(KalendoriausDiena)=SavaitėsPradžiosReikšmė,CONCATENATE(\"Savaitė \",WEEKNUM(KalendoriausDiena),\"/Diena \",KalendoriausDiena-DATE(YEAR(KalendoriausDiena),1,0)),CONCATENATE(\"Diena \",KalendoriausDiena-DATE(YEAR(KalendoriausDiena),1,0)))","v":"Diena 106"},{"$f":"IF(WEEKDAY(KalendoriausDiena)=SavaitėsPradžiosReikšmė,CONCATENATE(\"Savaitė \",WEEKNUM(KalendoriausDiena),\"/Diena \",KalendoriausDiena-DATE(YEAR(KalendoriausDiena),1,0)),CONCATENATE(\"Diena \",KalendoriausDiena-DATE(YEAR(KalendoriausDiena),1,0)))","v":"Diena 107"},{"$f":"IF(WEEKDAY(KalendoriausDiena)=SavaitėsPradžiosReikšmė,CONCATENATE(\"Savaitė \",WEEKNUM(KalendoriausDiena),\"/Diena \",KalendoriausDiena-DATE(YEAR(KalendoriausDiena),1,0)),CONCATENATE(\"Diena \",KalendoriausDiena-DATE(YEAR(KalendoriausDiena),1,0)))","v":"Diena 108"},{"$f":"IF(WEEKDAY(KalendoriausDiena)=SavaitėsPradžiosReikšmė,CONCATENATE(\"Savaitė \",WEEKNUM(KalendoriausDiena),\"/Diena \",KalendoriausDiena-DATE(YEAR(KalendoriausDiena),1,0)),CONCATENATE(\"Diena \",KalendoriausDiena-DATE(YEAR(KalendoriausDiena),1,0)))","v":"Diena 109"},{"$f":"IF(WEEKDAY(KalendoriausDiena)=SavaitėsPradžiosReikšmė,CONCATENATE(\"Savaitė \",WEEKNUM(KalendoriausDiena),\"/Diena \",KalendoriausDiena-DATE(YEAR(KalendoriausDiena),1,0)),CONCATENATE(\"Diena \",KalendoriausDiena-DATE(YEAR(KalendoriausDiena),1,0)))","v":"Diena 110"},{"$f":"IF(WEEKDAY(KalendoriausDiena)=SavaitėsPradžiosReikšmė,CONCATENATE(\"Savaitė \",WEEKNUM(KalendoriausDiena),\"/Diena \",KalendoriausDiena-DATE(YEAR(KalendoriausDiena),1,0)),CONCATENATE(\"Diena \",KalendoriausDiena-DATE(YEAR(KalendoriausDiena),1,0)))","v":"Diena 111"}]
[]
[null,null,{"$f":"DienosIrSavaitės+DATE(KalendoriniaiMetai,4,1)-WEEKDAY(DATE(KalendoriniaiMetai,4,1),(SavaitėsPradžia=\"PR\")+1)+22","v":"2018-04-22"},"2018-04-23","2018-04-24","2018-04-25","2018-04-26","2018-04-27","2018-04-28"]
[null,null,{"$f":"IF(WEEKDAY(KalendoriausDiena)=SavaitėsPradžiosReikšmė,CONCATENATE(\"Savaitė \",WEEKNUM(KalendoriausDiena),\"/Diena \",KalendoriausDiena-DATE(YEAR(KalendoriausDiena),1,0)),CONCATENATE(\"Diena \",KalendoriausDiena-DATE(YEAR(KalendoriausDiena),1,0)))","v":"Savaitė 17/Diena 112"},{"$f":"IF(WEEKDAY(KalendoriausDiena)=SavaitėsPradžiosReikšmė,CONCATENATE(\"Savaitė \",WEEKNUM(KalendoriausDiena),\"/Diena \",KalendoriausDiena-DATE(YEAR(KalendoriausDiena),1,0)),CONCATENATE(\"Diena \",KalendoriausDiena-DATE(YEAR(KalendoriausDiena),1,0)))","v":"Diena 113"},{"$f":"IF(WEEKDAY(KalendoriausDiena)=SavaitėsPradžiosReikšmė,CONCATENATE(\"Savaitė \",WEEKNUM(KalendoriausDiena),\"/Diena \",KalendoriausDiena-DATE(YEAR(KalendoriausDiena),1,0)),CONCATENATE(\"Diena \",KalendoriausDiena-DATE(YEAR(KalendoriausDiena),1,0)))","v":"Diena 114"},{"$f":"IF(WEEKDAY(KalendoriausDiena)=SavaitėsPradžiosReikšmė,CONCATENATE(\"Savaitė \",WEEKNUM(KalendoriausDiena),\"/Diena \",KalendoriausDiena-DATE(YEAR(KalendoriausDiena),1,0)),CONCATENATE(\"Diena \",KalendoriausDiena-DATE(YEAR(KalendoriausDiena),1,0)))","v":"Diena 115"},{"$f":"IF(WEEKDAY(KalendoriausDiena)=SavaitėsPradžiosReikšmė,CONCATENATE(\"Savaitė \",WEEKNUM(KalendoriausDiena),\"/Diena \",KalendoriausDiena-DATE(YEAR(KalendoriausDiena),1,0)),CONCATENATE(\"Diena \",KalendoriausDiena-DATE(YEAR(KalendoriausDiena),1,0)))","v":"Diena 116"},{"$f":"IF(WEEKDAY(KalendoriausDiena)=SavaitėsPradžiosReikšmė,CONCATENATE(\"Savaitė \",WEEKNUM(KalendoriausDiena),\"/Diena \",KalendoriausDiena-DATE(YEAR(KalendoriausDiena),1,0)),CONCATENATE(\"Diena \",KalendoriausDiena-DATE(YEAR(KalendoriausDiena),1,0)))","v":"Diena 117"},{"$f":"IF(WEEKDAY(KalendoriausDiena)=SavaitėsPradžiosReikšmė,CONCATENATE(\"Savaitė \",WEEKNUM(KalendoriausDiena),\"/Diena \",KalendoriausDiena-DATE(YEAR(KalendoriausDiena),1,0)),CONCATENATE(\"Diena \",KalendoriausDiena-DATE(YEAR(KalendoriausDiena),1,0)))","v":"Diena 118"}]
[]
[null,null,{"$f":"DienosIrSavaitės+DATE(KalendoriniaiMetai,4,1)-WEEKDAY(DATE(KalendoriniaiMetai,4,1),(SavaitėsPradžia=\"PR\")+1)+29","v":"2018-04-29"},"2018-04-30","2018-05-01","2018-05-02","2018-05-03","2018-05-04","2018-05-05"]
[null,null,{"$f":"IF(WEEKDAY(KalendoriausDiena)=SavaitėsPradžiosReikšmė,CONCATENATE(\"Savaitė \",WEEKNUM(KalendoriausDiena),\"/Diena \",KalendoriausDiena-DATE(YEAR(KalendoriausDiena),1,0)),CONCATENATE(\"Diena \",KalendoriausDiena-DATE(YEAR(KalendoriausDiena),1,0)))","v":"Savaitė 18/Diena 119"},{"$f":"IF(WEEKDAY(KalendoriausDiena)=SavaitėsPradžiosReikšmė,CONCATENATE(\"Savaitė \",WEEKNUM(KalendoriausDiena),\"/Diena \",KalendoriausDiena-DATE(YEAR(KalendoriausDiena),1,0)),CONCATENATE(\"Diena \",KalendoriausDiena-DATE(YEAR(KalendoriausDiena),1,0)))","v":"Diena 120"},{"$f":"IF(WEEKDAY(KalendoriausDiena)=SavaitėsPradžiosReikšmė,CONCATENATE(\"Savaitė \",WEEKNUM(KalendoriausDiena),\"/Diena \",KalendoriausDiena-DATE(YEAR(KalendoriausDiena),1,0)),CONCATENATE(\"Diena \",KalendoriausDiena-DATE(YEAR(KalendoriausDiena),1,0)))","v":"Diena 121"},{"$f":"IF(WEEKDAY(KalendoriausDiena)=SavaitėsPradžiosReikšmė,CONCATENATE(\"Savaitė \",WEEKNUM(KalendoriausDiena),\"/Diena \",KalendoriausDiena-DATE(YEAR(KalendoriausDiena),1,0)),CONCATENATE(\"Diena \",KalendoriausDiena-DATE(YEAR(KalendoriausDiena),1,0)))","v":"Diena 122"},{"$f":"IF(WEEKDAY(KalendoriausDiena)=SavaitėsPradžiosReikšmė,CONCATENATE(\"Savaitė \",WEEKNUM(KalendoriausDiena),\"/Diena \",KalendoriausDiena-DATE(YEAR(KalendoriausDiena),1,0)),CONCATENATE(\"Diena \",KalendoriausDiena-DATE(YEAR(KalendoriausDiena),1,0)))","v":"Diena 123"},{"$f":"IF(WEEKDAY(KalendoriausDiena)=SavaitėsPradžiosReikšmė,CONCATENATE(\"Savaitė \",WEEKNUM(KalendoriausDiena),\"/Diena \",KalendoriausDiena-DATE(YEAR(KalendoriausDiena),1,0)),CONCATENATE(\"Diena \",KalendoriausDiena-DATE(YEAR(KalendoriausDiena),1,0)))","v":"Diena 124"},{"$f":"IF(WEEKDAY(KalendoriausDiena)=SavaitėsPradžiosReikšmė,CONCATENATE(\"Savaitė \",WEEKNUM(KalendoriausDiena),\"/Diena \",KalendoriausDiena-DATE(YEAR(KalendoriausDiena),1,0)),CONCATENATE(\"Diena \",KalendoriausDiena-DATE(YEAR(KalendoriausDiena),1,0)))","v":"Diena 125"}]
[{"$nulls":4},"PASTABOS"]
[]
[null,null,{"$f":"DienosIrSavaitės+DATE(KalendoriniaiMetai,4,1)-WEEKDAY(DATE(KalendoriniaiMetai,4,1),(SavaitėsPradžia=\"PR\")+1)+36","v":"2018-05-06"},"2018-05-07"]
[null,null,{"$f":"IF(WEEKDAY(KalendoriausDiena)=SavaitėsPradžiosReikšmė,CONCATENATE(\"Savaitė \",WEEKNUM(KalendoriausDiena),\"/Diena \",KalendoriausDiena-DATE(YEAR(KalendoriausDiena),1,0)),CONCATENATE(\"Diena \",KalendoriausDiena-DATE(YEAR(KalendoriausDiena),1,0)))","v":"Savaitė 19/Diena 126"},{"$f":"IF(WEEKDAY(KalendoriausDiena)=SavaitėsPradžiosReikšmė,CONCATENATE(\"Savaitė \",WEEKNUM(KalendoriausDiena),\"/Diena \",KalendoriausDiena-DATE(YEAR(KalendoriausDiena),1,0)),CONCATENATE(\"Diena \",KalendoriausDiena-DATE(YEAR(KalendoriausDiena),1,0)))","v":"Diena 127"}]

{"sheet":"GEG","index":4,"n_rows":20,"n_cols":9,"rows_kept":20,"merged":[[16,2,17,2],[17,4,19,8]]}
[null,"GEG",{"$f":"UPPER(TEXT(SavaitėsPradžia,\"ddd\"))","v":"SK"},{"$f":"UPPER(TEXT(D3,\"aaa\"))","v":"PR"},"AN","TR","KT","PN","ŠT"]
[null,{"$f":"KalendoriniaiMetai","v":2018}]
[null,null,{"$f":"DienosIrSavaitės+DATE(KalendoriniaiMetai,5,1)-WEEKDAY(DATE(KalendoriniaiMetai,5,1),(SavaitėsPradžia=\"PR\")+1)+1","v":"2018-04-29"},"2018-04-30","2018-05-01","2018-05-02","2018-05-03","2018-05-04","2018-05-05"]
[null,null,{"$f":"IF(DAY(KalendoriausDiena)=1,CONCATENATE(\"Savaitė \",WEEKNUM(KalendoriausDiena),\"/Diena \",KalendoriausDiena-DATE(YEAR(KalendoriausDiena),1,0)),CONCATENATE(\"Diena \",KalendoriausDiena-DATE(YEAR(KalendoriausDiena),1,0)))","v":"Diena 119"},{"$f":"IF(DAY(KalendoriausDiena)=1,CONCATENATE(\"Savaitė \",WEEKNUM(KalendoriausDiena),\"/Diena \",KalendoriausDiena-DATE(YEAR(KalendoriausDiena),1,0)),CONCATENATE(\"Diena \",KalendoriausDiena-DATE(YEAR(KalendoriausDiena),1,0)))","v":"Diena 120"},{"$f":"IF(DAY(KalendoriausDiena)=1,CONCATENATE(\"Savaitė \",WEEKNUM(KalendoriausDiena),\"/Diena \",KalendoriausDiena-DATE(YEAR(KalendoriausDiena),1,0)),CONCATENATE(\"Diena \",KalendoriausDiena-DATE(YEAR(KalendoriausDiena),1,0)))","v":"Savaitė 18/Diena 121"},{"$f":"IF(DAY(KalendoriausDiena)=1,CONCATENATE(\"Savaitė \",WEEKNUM(KalendoriausDiena),\"/Diena \",KalendoriausDiena-DATE(YEAR(KalendoriausDiena),1,0)),CONCATENATE(\"Diena \",KalendoriausDiena-DATE(YEAR(KalendoriausDiena),1,0)))","v":"Diena 122"},{"$f":"IF(DAY(KalendoriausDiena)=1,CONCATENATE(\"Savaitė \",WEEKNUM(KalendoriausDiena),\"/Diena \",KalendoriausDiena-DATE(YEAR(KalendoriausDiena),1,0)),CONCATENATE(\"Diena \",KalendoriausDiena-DATE(YEAR(KalendoriausDiena),1,0)))","v":"Diena 123"},{"$f":"IF(DAY(KalendoriausDiena)=1,CONCATENATE(\"Savaitė \",WEEKNUM(KalendoriausDiena),\"/Diena \",KalendoriausDiena-DATE(YEAR(KalendoriausDiena),1,0)),CONCATENATE(\"Diena \",KalendoriausDiena-DATE(YEAR(KalendoriausDiena),1,0)))","v":"Diena 124"},{"$f":"IF(DAY(KalendoriausDiena)=1,CONCATENATE(\"Savaitė \",WEEKNUM(KalendoriausDiena),\"/Diena \",KalendoriausDiena-DATE(YEAR(KalendoriausDiena),1,0)),CONCATENATE(\"Diena \",KalendoriausDiena-DATE(YEAR(KalendoriausDiena),1,0)))","v":"Diena 125"}]
[]
[null,null,{"$f":"DienosIrSavaitės+DATE(KalendoriniaiMetai,5,1)-WEEKDAY(DATE(KalendoriniaiMetai,5,1),(SavaitėsPradžia=\"PR\")+1)+8","v":"2018-05-06"},"2018-05-07","2018-05-08","2018-05-09","2018-05-10","2018-05-11","2018-05-12"]
[null,null,{"$f":"IF(WEEKDAY(KalendoriausDiena)=SavaitėsPradžiosReikšmė,CONCATENATE(\"Savaitė \",WEEKNUM(KalendoriausDiena),\"/Diena \",KalendoriausDiena-DATE(YEAR(KalendoriausDiena),1,0)),CONCATENATE(\"Diena \",KalendoriausDiena-DATE(YEAR(KalendoriausDiena),1,0)))","v":"Savaitė 19/Diena 126"},{"$f":"IF(WEEKDAY(KalendoriausDiena)=SavaitėsPradžiosReikšmė,CONCATENATE(\"Savaitė \",WEEKNUM(KalendoriausDiena),\"/Diena \",KalendoriausDiena-DATE(YEAR(KalendoriausDiena),1,0)),CONCATENATE(\"Diena \",KalendoriausDiena-DATE(YEAR(KalendoriausDiena),1,0)))","v":"Diena 127"},{"$f":"IF(WEEKDAY(KalendoriausDiena)=SavaitėsPradžiosReikšmė,CONCATENATE(\"Savaitė \",WEEKNUM(KalendoriausDiena),\"/Diena \",KalendoriausDiena-DATE(YEAR(KalendoriausDiena),1,0)),CONCATENATE(\"Diena \",KalendoriausDiena-DATE(YEAR(KalendoriausDiena),1,0)))","v":"Diena 128"},{"$f":"IF(WEEKDAY(KalendoriausDiena)=SavaitėsPradžiosReikšmė,CONCATENATE(\"Savaitė \",WEEKNUM(KalendoriausDiena),\"/Diena \",KalendoriausDiena-DATE(YEAR(KalendoriausDiena),1,0)),CONCATENATE(\"Diena \",KalendoriausDiena-DATE(YEAR(KalendoriausDiena),1,0)))","v":"Diena 129"},{"$f":"IF(WEEKDAY(KalendoriausDiena)=SavaitėsPradžiosReikšmė,CONCATENATE(\"Savaitė \",WEEKNUM(KalendoriausDiena),\"/Diena \",KalendoriausDiena-DATE(YEAR(KalendoriausDiena),1,0)),CONCATENATE(\"Diena \",KalendoriausDiena-DATE(YEAR(KalendoriausDiena),1,0)))","v":"Diena 130"},{"$f":"IF(WEEKDAY(KalendoriausDiena)=SavaitėsPradžiosReikšmė,CONCATENATE(\"Savaitė \",WEEKNUM(KalendoriausDiena),\"/Diena \",KalendoriausDiena-DATE(YEAR(KalendoriausDiena),1,0)),CONCATENATE(\"Diena \",KalendoriausDiena-DATE(YEAR(KalendoriausDiena),1,0)))","v":"Diena 131"},{"$f":"IF(WEEKDAY(KalendoriausDiena)=SavaitėsPradžiosReikšmė,CONCATENATE(\"Savaitė \",WEEKNUM(KalendoriausDiena),\"/Diena \",KalendoriausDiena-DATE(YEAR(KalendoriausDiena),1,0)),CONCATENATE(\"Diena \",KalendoriausDiena-DATE(YEAR(KalendoriausDiena),1,0)))","v":"Diena 132"}]
[]
[null,null,{"$f":"DienosIrSavaitės+DATE(KalendoriniaiMetai,5,1)-WEEKDAY(DATE(KalendoriniaiMetai,5,1),(SavaitėsPradžia=\"PR\")+1)+15","v":"2018-05-13"},"2018-05-14","2018-05-15","2018-05-16","2018-05-17","2018-05-18","2018-05-19"]
[null,null,{"$f":"IF(WEEKDAY(KalendoriausDiena)=SavaitėsPradžiosReikšmė,CONCATENATE(\"Savaitė \",WEEKNUM(KalendoriausDiena),\"/Diena \",KalendoriausDiena-DATE(YEAR(KalendoriausDiena),1,0)),CONCATENATE(\"Diena \",KalendoriausDiena-DATE(YEAR(KalendoriausDiena),1,0)))","v":"Savaitė 20/Diena 133"},{"$f":"IF(WEEKDAY(KalendoriausDiena)=SavaitėsPradžiosReikšmė,CONCATENATE(\"Savaitė \",WEEKNUM(KalendoriausDiena),\"/Diena \",KalendoriausDiena-DATE(YEAR(KalendoriausDiena),1,0)),CONCATENATE(\"Diena \",KalendoriausDiena-DATE(YEAR(KalendoriausDiena),1,0)))","v":"Diena 134"},{"$f":"IF(WEEKDAY(KalendoriausDiena)=SavaitėsPradžiosReikšmė,CONCATENATE(\"Savaitė \",WEEKNUM(KalendoriausDiena),\"/Diena \",KalendoriausDiena-DATE(YEAR(KalendoriausDiena),1,0)),CONCATENATE(\"Diena \",KalendoriausDiena-DATE(YEAR(KalendoriausDiena),1,0)))","v":"Diena 135"},{"$f":"IF(WEEKDAY(KalendoriausDiena)=SavaitėsPradžiosReikšmė,CONCATENATE(\"Savaitė \",WEEKNUM(KalendoriausDiena),\"/Diena \",KalendoriausDiena-DATE(YEAR(KalendoriausDiena),1,0)),CONCATENATE(\"Diena \",KalendoriausDiena-DATE(YEAR(KalendoriausDiena),1,0)))","v":"Diena 136"},{"$f":"IF(WEEKDAY(KalendoriausDiena)=SavaitėsPradžiosReikšmė,CONCATENATE(\"Savaitė \",WEEKNUM(KalendoriausDiena),\"/Diena \",KalendoriausDiena-DATE(YEAR(KalendoriausDiena),1,0)),CONCATENATE(\"Diena \",KalendoriausDiena-DATE(YEAR(KalendoriausDiena),1,0)))","v":"Diena 137"},{"$f":"IF(WEEKDAY(KalendoriausDiena)=SavaitėsPradžiosReikšmė,CONCATENATE(\"Savaitė \",WEEKNUM(KalendoriausDiena),\"/Diena \",KalendoriausDiena-DATE(YEAR(KalendoriausDiena),1,0)),CONCATENATE(\"Diena \",KalendoriausDiena-DATE(YEAR(KalendoriausDiena),1,0)))","v":"Diena 138"},{"$f":"IF(WEEKDAY(KalendoriausDiena)=SavaitėsPradžiosReikšmė,CONCATENATE(\"Savaitė \",WEEKNUM(KalendoriausDiena),\"/Diena \",KalendoriausDiena-DATE(YEAR(KalendoriausDiena),1,0)),CONCATENATE(\"Diena \",KalendoriausDiena-DATE(YEAR(KalendoriausDiena),1,0)))","v":"Diena 139"}]
[]
[null,null,{"$f":"DienosIrSavaitės+DATE(KalendoriniaiMetai,5,1)-WEEKDAY(DATE(KalendoriniaiMetai,5,1),(SavaitėsPradžia=\"PR\")+1)+22","v":"2018-05-20"},"2018-05-21","2018-05-22","2018-05-23","2018-05-24","2018-05-25","2018-05-26"]
[null,null,{"$f":"IF(WEEKDAY(KalendoriausDiena)=SavaitėsPradžiosReikšmė,CONCATENATE(\"Savaitė \",WEEKNUM(KalendoriausDiena),\"/Diena \",KalendoriausDiena-DATE(YEAR(KalendoriausDiena),1,0)),CONCATENATE(\"Diena \",KalendoriausDiena-DATE(YEAR(KalendoriausDiena),1,0)))","v":"Savaitė 21/Diena 140"},{"$f":"IF(WEEKDAY(KalendoriausDiena)=SavaitėsPradžiosReikšmė,CONCATENATE(\"Savaitė \",WEEKNUM(KalendoriausDiena),\"/Diena \",KalendoriausDiena-DATE(YEAR(KalendoriausDiena),1,0)),CONCATENATE(\"Diena \",KalendoriausDiena-DATE(YEAR(KalendoriausDiena),1,0)))","v":"Diena 141"},{"$f":"IF(WEEKDAY(KalendoriausDiena)=SavaitėsPradžiosReikšmė,CONCATENATE(\"Savaitė \",WEEKNUM(KalendoriausDiena),\"/Diena \",KalendoriausDiena-DATE(YEAR(KalendoriausDiena),1,0)),CONCATENATE(\"Diena \",KalendoriausDiena-DATE(YEAR(KalendoriausDiena),1,0)))","v":"Diena 142"},{"$f":"IF(WEEKDAY(KalendoriausDiena)=SavaitėsPradžiosReikšmė,CONCATENATE(\"Savaitė \",WEEKNUM(KalendoriausDiena),\"/Diena \",KalendoriausDiena-DATE(YEAR(KalendoriausDiena),1,0)),CONCATENATE(\"Diena \",KalendoriausDiena-DATE(YEAR(KalendoriausDiena),1,0)))","v":"Diena 143"},{"$f":"IF(WEEKDAY(KalendoriausDiena)=SavaitėsPradžiosReikšmė,CONCATENATE(\"Savaitė \",WEEKNUM(KalendoriausDiena),\"/Diena \",KalendoriausDiena-DATE(YEAR(KalendoriausDiena),1,0)),CONCATENATE(\"Diena \",KalendoriausDiena-DATE(YEAR(KalendoriausDiena),1,0)))","v":"Diena 144"},{"$f":"IF(WEEKDAY(KalendoriausDiena)=SavaitėsPradžiosReikšmė,CONCATENATE(\"Savaitė \",WEEKNUM(KalendoriausDiena),\"/Diena \",KalendoriausDiena-DATE(YEAR(KalendoriausDiena),1,0)),CONCATENATE(\"Diena \",KalendoriausDiena-DATE(YEAR(KalendoriausDiena),1,0)))","v":"Diena 145"},{"$f":"IF(WEEKDAY(KalendoriausDiena)=SavaitėsPradžiosReikšmė,CONCATENATE(\"Savaitė \",WEEKNUM(KalendoriausDiena),\"/Diena \",KalendoriausDiena-DATE(YEAR(KalendoriausDiena),1,0)),CONCATENATE(\"Diena \",KalendoriausDiena-DATE(YEAR(KalendoriausDiena),1,0)))","v":"Diena 146"}]
[]
[null,null,{"$f":"DienosIrSavaitės+DATE(KalendoriniaiMetai,5,1)-WEEKDAY(DATE(KalendoriniaiMetai,5,1),(SavaitėsPradžia=\"PR\")+1)+29","v":"2018-05-27"},"2018-05-28","2018-05-29","2018-05-30","2018-05-31","2018-06-01","2018-06-02"]
[null,null,{"$f":"IF(WEEKDAY(KalendoriausDiena)=SavaitėsPradžiosReikšmė,CONCATENATE(\"Savaitė \",WEEKNUM(KalendoriausDiena),\"/Diena \",KalendoriausDiena-DATE(YEAR(KalendoriausDiena),1,0)),CONCATENATE(\"Diena \",KalendoriausDiena-DATE(YEAR(KalendoriausDiena),1,0)))","v":"Savaitė 22/Diena 147"},{"$f":"IF(WEEKDAY(KalendoriausDiena)=SavaitėsPradžiosReikšmė,CONCATENATE(\"Savaitė \",WEEKNUM(KalendoriausDiena),\"/Diena \",KalendoriausDiena-DATE(YEAR(KalendoriausDiena),1,0)),CONCATENATE(\"Diena \",KalendoriausDiena-DATE(YEAR(KalendoriausDiena),1,0)))","v":"Diena 148"},{"$f":"IF(WEEKDAY(KalendoriausDiena)=SavaitėsPradžiosReikšmė,CONCATENATE(\"Savaitė \",WEEKNUM(KalendoriausDiena),\"/Diena \",KalendoriausDiena-DATE(YEAR(KalendoriausDiena),1,0)),CONCATENATE(\"Diena \",KalendoriausDiena-DATE(YEAR(KalendoriausDiena),1,0)))","v":"Diena 149"},{"$f":"IF(WEEKDAY(KalendoriausDiena)=SavaitėsPradžiosReikšmė,CONCATENATE(\"Savaitė \",WEEKNUM(KalendoriausDiena),\"/Diena \",KalendoriausDiena-DATE(YEAR(KalendoriausDiena),1,0)),CONCATENATE(\"Diena \",KalendoriausDiena-DATE(YEAR(KalendoriausDiena),1,0)))","v":"Diena 150"},{"$f":"IF(WEEKDAY(KalendoriausDiena)=SavaitėsPradžiosReikšmė,CONCATENATE(\"Savaitė \",WEEKNUM(KalendoriausDiena),\"/Diena \",KalendoriausDiena-DATE(YEAR(KalendoriausDiena),1,0)),CONCATENATE(\"Diena \",KalendoriausDiena-DATE(YEAR(KalendoriausDiena),1,0)))","v":"Diena 151"},{"$f":"IF(WEEKDAY(KalendoriausDiena)=SavaitėsPradžiosReikšmė,CONCATENATE(\"Savaitė \",WEEKNUM(KalendoriausDiena),\"/Diena \",KalendoriausDiena-DATE(YEAR(KalendoriausDiena),1,0)),CONCATENATE(\"Diena \",KalendoriausDiena-DATE(YEAR(KalendoriausDiena),1,0)))","v":"Diena 152"},{"$f":"IF(WEEKDAY(KalendoriausDiena)=SavaitėsPradžiosReikšmė,CONCATENATE(\"Savaitė \",WEEKNUM(KalendoriausDiena),\"/Diena \",KalendoriausDiena-DATE(YEAR(KalendoriausDiena),1,0)),CONCATENATE(\"Diena \",KalendoriausDiena-DATE(YEAR(KalendoriausDiena),1,0)))","v":"Diena 153"}]
[{"$nulls":4},"PASTABOS"]
[]
[null,null,{"$f":"DienosIrSavaitės+DATE(KalendoriniaiMetai,5,1)-WEEKDAY(DATE(KalendoriniaiMetai,5,1),(SavaitėsPradžia=\"PR\")+1)+36","v":"2018-06-03"},"2018-06-04"]
[null,null,{"$f":"IF(WEEKDAY(KalendoriausDiena)=SavaitėsPradžiosReikšmė,CONCATENATE(\"Savaitė \",WEEKNUM(KalendoriausDiena),\"/Diena \",KalendoriausDiena-DATE(YEAR(KalendoriausDiena),1,0)),CONCATENATE(\"Diena \",KalendoriausDiena-DATE(YEAR(KalendoriausDiena),1,0)))","v":"Savaitė 23/Diena 154"},{"$f":"IF(WEEKDAY(KalendoriausDiena)=SavaitėsPradžiosReikšmė,CONCATENATE(\"Savaitė \",WEEKNUM(KalendoriausDiena),\"/Diena \",KalendoriausDiena-DATE(YEAR(KalendoriausDiena),1,0)),CONCATENATE(\"Diena \",KalendoriausDiena-DATE(YEAR(KalendoriausDiena),1,0)))","v":"Diena 155"}]

{"sheet":"BIR","index":5,"n_rows":20,"n_cols":9,"rows_kept":20,"merged":[[16,2,17,2],[17,4,19,8]]}
[null,"BIR",{"$f":"UPPER(TEXT(SavaitėsPradžia,\"ddd\"))","v":"SK"},{"$f":"UPPER(TEXT(D3,\"aaa\"))","v":"PR"},"AN","TR","KT","PN","ŠT"]
[null,{"$f":"KalendoriniaiMetai","v":2018}]
[null,null,{"$f":"DienosIrSavaitės+DATE(KalendoriniaiMetai,6,1)-WEEKDAY(DATE(KalendoriniaiMetai,6,1),(SavaitėsPradžia=\"PR\")+1)+1","v":"2018-05-27"},"2018-05-28","2018-05-29","2018-05-30","2018-05-31","2018-06-01","2018-06-02"]
[null,null,{"$f":"IF(DAY(KalendoriausDiena)=1,CONCATENATE(\"Savaitė \",WEEKNUM(KalendoriausDiena),\"/Diena \",KalendoriausDiena-DATE(YEAR(KalendoriausDiena),1,0)),CONCATENATE(\"Diena \",KalendoriausDiena-DATE(YEAR(KalendoriausDiena),1,0)))","v":"Diena 147"},{"$f":"IF(DAY(KalendoriausDiena)=1,CONCATENATE(\"Savaitė \",WEEKNUM(KalendoriausDiena),\"/Diena \",KalendoriausDiena-DATE(YEAR(KalendoriausDiena),1,0)),CONCATENATE(\"Diena \",KalendoriausDiena-DATE(YEAR(KalendoriausDiena),1,0)))","v":"Diena 148"},{"$f":"IF(DAY(KalendoriausDiena)=1,CONCATENATE(\"Savaitė \",WEEKNUM(KalendoriausDiena),\"/Diena \",KalendoriausDiena-DATE(YEAR(KalendoriausDiena),1,0)),CONCATENATE(\"Diena \",KalendoriausDiena-DATE(YEAR(KalendoriausDiena),1,0)))","v":"Diena 149"},{"$f":"IF(DAY(KalendoriausDiena)=1,CONCATENATE(\"Savaitė \",WEEKNUM(KalendoriausDiena),\"/Diena \",KalendoriausDiena-DATE(YEAR(KalendoriausDiena),1,0)),CONCATENATE(\"Diena \",KalendoriausDiena-DATE(YEAR(KalendoriausDiena),1,0)))","v":"Diena 150"},{"$f":"IF(DAY(KalendoriausDiena)=1,CONCATENATE(\"Savaitė \",WEEKNUM(KalendoriausDiena),\"/Diena \",KalendoriausDiena-DATE(YEAR(KalendoriausDiena),1,0)),CONCATENATE(\"Diena \",KalendoriausDiena-DATE(YEAR(KalendoriausDiena),1,0)))","v":"Diena 151"},{"$f":"IF(DAY(KalendoriausDiena)=1,CONCATENATE(\"Savaitė \",WEEKNUM(KalendoriausDiena),\"/Diena \",KalendoriausDiena-DATE(YEAR(KalendoriausDiena),1,0)),CONCATENATE(\"Diena \",KalendoriausDiena-DATE(YEAR(KalendoriausDiena),1,0)))","v":"Savaitė 22/Diena 152"},{"$f":"IF(DAY(KalendoriausDiena)=1,CONCATENATE(\"Savaitė \",WEEKNUM(KalendoriausDiena),\"/Diena \",KalendoriausDiena-DATE(YEAR(KalendoriausDiena),1,0)),CONCATENATE(\"Diena \",KalendoriausDiena-DATE(YEAR(KalendoriausDiena),1,0)))","v":"Diena 153"}]
[]
[null,null,{"$f":"DienosIrSavaitės+DATE(KalendoriniaiMetai,6,1)-WEEKDAY(DATE(KalendoriniaiMetai,6,1),(SavaitėsPradžia=\"PR\")+1)+8","v":"2018-06-03"},"2018-06-04","2018-06-05","2018-06-06","2018-06-07","2018-06-08","2018-06-09"]
[null,null,{"$f":"IF(WEEKDAY(KalendoriausDiena)=SavaitėsPradžiosReikšmė,CONCATENATE(\"Savaitė \",WEEKNUM(KalendoriausDiena),\"/Diena \",KalendoriausDiena-DATE(YEAR(KalendoriausDiena),1,0)),CONCATENATE(\"Diena \",KalendoriausDiena-DATE(YEAR(KalendoriausDiena),1,0)))","v":"Savaitė 23/Diena 154"},{"$f":"IF(WEEKDAY(KalendoriausDiena)=SavaitėsPradžiosReikšmė,CONCATENATE(\"Savaitė \",WEEKNUM(KalendoriausDiena),\"/Diena \",KalendoriausDiena-DATE(YEAR(KalendoriausDiena),1,0)),CONCATENATE(\"Diena \",KalendoriausDiena-DATE(YEAR(KalendoriausDiena),1,0)))","v":"Diena 155"},{"$f":"IF(WEEKDAY(KalendoriausDiena)=SavaitėsPradžiosReikšmė,CONCATENATE(\"Savaitė \",WEEKNUM(KalendoriausDiena),\"/Diena \",KalendoriausDiena-DATE(YEAR(KalendoriausDiena),1,0)),CONCATENATE(\"Diena \",KalendoriausDiena-DATE(YEAR(KalendoriausDiena),1,0)))","v":"Diena 156"},{"$f":"IF(WEEKDAY(KalendoriausDiena)=SavaitėsPradžiosReikšmė,CONCATENATE(\"Savaitė \",WEEKNUM(KalendoriausDiena),\"/Diena \",KalendoriausDiena-DATE(YEAR(KalendoriausDiena),1,0)),CONCATENATE(\"Diena \",KalendoriausDiena-DATE(YEAR(KalendoriausDiena),1,0)))","v":"Diena 157"},{"$f":"IF(WEEKDAY(KalendoriausDiena)=SavaitėsPradžiosReikšmė,CONCATENATE(\"Savaitė \",WEEKNUM(KalendoriausDiena),\"/Diena \",KalendoriausDiena-DATE(YEAR(KalendoriausDiena),1,0)),CONCATENATE(\"Diena \",KalendoriausDiena-DATE(YEAR(KalendoriausDiena),1,0)))","v":"Diena 158"},{"$f":"IF(WEEKDAY(KalendoriausDiena)=SavaitėsPradžiosReikšmė,CONCATENATE(\"Savaitė \",WEEKNUM(KalendoriausDiena),\"/Diena \",KalendoriausDiena-DATE(YEAR(KalendoriausDiena),1,0)),CONCATENATE(\"Diena \",KalendoriausDiena-DATE(YEAR(KalendoriausDiena),1,0)))","v":"Diena 159"},{"$f":"IF(WEEKDAY(KalendoriausDiena)=SavaitėsPradžiosReikšmė,CONCATENATE(\"Savaitė \",WEEKNUM(KalendoriausDiena),\"/Diena \",KalendoriausDiena-DATE(YEAR(KalendoriausDiena),1,0)),CONCATENATE(\"Diena \",KalendoriausDiena-DATE(YEAR(KalendoriausDiena),1,0)))","v":"Diena 160"}]
[]
[null,null,{"$f":"DienosIrSavaitės+DATE(KalendoriniaiMetai,6,1)-WEEKDAY(DATE(KalendoriniaiMetai,6,1),(SavaitėsPradžia=\"PR\")+1)+15","v":"2018-06-10"},"2018-06-11","2018-06-12","2018-06-13","2018-06-14","2018-06-15","2018-06-16"]
[null,null,{"$f":"IF(WEEKDAY(KalendoriausDiena)=SavaitėsPradžiosReikšmė,CONCATENATE(\"Savaitė \",WEEKNUM(KalendoriausDiena),\"/Diena \",KalendoriausDiena-DATE(YEAR(KalendoriausDiena),1,0)),CONCATENATE(\"Diena \",KalendoriausDiena-DATE(YEAR(KalendoriausDiena),1,0)))","v":"Savaitė 24/Diena 161"},{"$f":"IF(WEEKDAY(KalendoriausDiena)=SavaitėsPradžiosReikšmė,CONCATENATE(\"Savaitė \",WEEKNUM(KalendoriausDiena),\"/Diena \",KalendoriausDiena-DATE(YEAR(KalendoriausDiena),1,0)),CONCATENATE(\"Diena \",KalendoriausDiena-DATE(YEAR(KalendoriausDiena),1,0)))","v":"Diena 162"},{"$f":"IF(WEEKDAY(KalendoriausDiena)=SavaitėsPradžiosReikšmė,CONCATENATE(\"Savaitė \",WEEKNUM(KalendoriausDiena),\"/Diena \",KalendoriausDiena-DATE(YEAR(KalendoriausDiena),1,0)),CONCATENATE(\"Diena \",KalendoriausDiena-DATE(YEAR(KalendoriausDiena),1,0)))","v":"Diena 163"},{"$f":"IF(WEEKDAY(KalendoriausDiena)=SavaitėsPradžiosReikšmė,CONCATENATE(\"Savaitė \",WEEKNUM(KalendoriausDiena),\"/Diena \",KalendoriausDiena-DATE(YEAR(KalendoriausDiena),1,0)),CONCATENATE(\"Diena \",KalendoriausDiena-DATE(YEAR(KalendoriausDiena),1,0)))","v":"Diena 164"},{"$f":"IF(WEEKDAY(KalendoriausDiena)=SavaitėsPradžiosReikšmė,CONCATENATE(\"Savaitė \",WEEKNUM(KalendoriausDiena),\"/Diena \",KalendoriausDiena-DATE(YEAR(KalendoriausDiena),1,0)),CONCATENATE(\"Diena \",KalendoriausDiena-DATE(YEAR(KalendoriausDiena),1,0)))","v":"Diena 165"},{"$f":"IF(WEEKDAY(KalendoriausDiena)=SavaitėsPradžiosReikšmė,CONCATENATE(\"Savaitė \",WEEKNUM(KalendoriausDiena),\"/Diena \",KalendoriausDiena-DATE(YEAR(KalendoriausDiena),1,0)),CONCATENATE(\"Diena \",KalendoriausDiena-DATE(YEAR(KalendoriausDiena),1,0)))","v":"Diena 166"},{"$f":"IF(WEEKDAY(KalendoriausDiena)=SavaitėsPradžiosReikšmė,CONCATENATE(\"Savaitė \",WEEKNUM(KalendoriausDiena),\"/Diena \",KalendoriausDiena-DATE(YEAR(KalendoriausDiena),1,0)),CONCATENATE(\"Diena \",KalendoriausDiena-DATE(YEAR(KalendoriausDiena),1,0)))","v":"Diena 167"}]
[]
[null,null,{"$f":"DienosIrSavaitės+DATE(KalendoriniaiMetai,6,1)-WEEKDAY(DATE(KalendoriniaiMetai,6,1),(SavaitėsPradžia=\"PR\")+1)+22","v":"2018-06-17"},"2018-06-18","2018-06-19","2018-06-20","2018-06-21","2018-06-22","2018-06-23"]
[null,null,{"$f":"IF(WEEKDAY(KalendoriausDiena)=SavaitėsPradžiosReikšmė,CONCATENATE(\"Savaitė \",WEEKNUM(KalendoriausDiena),\"/Diena \",KalendoriausDiena-DATE(YEAR(KalendoriausDiena),1,0)),CONCATENATE(\"Diena \",KalendoriausDiena-DATE(YEAR(KalendoriausDiena),1,0)))","v":"Savaitė 25/Diena 168"},{"$f":"IF(WEEKDAY(KalendoriausDiena)=SavaitėsPradžiosReikšmė,CONCATENATE(\"Savaitė \",WEEKNUM(KalendoriausDiena),\"/Diena \",KalendoriausDiena-DATE(YEAR(KalendoriausDiena),1,0)),CONCATENATE(\"Diena \",KalendoriausDiena-DATE(YEAR(KalendoriausDiena),1,0)))","v":"Diena 169"},{"$f":"IF(WEEKDAY(KalendoriausDiena)=SavaitėsPradžiosReikšmė,CONCATENATE(\"Savaitė \",WEEKNUM(KalendoriausDiena),\"/Diena \",KalendoriausDiena-DATE(YEAR(KalendoriausDiena),1,0)),CONCATENATE(\"Diena \",KalendoriausDiena-DATE(YEAR(KalendoriausDiena),1,0)))","v":"Diena 170"},{"$f":"IF(WEEKDAY(KalendoriausDiena)=SavaitėsPradžiosReikšmė,CONCATENATE(\"Savaitė \",WEEKNUM(KalendoriausDiena),\"/Diena \",KalendoriausDiena-DATE(YEAR(KalendoriausDiena),1,0)),CONCATENATE(\"Diena \",KalendoriausDiena-DATE(YEAR(KalendoriausDiena),1,0)))","v":"Diena 171"},{"$f":"IF(WEEKDAY(KalendoriausDiena)=SavaitėsPradžiosReikšmė,CONCATENATE(\"Savaitė \",WEEKNUM(KalendoriausDiena),\"/Diena \",KalendoriausDiena-DATE(YEAR(KalendoriausDiena),1,0)),CONCATENATE(\"Diena \",KalendoriausDiena-DATE(YEAR(KalendoriausDiena),1,0)))","v":"Diena 172"},{"$f":"IF(WEEKDAY(KalendoriausDiena)=SavaitėsPradžiosReikšmė,CONCATENATE(\"Savaitė \",WEEKNUM(KalendoriausDiena),\"/Diena \",KalendoriausDiena-DATE(YEAR(KalendoriausDiena),1,0)),CONCATENATE(\"Diena \",KalendoriausDiena-DATE(YEAR(KalendoriausDiena),1,0)))","v":"Diena 173"},{"$f":"IF(WEEKDAY(KalendoriausDiena)=SavaitėsPradžiosReikšmė,CONCATENATE(\"Savaitė \",WEEKNUM(KalendoriausDiena),\"/Diena \",KalendoriausDiena-DATE(YEAR(KalendoriausDiena),1,0)),CONCATENATE(\"Diena \",KalendoriausDiena-DATE(YEAR(KalendoriausDiena),1,0)))","v":"Diena 174"}]
[]
[null,null,{"$f":"DienosIrSavaitės+DATE(KalendoriniaiMetai,6,1)-WEEKDAY(DATE(KalendoriniaiMetai,6,1),(SavaitėsPradžia=\"PR\")+1)+29","v":"2018-06-24"},"2018-06-25","2018-06-26","2018-06-27","2018-06-28","2018-06-29","2018-06-30"]
[null,null,{"$f":"IF(WEEKDAY(KalendoriausDiena)=SavaitėsPradžiosReikšmė,CONCATENATE(\"Savaitė \",WEEKNUM(KalendoriausDiena),\"/Diena \",KalendoriausDiena-DATE(YEAR(KalendoriausDiena),1,0)),CONCATENATE(\"Diena \",KalendoriausDiena-DATE(YEAR(KalendoriausDiena),1,0)))","v":"Savaitė 26/Diena 175"},{"$f":"IF(WEEKDAY(KalendoriausDiena)=SavaitėsPradžiosReikšmė,CONCATENATE(\"Savaitė \",WEEKNUM(KalendoriausDiena),\"/Diena \",KalendoriausDiena-DATE(YEAR(KalendoriausDiena),1,0)),CONCATENATE(\"Diena \",KalendoriausDiena-DATE(YEAR(KalendoriausDiena),1,0)))","v":"Diena 176"},{"$f":"IF(WEEKDAY(KalendoriausDiena)=SavaitėsPradžiosReikšmė,CONCATENATE(\"Savaitė \",WEEKNUM(KalendoriausDiena),\"/Diena \",KalendoriausDiena-DATE(YEAR(KalendoriausDiena),1,0)),CONCATENATE(\"Diena \",KalendoriausDiena-DATE(YEAR(KalendoriausDiena),1,0)))","v":"Diena 177"},{"$f":"IF(WEEKDAY(KalendoriausDiena)=SavaitėsPradžiosReikšmė,CONCATENATE(\"Savaitė \",WEEKNUM(KalendoriausDiena),\"/Diena \",KalendoriausDiena-DATE(YEAR(KalendoriausDiena),1,0)),CONCATENATE(\"Diena \",KalendoriausDiena-DATE(YEAR(KalendoriausDiena),1,0)))","v":"Diena 178"},{"$f":"IF(WEEKDAY(KalendoriausDiena)=SavaitėsPradžiosReikšmė,CONCATENATE(\"Savaitė \",WEEKNUM(KalendoriausDiena),\"/Diena \",KalendoriausDiena-DATE(YEAR(KalendoriausDiena),1,0)),CONCATENATE(\"Diena \",KalendoriausDiena-DATE(YEAR(KalendoriausDiena),1,0)))","v":"Diena 179"},{"$f":"IF(WEEKDAY(KalendoriausDiena)=SavaitėsPradžiosReikšmė,CONCATENATE(\"Savaitė \",WEEKNUM(KalendoriausDiena),\"/Diena \",KalendoriausDiena-DATE(YEAR(KalendoriausDiena),1,0)),CONCATENATE(\"Diena \",KalendoriausDiena-DATE(YEAR(KalendoriausDiena),1,0)))","v":"Diena 180"},{"$f":"IF(WEEKDAY(KalendoriausDiena)=SavaitėsPradžiosReikšmė,CONCATENATE(\"Savaitė \",WEEKNUM(KalendoriausDiena),\"/Diena \",KalendoriausDiena-DATE(YEAR(KalendoriausDiena),1,0)),CONCATENATE(\"Diena \",KalendoriausDiena-DATE(YEAR(KalendoriausDiena),1,0)))","v":"Diena 181"}]
[{"$nulls":4},"PASTABOS"]
[]
[null,null,{"$f":"DienosIrSavaitės+DATE(KalendoriniaiMetai,6,1)-WEEKDAY(DATE(KalendoriniaiMetai,6,1),(SavaitėsPradžia=\"PR\")+1)+36","v":"2018-07-01"},"2018-07-02"]
[null,null,{"$f":"IF(WEEKDAY(KalendoriausDiena)=SavaitėsPradžiosReikšmė,CONCATENATE(\"Savaitė \",WEEKNUM(KalendoriausDiena),\"/Diena \",KalendoriausDiena-DATE(YEAR(KalendoriausDiena),1,0)),CONCATENATE(\"Diena \",KalendoriausDiena-DATE(YEAR(KalendoriausDiena),1,0)))","v":"Savaitė 27/Diena 182"},{"$f":"IF(WEEKDAY(KalendoriausDiena)=SavaitėsPradžiosReikšmė,CONCATENATE(\"Savaitė \",WEEKNUM(KalendoriausDiena),\"/Diena \",KalendoriausDiena-DATE(YEAR(KalendoriausDiena),1,0)),CONCATENATE(\"Diena \",KalendoriausDiena-DATE(YEAR(KalendoriausDiena),1,0)))","v":"Diena 183"}]

{"sheet":"LIE","index":6,"n_rows":20,"n_cols":9,"rows_kept":20,"merged":[[16,2,17,2],[17,4,19,8]]}
[null,"LIE",{"$f":"UPPER(TEXT(SavaitėsPradžia,\"ddd\"))","v":"SK"},{"$f":"UPPER(TEXT(D3,\"aaa\"))","v":"PR"},"AN","TR","KT","PN","ŠT"]
[null,{"$f":"KalendoriniaiMetai","v":2018}]
[null,null,{"$f":"DienosIrSavaitės+DATE(KalendoriniaiMetai,7,1)-WEEKDAY(DATE(KalendoriniaiMetai,7,1),(SavaitėsPradžia=\"PR\")+1)+1","v":"2018-07-01"},"2018-07-02","2018-07-03","2018-07-04","2018-07-05","2018-07-06","2018-07-07"]
[null,null,{"$f":"IF(DAY(KalendoriausDiena)=1,CONCATENATE(\"Savaitė \",WEEKNUM(KalendoriausDiena),\"/Diena \",KalendoriausDiena-DATE(YEAR(KalendoriausDiena),1,0)),CONCATENATE(\"Diena \",KalendoriausDiena-DATE(YEAR(KalendoriausDiena),1,0)))","v":"Savaitė 27/Diena 182"},{"$f":"IF(DAY(KalendoriausDiena)=1,CONCATENATE(\"Savaitė \",WEEKNUM(KalendoriausDiena),\"/Diena \",KalendoriausDiena-DATE(YEAR(KalendoriausDiena),1,0)),CONCATENATE(\"Diena \",KalendoriausDiena-DATE(YEAR(KalendoriausDiena),1,0)))","v":"Diena 183"},{"$f":"IF(DAY(KalendoriausDiena)=1,CONCATENATE(\"Savaitė \",WEEKNUM(KalendoriausDiena),\"/Diena \",KalendoriausDiena-DATE(YEAR(KalendoriausDiena),1,0)),CONCATENATE(\"Diena \",KalendoriausDiena-DATE(YEAR(KalendoriausDiena),1,0)))","v":"Diena 184"},{"$f":"IF(DAY(KalendoriausDiena)=1,CONCATENATE(\"Savaitė \",WEEKNUM(KalendoriausDiena),\"/Diena \",KalendoriausDiena-DATE(YEAR(KalendoriausDiena),1,0)),CONCATENATE(\"Diena \",KalendoriausDiena-DATE(YEAR(KalendoriausDiena),1,0)))","v":"Diena 185"},{"$f":"IF(DAY(KalendoriausDiena)=1,CONCATENATE(\"Savaitė \",WEEKNUM(KalendoriausDiena),\"/Diena \",KalendoriausDiena-DATE(YEAR(KalendoriausDiena),1,0)),CONCATENATE(\"Diena \",KalendoriausDiena-DATE(YEAR(KalendoriausDiena),1,0)))","v":"Diena 186"},{"$f":"IF(DAY(KalendoriausDiena)=1,CONCATENATE(\"Savaitė \",WEEKNUM(KalendoriausDiena),\"/Diena \",KalendoriausDiena-DATE(YEAR(KalendoriausDiena),1,0)),CONCATENATE(\"Diena \",KalendoriausDiena-DATE(YEAR(KalendoriausDiena),1,0)))","v":"Diena 187"},{"$f":"IF(DAY(KalendoriausDiena)=1,CONCATENATE(\"Savaitė \",WEEKNUM(KalendoriausDiena),\"/Diena \",KalendoriausDiena-DATE(YEAR(KalendoriausDiena),1,0)),CONCATENATE(\"Diena \",KalendoriausDiena-DATE(YEAR(KalendoriausDiena),1,0)))","v":"Diena 188"}]
[]
[null,null,{"$f":"DienosIrSavaitės+DATE(KalendoriniaiMetai,7,1)-WEEKDAY(DATE(KalendoriniaiMetai,7,1),(SavaitėsPradžia=\"PR\")+1)+8","v":"2018-07-08"},"2018-07-09","2018-07-10","2018-07-11","2018-07-12","2018-07-13","2018-07-14"]
[null,null,{"$f":"IF(WEEKDAY(KalendoriausDiena)=SavaitėsPradžiosReikšmė,CONCATENATE(\"Savaitė \",WEEKNUM(KalendoriausDiena),\"/Diena \",KalendoriausDiena-DATE(YEAR(KalendoriausDiena),1,0)),CONCATENATE(\"Diena \",KalendoriausDiena-DATE(YEAR(KalendoriausDiena),1,0)))","v":"Savaitė 28/Diena 189"},{"$f":"IF(WEEKDAY(KalendoriausDiena)=SavaitėsPradžiosReikšmė,CONCATENATE(\"Savaitė \",WEEKNUM(KalendoriausDiena),\"/Diena \",KalendoriausDiena-DATE(YEAR(KalendoriausDiena),1,0)),CONCATENATE(\"Diena \",KalendoriausDiena-DATE(YEAR(KalendoriausDiena),1,0)))","v":"Diena 190"},{"$f":"IF(WEEKDAY(KalendoriausDiena)=SavaitėsPradžiosReikšmė,CONCATENATE(\"Savaitė \",WEEKNUM(KalendoriausDiena),\"/Diena \",KalendoriausDiena-DATE(YEAR(KalendoriausDiena),1,0)),CONCATENATE(\"Diena \",KalendoriausDiena-DATE(YEAR(KalendoriausDiena),1,0)))","v":"Diena 191"},{"$f":"IF(WEEKDAY(KalendoriausDiena)=SavaitėsPradžiosReikšmė,CONCATENATE(\"Savaitė \",WEEKNUM(KalendoriausDiena),\"/Diena \",KalendoriausDiena-DATE(YEAR(KalendoriausDiena),1,0)),CONCATENATE(\"Diena \",KalendoriausDiena-DATE(YEAR(KalendoriausDiena),1,0)))","v":"Diena 192"},{"$f":"IF(WEEKDAY(KalendoriausDiena)=SavaitėsPradžiosReikšmė,CONCATENATE(\"Savaitė \",WEEKNUM(KalendoriausDiena),\"/Diena \",KalendoriausDiena-DATE(YEAR(KalendoriausDiena),1,0)),CONCATENATE(\"Diena \",KalendoriausDiena-DATE(YEAR(KalendoriausDiena),1,0)))","v":"Diena 193"},{"$f":"IF(WEEKDAY(KalendoriausDiena)=SavaitėsPradžiosReikšmė,CONCATENATE(\"Savaitė \",WEEKNUM(KalendoriausDiena),\"/Diena \",KalendoriausDiena-DATE(YEAR(KalendoriausDiena),1,0)),CONCATENATE(\"Diena \",KalendoriausDiena-DATE(YEAR(KalendoriausDiena),1,0)))","v":"Diena 194"},{"$f":"IF(WEEKDAY(KalendoriausDiena)=SavaitėsPradžiosReikšmė,CONCATENATE(\"Savaitė \",WEEKNUM(KalendoriausDiena),\"/Diena \",KalendoriausDiena-DATE(YEAR(KalendoriausDiena),1,0)),CONCATENATE(\"Diena \",KalendoriausDiena-DATE(YEAR(KalendoriausDiena),1,0)))","v":"Diena 195"}]
[]
[null,null,{"$f":"DienosIrSavaitės+DATE(KalendoriniaiMetai,7,1)-WEEKDAY(DATE(KalendoriniaiMetai,7,1),(SavaitėsPradžia=\"PR\")+1)+15","v":"2018-07-15"},"2018-07-16","2018-07-17","2018-07-18","2018-07-19","2018-07-20","2018-07-21"]
[null,null,{"$f":"IF(WEEKDAY(KalendoriausDiena)=SavaitėsPradžiosReikšmė,CONCATENATE(\"Savaitė \",WEEKNUM(KalendoriausDiena),\"/Diena \",KalendoriausDiena-DATE(YEAR(KalendoriausDiena),1,0)),CONCATENATE(\"Diena \",KalendoriausDiena-DATE(YEAR(KalendoriausDiena),1,0)))","v":"Savaitė 29/Diena 196"},{"$f":"IF(WEEKDAY(KalendoriausDiena)=SavaitėsPradžiosReikšmė,CONCATENATE(\"Savaitė \",WEEKNUM(KalendoriausDiena),\"/Diena \",KalendoriausDiena-DATE(YEAR(KalendoriausDiena),1,0)),CONCATENATE(\"Diena \",KalendoriausDiena-DATE(YEAR(KalendoriausDiena),1,0)))","v":"Diena 197"},{"$f":"IF(WEEKDAY(KalendoriausDiena)=SavaitėsPradžiosReikšmė,CONCATENATE(\"Savaitė \",WEEKNUM(KalendoriausDiena),\"/Diena \",KalendoriausDiena-DATE(YEAR(KalendoriausDiena),1,0)),CONCATENATE(\"Diena \",KalendoriausDiena-DATE(YEAR(KalendoriausDiena),1,0)))","v":"Diena 198"},{"$f":"IF(WEEKDAY(KalendoriausDiena)=SavaitėsPradžiosReikšmė,CONCATENATE(\"Savaitė \",WEEKNUM(KalendoriausDiena),\"/Diena \",KalendoriausDiena-DATE(YEAR(KalendoriausDiena),1,0)),CONCATENATE(\"Diena \",KalendoriausDiena-DATE(YEAR(KalendoriausDiena),1,0)))","v":"Diena 199"},{"$f":"IF(WEEKDAY(KalendoriausDiena)=SavaitėsPradžiosReikšmė,CONCATENATE(\"Savaitė \",WEEKNUM(KalendoriausDiena),\"/Diena \",KalendoriausDiena-DATE(YEAR(KalendoriausDiena),1,0)),CONCATENATE(\"Diena \",KalendoriausDiena-DATE(YEAR(KalendoriausDiena),1,0)))","v":"Diena 200"},{"$f":"IF(WEEKDAY(KalendoriausDiena)=SavaitėsPradžiosReikšmė,CONCATENATE(\"Savaitė \",WEEKNUM(KalendoriausDiena),\"/Diena \",KalendoriausDiena-DATE(YEAR(KalendoriausDiena),1,0)),CONCATENATE(\"Diena \",KalendoriausDiena-DATE(YEAR(KalendoriausDiena),1,0)))","v":"Diena 201"},{"$f":"IF(WEEKDAY(KalendoriausDiena)=SavaitėsPradžiosReikšmė,CONCATENATE(\"Savaitė \",WEEKNUM(KalendoriausDiena),\"/Diena \",KalendoriausDiena-DATE(YEAR(KalendoriausDiena),1,0)),CONCATENATE(\"Diena \",KalendoriausDiena-DATE(YEAR(KalendoriausDiena),1,0)))","v":"Diena 202"}]
[]
[null,null,{"$f":"DienosIrSavaitės+DATE(KalendoriniaiMetai,7,1)-WEEKDAY(DATE(KalendoriniaiMetai,7,1),(SavaitėsPradžia=\"PR\")+1)+22","v":"2018-07-22"},"2018-07-23","2018-07-24","2018-07-25","2018-07-26","2018-07-27","2018-07-28"]
[null,null,{"$f":"IF(WEEKDAY(KalendoriausDiena)=SavaitėsPradžiosReikšmė,CONCATENATE(\"Savaitė \",WEEKNUM(KalendoriausDiena),\"/Diena \",KalendoriausDiena-DATE(YEAR(KalendoriausDiena),1,0)),CONCATENATE(\"Diena \",KalendoriausDiena-DATE(YEAR(KalendoriausDiena),1,0)))","v":"Savaitė 30/Diena 203"},{"$f":"IF(WEEKDAY(KalendoriausDiena)=SavaitėsPradžiosReikšmė,CONCATENATE(\"Savaitė \",WEEKNUM(KalendoriausDiena),\"/Diena \",KalendoriausDiena-DATE(YEAR(KalendoriausDiena),1,0)),CONCATENATE(\"Diena \",KalendoriausDiena-DATE(YEAR(KalendoriausDiena),1,0)))","v":"Diena 204"},{"$f":"IF(WEEKDAY(KalendoriausDiena)=SavaitėsPradžiosReikšmė,CONCATENATE(\"Savaitė \",WEEKNUM(KalendoriausDiena),\"/Diena \",KalendoriausDiena-DATE(YEAR(KalendoriausDiena),1,0)),CONCATENATE(\"Diena \",KalendoriausDiena-DATE(YEAR(KalendoriausDiena),1,0)))","v":"Diena 205"},{"$f":"IF(WEEKDAY(KalendoriausDiena)=SavaitėsPradžiosReikšmė,CONCATENATE(\"Savaitė \",WEEKNUM(KalendoriausDiena),\"/Diena \",KalendoriausDiena-DATE(YEAR(KalendoriausDiena),1,0)),CONCATENATE(\"Diena \",KalendoriausDiena-DATE(YEAR(KalendoriausDiena),1,0)))","v":"Diena 206"},{"$f":"IF(WEEKDAY(KalendoriausDiena)=SavaitėsPradžiosReikšmė,CONCATENATE(\"Savaitė \",WEEKNUM(KalendoriausDiena),\"/Diena \",KalendoriausDiena-DATE(YEAR(KalendoriausDiena),1,0)),CONCATENATE(\"Diena \",KalendoriausDiena-DATE(YEAR(KalendoriausDiena),1,0)))","v":"Diena 207"},{"$f":"IF(WEEKDAY(KalendoriausDiena)=SavaitėsPradžiosReikšmė,CONCATENATE(\"Savaitė \",WEEKNUM(KalendoriausDiena),\"/Diena \",KalendoriausDiena-DATE(YEAR(KalendoriausDiena),1,0)),CONCATENATE(\"Diena \",KalendoriausDiena-DATE(YEAR(KalendoriausDiena),1,0)))","v":"Diena 208"},{"$f":"IF(WEEKDAY(KalendoriausDiena)=SavaitėsPradžiosReikšmė,CONCATENATE(\"Savaitė \",WEEKNUM(KalendoriausDiena),\"/Diena \",KalendoriausDiena-DATE(YEAR(KalendoriausDiena),1,0)),CONCATENATE(\"Diena \",KalendoriausDiena-DATE(YEAR(KalendoriausDiena),1,0)))","v":"Diena 209"}]
[]
[null,null,{"$f":"DienosIrSavaitės+DATE(KalendoriniaiMetai,7,1)-WEEKDAY(DATE(KalendoriniaiMetai,7,1),(SavaitėsPradžia=\"PR\")+1)+29","v":"2018-07-29"},"2018-07-30","2018-07-31","2018-08-01","2018-08-02","2018-08-03","2018-08-04"]
[null,null,{"$f":"IF(WEEKDAY(KalendoriausDiena)=SavaitėsPradžiosReikšmė,CONCATENATE(\"Savaitė \",WEEKNUM(KalendoriausDiena),\"/Diena \",KalendoriausDiena-DATE(YEAR(KalendoriausDiena),1,0)),CONCATENATE(\"Diena \",KalendoriausDiena-DATE(YEAR(KalendoriausDiena),1,0)))","v":"Savaitė 31/Diena 210"},{"$f":"IF(WEEKDAY(KalendoriausDiena)=SavaitėsPradžiosReikšmė,CONCATENATE(\"Savaitė \",WEEKNUM(KalendoriausDiena),\"/Diena \",KalendoriausDiena-DATE(YEAR(KalendoriausDiena),1,0)),CONCATENATE(\"Diena \",KalendoriausDiena-DATE(YEAR(KalendoriausDiena),1,0)))","v":"Diena 211"},{"$f":"IF(WEEKDAY(KalendoriausDiena)=SavaitėsPradžiosReikšmė,CONCATENATE(\"Savaitė \",WEEKNUM(KalendoriausDiena),\"/Diena \",KalendoriausDiena-DATE(YEAR(KalendoriausDiena),1,0)),CONCATENATE(\"Diena \",KalendoriausDiena-DATE(YEAR(KalendoriausDiena),1,0)))","v":"Diena 212"},{"$f":"IF(WEEKDAY(KalendoriausDiena)=SavaitėsPradžiosReikšmė,CONCATENATE(\"Savaitė \",WEEKNUM(KalendoriausDiena),\"/Diena \",KalendoriausDiena-DATE(YEAR(KalendoriausDiena),1,0)),CONCATENATE(\"Diena \",KalendoriausDiena-DATE(YEAR(KalendoriausDiena),1,0)))","v":"Diena 213"},{"$f":"IF(WEEKDAY(KalendoriausDiena)=SavaitėsPradžiosReikšmė,CONCATENATE(\"Savaitė \",WEEKNUM(KalendoriausDiena),\"/Diena \",KalendoriausDiena-DATE(YEAR(KalendoriausDiena),1,0)),CONCATENATE(\"Diena \",KalendoriausDiena-DATE(YEAR(KalendoriausDiena),1,0)))","v":"Diena 214"},{"$f":"IF(WEEKDAY(KalendoriausDiena)=SavaitėsPradžiosReikšmė,CONCATENATE(\"Savaitė \",WEEKNUM(KalendoriausDiena),\"/Diena \",KalendoriausDiena-DATE(YEAR(KalendoriausDiena),1,0)),CONCATENATE(\"Diena \",KalendoriausDiena-DATE(YEAR(KalendoriausDiena),1,0)))","v":"Diena 215"},{"$f":"IF(WEEKDAY(KalendoriausDiena)=SavaitėsPradžiosReikšmė,CONCATENATE(\"Savaitė \",WEEKNUM(KalendoriausDiena),\"/Diena \",KalendoriausDiena-DATE(YEAR(KalendoriausDiena),1,0)),CONCATENATE(\"Diena \",KalendoriausDiena-DATE(YEAR(KalendoriausDiena),1,0)))","v":"Diena 216"}]
[{"$nulls":4},"PASTABOS"]
[]
[null,null,{"$f":"DienosIrSavaitės+DATE(KalendoriniaiMetai,7,1)-WEEKDAY(DATE(KalendoriniaiMetai,7,1),(SavaitėsPradžia=\"PR\")+1)+36","v":"2018-08-05"},"2018-08-06"]
[null,null,{"$f":"IF(WEEKDAY(KalendoriausDiena)=SavaitėsPradžiosReikšmė,CONCATENATE(\"Savaitė \",WEEKNUM(KalendoriausDiena),\"/Diena \",KalendoriausDiena-DATE(YEAR(KalendoriausDiena),1,0)),CONCATENATE(\"Diena \",KalendoriausDiena-DATE(YEAR(KalendoriausDiena),1,0)))","v":"Savaitė 32/Diena 217"},{"$f":"IF(WEEKDAY(KalendoriausDiena)=SavaitėsPradžiosReikšmė,CONCATENATE(\"Savaitė \",WEEKNUM(KalendoriausDiena),\"/Diena \",KalendoriausDiena-DATE(YEAR(KalendoriausDiena),1,0)),CONCATENATE(\"Diena \",KalendoriausDiena-DATE(YEAR(KalendoriausDiena),1,0)))","v":"Diena 218"}]

{"sheet":"RGP","index":7,"n_rows":20,"n_cols":9,"rows_kept":20,"merged":[[16,2,17,2],[17,4,19,8]]}
[null,"RGP",{"$f":"UPPER(TEXT(SavaitėsPradžia,\"ddd\"))","v":"SK"},{"$f":"UPPER(TEXT(D3,\"aaa\"))","v":"PR"},"AN","TR","KT","PN","ŠT"]
[null,{"$f":"KalendoriniaiMetai","v":2018}]
[null,null,{"$f":"DienosIrSavaitės+DATE(KalendoriniaiMetai,8,1)-WEEKDAY(DATE(KalendoriniaiMetai,8,1),(SavaitėsPradžia=\"PR\")+1)+1","v":"2018-07-29"},"2018-07-30","2018-07-31","2018-08-01","2018-08-02","2018-08-03","2018-08-04"]
[null,null,{"$f":"IF(DAY(KalendoriausDiena)=1,CONCATENATE(\"Savaitė \",WEEKNUM(KalendoriausDiena),\"/Diena \",KalendoriausDiena-DATE(YEAR(KalendoriausDiena),1,0)),CONCATENATE(\"Diena \",KalendoriausDiena-DATE(YEAR(KalendoriausDiena),1,0)))","v":"Diena 210"},{"$f":"IF(DAY(KalendoriausDiena)=1,CONCATENATE(\"Savaitė \",WEEKNUM(KalendoriausDiena),\"/Diena \",KalendoriausDiena-DATE(YEAR(KalendoriausDiena),1,0)),CONCATENATE(\"Diena \",KalendoriausDiena-DATE(YEAR(KalendoriausDiena),1,0)))","v":"Diena 211"},{"$f":"IF(DAY(KalendoriausDiena)=1,CONCATENATE(\"Savaitė \",WEEKNUM(KalendoriausDiena),\"/Diena \",KalendoriausDiena-DATE(YEAR(KalendoriausDiena),1,0)),CONCATENATE(\"Diena \",KalendoriausDiena-DATE(YEAR(KalendoriausDiena),1,0)))","v":"Diena 212"},{"$f":"IF(DAY(KalendoriausDiena)=1,CONCATENATE(\"Savaitė \",WEEKNUM(KalendoriausDiena),\"/Diena \",KalendoriausDiena-DATE(YEAR(KalendoriausDiena),1,0)),CONCATENATE(\"Diena \",KalendoriausDiena-DATE(YEAR(KalendoriausDiena),1,0)))","v":"Savaitė 31/Diena 213"},{"$f":"IF(DAY(KalendoriausDiena)=1,CONCATENATE(\"Savaitė \",WEEKNUM(KalendoriausDiena),\"/Diena \",KalendoriausDiena-DATE(YEAR(KalendoriausDiena),1,0)),CONCATENATE(\"Diena \",KalendoriausDiena-DATE(YEAR(KalendoriausDiena),1,0)))","v":"Diena 214"},{"$f":"IF(DAY(KalendoriausDiena)=1,CONCATENATE(\"Savaitė \",WEEKNUM(KalendoriausDiena),\"/Diena \",KalendoriausDiena-DATE(YEAR(KalendoriausDiena),1,0)),CONCATENATE(\"Diena \",KalendoriausDiena-DATE(YEAR(KalendoriausDiena),1,0)))","v":"Diena 215"},{"$f":"IF(DAY(KalendoriausDiena)=1,CONCATENATE(\"Savaitė \",WEEKNUM(KalendoriausDiena),\"/Diena \",KalendoriausDiena-DATE(YEAR(KalendoriausDiena),1,0)),CONCATENATE(\"Diena \",KalendoriausDiena-DATE(YEAR(KalendoriausDiena),1,0)))","v":"Diena 216"}]
[]
[null,null,{"$f":"DienosIrSavaitės+DATE(KalendoriniaiMetai,8,1)-WEEKDAY(DATE(KalendoriniaiMetai,8,1),(SavaitėsPradžia=\"PR\")+1)+8","v":"2018-08-05"},"2018-08-06","2018-08-07","2018-08-08","2018-08-09","2018-08-10","2018-08-11"]
[null,null,{"$f":"IF(WEEKDAY(KalendoriausDiena)=SavaitėsPradžiosReikšmė,CONCATENATE(\"Savaitė \",WEEKNUM(KalendoriausDiena),\"/Diena \",KalendoriausDiena-DATE(YEAR(KalendoriausDiena),1,0)),CONCATENATE(\"Diena \",KalendoriausDiena-DATE(YEAR(KalendoriausDiena),1,0)))","v":"Savaitė 32/Diena 217"},{"$f":"IF(WEEKDAY(KalendoriausDiena)=SavaitėsPradžiosReikšmė,CONCATENATE(\"Savaitė \",WEEKNUM(KalendoriausDiena),\"/Diena \",KalendoriausDiena-DATE(YEAR(KalendoriausDiena),1,0)),CONCATENATE(\"Diena \",KalendoriausDiena-DATE(YEAR(KalendoriausDiena),1,0)))","v":"Diena 218"},{"$f":"IF(WEEKDAY(KalendoriausDiena)=SavaitėsPradžiosReikšmė,CONCATENATE(\"Savaitė \",WEEKNUM(KalendoriausDiena),\"/Diena \",KalendoriausDiena-DATE(YEAR(KalendoriausDiena),1,0)),CONCATENATE(\"Diena \",KalendoriausDiena-DATE(YEAR(KalendoriausDiena),1,0)))","v":"Diena 219"},{"$f":"IF(WEEKDAY(KalendoriausDiena)=SavaitėsPradžiosReikšmė,CONCATENATE(\"Savaitė \",WEEKNUM(KalendoriausDiena),\"/Diena \",KalendoriausDiena-DATE(YEAR(KalendoriausDiena),1,0)),CONCATENATE(\"Diena \",KalendoriausDiena-DATE(YEAR(KalendoriausDiena),1,0)))","v":"Diena 220"},{"$f":"IF(WEEKDAY(KalendoriausDiena)=SavaitėsPradžiosReikšmė,CONCATENATE(\"Savaitė \",WEEKNUM(KalendoriausDiena),\"/Diena \",KalendoriausDiena-DATE(YEAR(KalendoriausDiena),1,0)),CONCATENATE(\"Diena \",KalendoriausDiena-DATE(YEAR(KalendoriausDiena),1,0)))","v":"Diena 221"},{"$f":"IF(WEEKDAY(KalendoriausDiena)=SavaitėsPradžiosReikšmė,CONCATENATE(\"Savaitė \",WEEKNUM(KalendoriausDiena),\"/Diena \",KalendoriausDiena-DATE(YEAR(KalendoriausDiena),1,0)),CONCATENATE(\"Diena \",KalendoriausDiena-DATE(YEAR(KalendoriausDiena),1,0)))","v":"Diena 222"},{"$f":"IF(WEEKDAY(KalendoriausDiena)=SavaitėsPradžiosReikšmė,CONCATENATE(\"Savaitė \",WEEKNUM(KalendoriausDiena),\"/Diena \",KalendoriausDiena-DATE(YEAR(KalendoriausDiena),1,0)),CONCATENATE(\"Diena \",KalendoriausDiena-DATE(YEAR(KalendoriausDiena),1,0)))","v":"Diena 223"}]
[]
[null,null,{"$f":"DienosIrSavaitės+DATE(KalendoriniaiMetai,8,1)-WEEKDAY(DATE(KalendoriniaiMetai,8,1),(SavaitėsPradžia=\"PR\")+1)+15","v":"2018-08-12"},"2018-08-13","2018-08-14","2018-08-15","2018-08-16","2018-08-17","2018-08-18"]
[null,null,{"$f":"IF(WEEKDAY(KalendoriausDiena)=SavaitėsPradžiosReikšmė,CONCATENATE(\"Savaitė \",WEEKNUM(KalendoriausDiena),\"/Diena \",KalendoriausDiena-DATE(YEAR(KalendoriausDiena),1,0)),CONCATENATE(\"Diena \",KalendoriausDiena-DATE(YEAR(KalendoriausDiena),1,0)))","v":"Savaitė 33/Diena 224"},{"$f":"IF(WEEKDAY(KalendoriausDiena)=SavaitėsPradžiosReikšmė,CONCATENATE(\"Savaitė \",WEEKNUM(KalendoriausDiena),\"/Diena \",KalendoriausDiena-DATE(YEAR(KalendoriausDiena),1,0)),CONCATENATE(\"Diena \",KalendoriausDiena-DATE(YEAR(KalendoriausDiena),1,0)))","v":"Diena 225"},{"$f":"IF(WEEKDAY(KalendoriausDiena)=SavaitėsPradžiosReikšmė,CONCATENATE(\"Savaitė \",WEEKNUM(KalendoriausDiena),\"/Diena \",KalendoriausDiena-DATE(YEAR(KalendoriausDiena),1,0)),CONCATENATE(\"Diena \",KalendoriausDiena-DATE(YEAR(KalendoriausDiena),1,0)))","v":"Diena 226"},{"$f":"IF(WEEKDAY(KalendoriausDiena)=SavaitėsPradžiosReikšmė,CONCATENATE(\"Savaitė \",WEEKNUM(KalendoriausDiena),\"/Diena \",KalendoriausDiena-DATE(YEAR(KalendoriausDiena),1,0)),CONCATENATE(\"Diena \",KalendoriausDiena-DATE(YEAR(KalendoriausDiena),1,0)))","v":"Diena 227"},{"$f":"IF(WEEKDAY(KalendoriausDiena)=SavaitėsPradžiosReikšmė,CONCATENATE(\"Savaitė \",WEEKNUM(KalendoriausDiena),\"/Diena \",KalendoriausDiena-DATE(YEAR(KalendoriausDiena),1,0)),CONCATENATE(\"Diena \",KalendoriausDiena-DATE(YEAR(KalendoriausDiena),1,0)))","v":"Diena 228"},{"$f":"IF(WEEKDAY(KalendoriausDiena)=SavaitėsPradžiosReikšmė,CONCATENATE(\"Savaitė \",WEEKNUM(KalendoriausDiena),\"/Diena \",KalendoriausDiena-DATE(YEAR(KalendoriausDiena),1,0)),CONCATENATE(\"Diena \",KalendoriausDiena-DATE(YEAR(KalendoriausDiena),1,0)))","v":"Diena 229"},{"$f":"IF(WEEKDAY(KalendoriausDiena)=SavaitėsPradžiosReikšmė,CONCATENATE(\"Savaitė \",WEEKNUM(KalendoriausDiena),\"/Diena \",KalendoriausDiena-DATE(YEAR(KalendoriausDiena),1,0)),CONCATENATE(\"Diena \",KalendoriausDiena-DATE(YEAR(KalendoriausDiena),1,0)))","v":"Diena 230"}]
[]
[null,null,{"$f":"DienosIrSavaitės+DATE(KalendoriniaiMetai,8,1)-WEEKDAY(DATE(KalendoriniaiMetai,8,1),(SavaitėsPradžia=\"PR\")+1)+22","v":"2018-08-19"},"2018-08-20","2018-08-21","2018-08-22","2018-08-23","2018-08-24","2018-08-25"]
[null,null,{"$f":"IF(WEEKDAY(KalendoriausDiena)=SavaitėsPradžiosReikšmė,CONCATENATE(\"Savaitė \",WEEKNUM(KalendoriausDiena),\"/Diena \",KalendoriausDiena-DATE(YEAR(KalendoriausDiena),1,0)),CONCATENATE(\"Diena \",KalendoriausDiena-DATE(YEAR(KalendoriausDiena),1,0)))","v":"Savaitė 34/Diena 231"},{"$f":"IF(WEEKDAY(KalendoriausDiena)=SavaitėsPradžiosReikšmė,CONCATENATE(\"Savaitė \",WEEKNUM(KalendoriausDiena),\"/Diena \",KalendoriausDiena-DATE(YEAR(KalendoriausDiena),1,0)),CONCATENATE(\"Diena \",KalendoriausDiena-DATE(YEAR(KalendoriausDiena),1,0)))","v":"Diena 232"},{"$f":"IF(WEEKDAY(KalendoriausDiena)=SavaitėsPradžiosReikšmė,CONCATENATE(\"Savaitė \",WEEKNUM(KalendoriausDiena),\"/Diena \",KalendoriausDiena-DATE(YEAR(KalendoriausDiena),1,0)),CONCATENATE(\"Diena \",KalendoriausDiena-DATE(YEAR(KalendoriausDiena),1,0)))","v":"Diena 233"},{"$f":"IF(WEEKDAY(KalendoriausDiena)=SavaitėsPradžiosReikšmė,CONCATENATE(\"Savaitė \",WEEKNUM(KalendoriausDiena),\"/Diena \",KalendoriausDiena-DATE(YEAR(KalendoriausDiena),1,0)),CONCATENATE(\"Diena \",KalendoriausDiena-DATE(YEAR(KalendoriausDiena),1,0)))","v":"Diena 234"},{"$f":"IF(WEEKDAY(KalendoriausDiena)=SavaitėsPradžiosReikšmė,CONCATENATE(\"Savaitė \",WEEKNUM(KalendoriausDiena),\"/Diena \",KalendoriausDiena-DATE(YEAR(KalendoriausDiena),1,0)),CONCATENATE(\"Diena \",KalendoriausDiena-DATE(YEAR(KalendoriausDiena),1,0)))","v":"Diena 235"},{"$f":"IF(WEEKDAY(KalendoriausDiena)=SavaitėsPradžiosReikšmė,CONCATENATE(\"Savaitė \",WEEKNUM(KalendoriausDiena),\"/Diena \",KalendoriausDiena-DATE(YEAR(KalendoriausDiena),1,0)),CONCATENATE(\"Diena \",KalendoriausDiena-DATE(YEAR(KalendoriausDiena),1,0)))","v":"Diena 236"},{"$f":"IF(WEEKDAY(KalendoriausDiena)=SavaitėsPradžiosReikšmė,CONCATENATE(\"Savaitė \",WEEKNUM(KalendoriausDiena),\"/Diena \",KalendoriausDiena-DATE(YEAR(KalendoriausDiena),1,0)),CONCATENATE(\"Diena \",KalendoriausDiena-DATE(YEAR(KalendoriausDiena),1,0)))","v":"Diena 237"}]
[]
[null,null,{"$f":"DienosIrSavaitės+DATE(KalendoriniaiMetai,8,1)-WEEKDAY(DATE(KalendoriniaiMetai,8,1),(SavaitėsPradžia=\"PR\")+1)+29","v":"2018-08-26"},"2018-08-27","2018-08-28","2018-08-29","2018-08-30","2018-08-31","2018-09-01"]
[null,null,{"$f":"IF(WEEKDAY(KalendoriausDiena)=SavaitėsPradžiosReikšmė,CONCATENATE(\"Savaitė \",WEEKNUM(KalendoriausDiena),\"/Diena \",KalendoriausDiena-DATE(YEAR(KalendoriausDiena),1,0)),CONCATENATE(\"Diena \",KalendoriausDiena-DATE(YEAR(KalendoriausDiena),1,0)))","v":"Savaitė 35/Diena 238"},{"$f":"IF(WEEKDAY(KalendoriausDiena)=SavaitėsPradžiosReikšmė,CONCATENATE(\"Savaitė \",WEEKNUM(KalendoriausDiena),\"/Diena \",KalendoriausDiena-DATE(YEAR(KalendoriausDiena),1,0)),CONCATENATE(\"Diena \",KalendoriausDiena-DATE(YEAR(KalendoriausDiena),1,0)))","v":"Diena 239"},{"$f":"IF(WEEKDAY(KalendoriausDiena)=SavaitėsPradžiosReikšmė,CONCATENATE(\"Savaitė \",WEEKNUM(KalendoriausDiena),\"/Diena \",KalendoriausDiena-DATE(YEAR(KalendoriausDiena),1,0)),CONCATENATE(\"Diena \",KalendoriausDiena-DATE(YEAR(KalendoriausDiena),1,0)))","v":"Diena 240"},{"$f":"IF(WEEKDAY(KalendoriausDiena)=SavaitėsPradžiosReikšmė,CONCATENATE(\"Savaitė \",WEEKNUM(KalendoriausDiena),\"/Diena \",KalendoriausDiena-DATE(YEAR(KalendoriausDiena),1,0)),CONCATENATE(\"Diena \",KalendoriausDiena-DATE(YEAR(KalendoriausDiena),1,0)))","v":"Diena 241"},{"$f":"IF(WEEKDAY(KalendoriausDiena)=SavaitėsPradžiosReikšmė,CONCATENATE(\"Savaitė \",WEEKNUM(KalendoriausDiena),\"/Diena \",KalendoriausDiena-DATE(YEAR(KalendoriausDiena),1,0)),CONCATENATE(\"Diena \",KalendoriausDiena-DATE(YEAR(KalendoriausDiena),1,0)))","v":"Diena 242"},{"$f":"IF(WEEKDAY(KalendoriausDiena)=SavaitėsPradžiosReikšmė,CONCATENATE(\"Savaitė \",WEEKNUM(KalendoriausDiena),\"/Diena \",KalendoriausDiena-DATE(YEAR(KalendoriausDiena),1,0)),CONCATENATE(\"Diena \",KalendoriausDiena-DATE(YEAR(KalendoriausDiena),1,0)))","v":"Diena 243"},{"$f":"IF(WEEKDAY(KalendoriausDiena)=SavaitėsPradžiosReikšmė,CONCATENATE(\"Savaitė \",WEEKNUM(KalendoriausDiena),\"/Diena \",KalendoriausDiena-DATE(YEAR(KalendoriausDiena),1,0)),CONCATENATE(\"Diena \",KalendoriausDiena-DATE(YEAR(KalendoriausDiena),1,0)))","v":"Diena 244"}]
[{"$nulls":4},"PASTABOS"]
[]
[null,null,{"$f":"DienosIrSavaitės+DATE(KalendoriniaiMetai,8,1)-WEEKDAY(DATE(KalendoriniaiMetai,8,1),(SavaitėsPradžia=\"PR\")+1)+36","v":"2018-09-02"},"2018-09-03"]
[null,null,{"$f":"IF(WEEKDAY(KalendoriausDiena)=SavaitėsPradžiosReikšmė,CONCATENATE(\"Savaitė \",WEEKNUM(KalendoriausDiena),\"/Diena \",KalendoriausDiena-DATE(YEAR(KalendoriausDiena),1,0)),CONCATENATE(\"Diena \",KalendoriausDiena-DATE(YEAR(KalendoriausDiena),1,0)))","v":"Savaitė 36/Diena 245"},{"$f":"IF(WEEKDAY(KalendoriausDiena)=SavaitėsPradžiosReikšmė,CONCATENATE(\"Savaitė \",WEEKNUM(KalendoriausDiena),\"/Diena \",KalendoriausDiena-DATE(YEAR(KalendoriausDiena),1,0)),CONCATENATE(\"Diena \",KalendoriausDiena-DATE(YEAR(KalendoriausDiena),1,0)))","v":"Diena 246"}]

{"sheet":"RGS","index":8,"n_rows":20,"n_cols":9,"rows_kept":20,"merged":[[16,2,17,2],[17,4,19,8]]}
[null,"RGS",{"$f":"UPPER(TEXT(SavaitėsPradžia,\"ddd\"))","v":"SK"},{"$f":"UPPER(TEXT(D3,\"aaa\"))","v":"PR"},"AN","TR","KT","PN","ŠT"]
[null,{"$f":"KalendoriniaiMetai","v":2018}]
[null,null,{"$f":"DienosIrSavaitės+DATE(KalendoriniaiMetai,9,1)-WEEKDAY(DATE(KalendoriniaiMetai,9,1),(SavaitėsPradžia=\"PR\")+1)+1","v":"2018-08-26"},"2018-08-27","2018-08-28","2018-08-29","2018-08-30","2018-08-31","2018-09-01"]
[null,null,{"$f":"IF(DAY(KalendoriausDiena)=1,CONCATENATE(\"Savaitė \",WEEKNUM(KalendoriausDiena),\"/Diena \",KalendoriausDiena-DATE(YEAR(KalendoriausDiena),1,0)),CONCATENATE(\"Diena \",KalendoriausDiena-DATE(YEAR(KalendoriausDiena),1,0)))","v":"Diena 238"},{"$f":"IF(DAY(KalendoriausDiena)=1,CONCATENATE(\"Savaitė \",WEEKNUM(KalendoriausDiena),\"/Diena \",KalendoriausDiena-DATE(YEAR(KalendoriausDiena),1,0)),CONCATENATE(\"Diena \",KalendoriausDiena-DATE(YEAR(KalendoriausDiena),1,0)))","v":"Diena 239"},{"$f":"IF(DAY(KalendoriausDiena)=1,CONCATENATE(\"Savaitė \",WEEKNUM(KalendoriausDiena),\"/Diena \",KalendoriausDiena-DATE(YEAR(KalendoriausDiena),1,0)),CONCATENATE(\"Diena \",KalendoriausDiena-DATE(YEAR(KalendoriausDiena),1,0)))","v":"Diena 240"},{"$f":"IF(DAY(KalendoriausDiena)=1,CONCATENATE(\"Savaitė \",WEEKNUM(KalendoriausDiena),\"/Diena \",KalendoriausDiena-DATE(YEAR(KalendoriausDiena),1,0)),CONCATENATE(\"Diena \",KalendoriausDiena-DATE(YEAR(KalendoriausDiena),1,0)))","v":"Diena 241"},{"$f":"IF(DAY(KalendoriausDiena)=1,CONCATENATE(\"Savaitė \",WEEKNUM(KalendoriausDiena),\"/Diena \",KalendoriausDiena-DATE(YEAR(KalendoriausDiena),1,0)),CONCATENATE(\"Diena \",KalendoriausDiena-DATE(YEAR(KalendoriausDiena),1,0)))","v":"Diena 242"},{"$f":"IF(DAY(KalendoriausDiena)=1,CONCATENATE(\"Savaitė \",WEEKNUM(KalendoriausDiena),\"/Diena \",KalendoriausDiena-DATE(YEAR(KalendoriausDiena),1,0)),CONCATENATE(\"Diena \",KalendoriausDiena-DATE(YEAR(KalendoriausDiena),1,0)))","v":"Diena 243"},{"$f":"IF(DAY(KalendoriausDiena)=1,CONCATENATE(\"Savaitė \",WEEKNUM(KalendoriausDiena),\"/Diena \",KalendoriausDiena-DATE(YEAR(KalendoriausDiena),1,0)),CONCATENATE(\"Diena \",KalendoriausDiena-DATE(YEAR(KalendoriausDiena),1,0)))","v":"Savaitė 35/Diena 244"}]
[]
[null,null,{"$f":"DienosIrSavaitės+DATE(KalendoriniaiMetai,9,1)-WEEKDAY(DATE(KalendoriniaiMetai,9,1),(SavaitėsPradžia=\"PR\")+1)+8","v":"2018-09-02"},"2018-09-03","2018-09-04","2018-09-05","2018-09-06","2018-09-07","2018-09-08"]
[null,null,{"$f":"IF(WEEKDAY(KalendoriausDiena)=SavaitėsPradžiosReikšmė,CONCATENATE(\"Savaitė \",WEEKNUM(KalendoriausDiena),\"/Diena \",KalendoriausDiena-DATE(YEAR(KalendoriausDiena),1,0)),CONCATENATE(\"Diena \",KalendoriausDiena-DATE(YEAR(KalendoriausDiena),1,0)))","v":"Savaitė 36/Diena 245"},{"$f":"IF(WEEKDAY(KalendoriausDiena)=SavaitėsPradžiosReikšmė,CONCATENATE(\"Savaitė \",WEEKNUM(KalendoriausDiena),\"/Diena \",KalendoriausDiena-DATE(YEAR(KalendoriausDiena),1,0)),CONCATENATE(\"Diena \",KalendoriausDiena-DATE(YEAR(KalendoriausDiena),1,0)))","v":"Diena 246"},{"$f":"IF(WEEKDAY(KalendoriausDiena)=SavaitėsPradžiosReikšmė,CONCATENATE(\"Savaitė \",WEEKNUM(KalendoriausDiena),\"/Diena \",KalendoriausDiena-DATE(YEAR(KalendoriausDiena),1,0)),CONCATENATE(\"Diena \",KalendoriausDiena-DATE(YEAR(KalendoriausDiena),1,0)))","v":"Diena 247"},{"$f":"IF(WEEKDAY(KalendoriausDiena)=SavaitėsPradžiosReikšmė,CONCATENATE(\"Savaitė \",WEEKNUM(KalendoriausDiena),\"/Diena \",KalendoriausDiena-DATE(YEAR(KalendoriausDiena),1,0)),CONCATENATE(\"Diena \",KalendoriausDiena-DATE(YEAR(KalendoriausDiena),1,0)))","v":"Diena 248"},{"$f":"IF(WEEKDAY(KalendoriausDiena)=SavaitėsPradžiosReikšmė,CONCATENATE(\"Savaitė \",WEEKNUM(KalendoriausDiena),\"/Diena \",KalendoriausDiena-DATE(YEAR(KalendoriausDiena),1,0)),CONCATENATE(\"Diena \",KalendoriausDiena-DATE(YEAR(KalendoriausDiena),1,0)))","v":"Diena 249"},{"$f":"IF(WEEKDAY(KalendoriausDiena)=SavaitėsPradžiosReikšmė,CONCATENATE(\"Savaitė \",WEEKNUM(KalendoriausDiena),\"/Diena \",KalendoriausDiena-DATE(YEAR(KalendoriausDiena),1,0)),CONCATENATE(\"Diena \",KalendoriausDiena-DATE(YEAR(KalendoriausDiena),1,0)))","v":"Diena 250"},{"$f":"IF(WEEKDAY(KalendoriausDiena)=SavaitėsPradžiosReikšmė,CONCATENATE(\"Savaitė \",WEEKNUM(KalendoriausDiena),\"/Diena \",KalendoriausDiena-DATE(YEAR(KalendoriausDiena),1,0)),CONCATENATE(\"Diena \",KalendoriausDiena-DATE(YEAR(KalendoriausDiena),1,0)))","v":"Diena 251"}]
[]
[null,null,{"$f":"DienosIrSavaitės+DATE(KalendoriniaiMetai,9,1)-WEEKDAY(DATE(KalendoriniaiMetai,9,1),(SavaitėsPradžia=\"PR\")+1)+15","v":"2018-09-09"},"2018-09-10","2018-09-11","2018-09-12","2018-09-13","2018-09-14","2018-09-15"]
[null,null,{"$f":"IF(WEEKDAY(KalendoriausDiena)=SavaitėsPradžiosReikšmė,CONCATENATE(\"Savaitė \",WEEKNUM(KalendoriausDiena),\"/Diena \",KalendoriausDiena-DATE(YEAR(KalendoriausDiena),1,0)),CONCATENATE(\"Diena \",KalendoriausDiena-DATE(YEAR(KalendoriausDiena),1,0)))","v":"Savaitė 37/Diena 252"},{"$f":"IF(WEEKDAY(KalendoriausDiena)=SavaitėsPradžiosReikšmė,CONCATENATE(\"Savaitė \",WEEKNUM(KalendoriausDiena),\"/Diena \",KalendoriausDiena-DATE(YEAR(KalendoriausDiena),1,0)),CONCATENATE(\"Diena \",KalendoriausDiena-DATE(YEAR(KalendoriausDiena),1,0)))","v":"Diena 253"},{"$f":"IF(WEEKDAY(KalendoriausDiena)=SavaitėsPradžiosReikšmė,CONCATENATE(\"Savaitė \",WEEKNUM(KalendoriausDiena),\"/Diena \",KalendoriausDiena-DATE(YEAR(KalendoriausDiena),1,0)),CONCATENATE(\"Diena \",KalendoriausDiena-DATE(YEAR(KalendoriausDiena),1,0)))","v":"Diena 254"},{"$f":"IF(WEEKDAY(KalendoriausDiena)=SavaitėsPradžiosReikšmė,CONCATENATE(\"Savaitė \",WEEKNUM(KalendoriausDiena),\"/Diena \",KalendoriausDiena-DATE(YEAR(KalendoriausDiena),1,0)),CONCATENATE(\"Diena \",KalendoriausDiena-DATE(YEAR(KalendoriausDiena),1,0)))","v":"Diena 255"},{"$f":"IF(WEEKDAY(KalendoriausDiena)=SavaitėsPradžiosReikšmė,CONCATENATE(\"Savaitė \",WEEKNUM(KalendoriausDiena),\"/Diena \",KalendoriausDiena-DATE(YEAR(KalendoriausDiena),1,0)),CONCATENATE(\"Diena \",KalendoriausDiena-DATE(YEAR(KalendoriausDiena),1,0)))","v":"Diena 256"},{"$f":"IF(WEEKDAY(KalendoriausDiena)=SavaitėsPradžiosReikšmė,CONCATENATE(\"Savaitė \",WEEKNUM(KalendoriausDiena),\"/Diena \",KalendoriausDiena-DATE(YEAR(KalendoriausDiena),1,0)),CONCATENATE(\"Diena \",KalendoriausDiena-DATE(YEAR(KalendoriausDiena),1,0)))","v":"Diena 257"},{"$f":"IF(WEEKDAY(KalendoriausDiena)=SavaitėsPradžiosReikšmė,CONCATENATE(\"Savaitė \",WEEKNUM(KalendoriausDiena),\"/Diena \",KalendoriausDiena-DATE(YEAR(KalendoriausDiena),1,0)),CONCATENATE(\"Diena \",KalendoriausDiena-DATE(YEAR(KalendoriausDiena),1,0)))","v":"Diena 258"}]
[]
[null,null,{"$f":"DienosIrSavaitės+DATE(KalendoriniaiMetai,9,1)-WEEKDAY(DATE(KalendoriniaiMetai,9,1),(SavaitėsPradžia=\"PR\")+1)+22","v":"2018-09-16"},"2018-09-17","2018-09-18","2018-09-19","2018-09-20","2018-09-21","2018-09-22"]
[null,null,{"$f":"IF(WEEKDAY(KalendoriausDiena)=SavaitėsPradžiosReikšmė,CONCATENATE(\"Savaitė \",WEEKNUM(KalendoriausDiena),\"/Diena \",KalendoriausDiena-DATE(YEAR(KalendoriausDiena),1,0)),CONCATENATE(\"Diena \",KalendoriausDiena-DATE(YEAR(KalendoriausDiena),1,0)))","v":"Savaitė 38/Diena 259"},{"$f":"IF(WEEKDAY(KalendoriausDiena)=SavaitėsPradžiosReikšmė,CONCATENATE(\"Savaitė \",WEEKNUM(KalendoriausDiena),\"/Diena \",KalendoriausDiena-DATE(YEAR(KalendoriausDiena),1,0)),CONCATENATE(\"Diena \",KalendoriausDiena-DATE(YEAR(KalendoriausDiena),1,0)))","v":"Diena 260"},{"$f":"IF(WEEKDAY(KalendoriausDiena)=SavaitėsPradžiosReikšmė,CONCATENATE(\"Savaitė \",WEEKNUM(KalendoriausDiena),\"/Diena \",KalendoriausDiena-DATE(YEAR(KalendoriausDiena),1,0)),CONCATENATE(\"Diena \",KalendoriausDiena-DATE(YEAR(KalendoriausDiena),1,0)))","v":"Diena 261"},{"$f":"IF(WEEKDAY(KalendoriausDiena)=SavaitėsPradžiosReikšmė,CONCATENATE(\"Savaitė \",WEEKNUM(KalendoriausDiena),\"/Diena \",KalendoriausDiena-DATE(YEAR(KalendoriausDiena),1,0)),CONCATENATE(\"Diena \",KalendoriausDiena-DATE(YEAR(KalendoriausDiena),1,0)))","v":"Diena 262"},{"$f":"IF(WEEKDAY(KalendoriausDiena)=SavaitėsPradžiosReikšmė,CONCATENATE(\"Savaitė \",WEEKNUM(KalendoriausDiena),\"/Diena \",KalendoriausDiena-DATE(YEAR(KalendoriausDiena),1,0)),CONCATENATE(\"Diena \",KalendoriausDiena-DATE(YEAR(KalendoriausDiena),1,0)))","v":"Diena 263"},{"$f":"IF(WEEKDAY(KalendoriausDiena)=SavaitėsPradžiosReikšmė,CONCATENATE(\"Savaitė \",WEEKNUM(KalendoriausDiena),\"/Diena \",KalendoriausDiena-DATE(YEAR(KalendoriausDiena),1,0)),CONCATENATE(\"Diena \",KalendoriausDiena-DATE(YEAR(KalendoriausDiena),1,0)))","v":"Diena 264"},{"$f":"IF(WEEKDAY(KalendoriausDiena)=SavaitėsPradžiosReikšmė,CONCATENATE(\"Savaitė \",WEEKNUM(KalendoriausDiena),\"/Diena \",KalendoriausDiena-DATE(YEAR(KalendoriausDiena),1,0)),CONCATENATE(\"Diena \",KalendoriausDiena-DATE(YEAR(KalendoriausDiena),1,0)))","v":"Diena 265"}]
[]
[null,null,{"$f":"DienosIrSavaitės+DATE(KalendoriniaiMetai,9,1)-WEEKDAY(DATE(KalendoriniaiMetai,9,1),(SavaitėsPradžia=\"PR\")+1)+29","v":"2018-09-23"},"2018-09-24","2018-09-25","2018-09-26","2018-09-27","2018-09-28","2018-09-29"]
[null,null,{"$f":"IF(WEEKDAY(KalendoriausDiena)=SavaitėsPradžiosReikšmė,CONCATENATE(\"Savaitė \",WEEKNUM(KalendoriausDiena),\"/Diena \",KalendoriausDiena-DATE(YEAR(KalendoriausDiena),1,0)),CONCATENATE(\"Diena \",KalendoriausDiena-DATE(YEAR(KalendoriausDiena),1,0)))","v":"Savaitė 39/Diena 266"},{"$f":"IF(WEEKDAY(KalendoriausDiena)=SavaitėsPradžiosReikšmė,CONCATENATE(\"Savaitė \",WEEKNUM(KalendoriausDiena),\"/Diena \",KalendoriausDiena-DATE(YEAR(KalendoriausDiena),1,0)),CONCATENATE(\"Diena \",KalendoriausDiena-DATE(YEAR(KalendoriausDiena),1,0)))","v":"Diena 267"},{"$f":"IF(WEEKDAY(KalendoriausDiena)=SavaitėsPradžiosReikšmė,CONCATENATE(\"Savaitė \",WEEKNUM(KalendoriausDiena),\"/Diena \",KalendoriausDiena-DATE(YEAR(KalendoriausDiena),1,0)),CONCATENATE(\"Diena \",KalendoriausDiena-DATE(YEAR(KalendoriausDiena),1,0)))","v":"Diena 268"},{"$f":"IF(WEEKDAY(KalendoriausDiena)=SavaitėsPradžiosReikšmė,CONCATENATE(\"Savaitė \",WEEKNUM(KalendoriausDiena),\"/Diena \",KalendoriausDiena-DATE(YEAR(KalendoriausDiena),1,0)),CONCATENATE(\"Diena \",KalendoriausDiena-DATE(YEAR(KalendoriausDiena),1,0)))","v":"Diena 269"},{"$f":"IF(WEEKDAY(KalendoriausDiena)=SavaitėsPradžiosReikšmė,CONCATENATE(\"Savaitė \",WEEKNUM(KalendoriausDiena),\"/Diena \",KalendoriausDiena-DATE(YEAR(KalendoriausDiena),1,0)),CONCATENATE(\"Diena \",KalendoriausDiena-DATE(YEAR(KalendoriausDiena),1,0)))","v":"Diena 270"},{"$f":"IF(WEEKDAY(KalendoriausDiena)=SavaitėsPradžiosReikšmė,CONCATENATE(\"Savaitė \",WEEKNUM(KalendoriausDiena),\"/Diena \",KalendoriausDiena-DATE(YEAR(KalendoriausDiena),1,0)),CONCATENATE(\"Diena \",KalendoriausDiena-DATE(YEAR(KalendoriausDiena),1,0)))","v":"Diena 271"},{"$f":"IF(WEEKDAY(KalendoriausDiena)=SavaitėsPradžiosReikšmė,CONCATENATE(\"Savaitė \",WEEKNUM(KalendoriausDiena),\"/Diena \",KalendoriausDiena-DATE(YEAR(KalendoriausDiena),1,0)),CONCATENATE(\"Diena \",KalendoriausDiena-DATE(YEAR(KalendoriausDiena),1,0)))","v":"Diena 272"}]
[{"$nulls":4},"PASTABOS"]
[]
[null,null,{"$f":"DienosIrSavaitės+DATE(KalendoriniaiMetai,9,1)-WEEKDAY(DATE(KalendoriniaiMetai,9,1),(SavaitėsPradžia=\"PR\")+1)+36","v":"2018-09-30"},"2018-10-01"]
[null,null,{"$f":"IF(WEEKDAY(KalendoriausDiena)=SavaitėsPradžiosReikšmė,CONCATENATE(\"Savaitė \",WEEKNUM(KalendoriausDiena),\"/Diena \",KalendoriausDiena-DATE(YEAR(KalendoriausDiena),1,0)),CONCATENATE(\"Diena \",KalendoriausDiena-DATE(YEAR(KalendoriausDiena),1,0)))","v":"Savaitė 40/Diena 273"},{"$f":"IF(WEEKDAY(KalendoriausDiena)=SavaitėsPradžiosReikšmė,CONCATENATE(\"Savaitė \",WEEKNUM(KalendoriausDiena),\"/Diena \",KalendoriausDiena-DATE(YEAR(KalendoriausDiena),1,0)),CONCATENATE(\"Diena \",KalendoriausDiena-DATE(YEAR(KalendoriausDiena),1,0)))","v":"Diena 274"}]

{"sheet":"SPL","index":9,"n_rows":20,"n_cols":9,"rows_kept":20,"merged":[[16,2,17,2],[17,4,19,8]]}
[null,"SPL",{"$f":"UPPER(TEXT(SavaitėsPradžia,\"ddd\"))","v":"SK"},{"$f":"UPPER(TEXT(D3,\"aaa\"))","v":"PR"},"AN","TR","KT","PN","ŠT"]
[null,{"$f":"KalendoriniaiMetai","v":2018}]
[null,null,{"$f":"DienosIrSavaitės+DATE(KalendoriniaiMetai,10,1)-WEEKDAY(DATE(KalendoriniaiMetai,10,1),(SavaitėsPradžia=\"PR\")+1)+1","v":"2018-09-30"},"2018-10-01","2018-10-02","2018-10-03","2018-10-04","2018-10-05","2018-10-06"]
[null,null,{"$f":"IF(DAY(KalendoriausDiena)=1,CONCATENATE(\"Savaitė \",WEEKNUM(KalendoriausDiena),\"/Diena \",KalendoriausDiena-DATE(YEAR(KalendoriausDiena),1,0)),CONCATENATE(\"Diena \",KalendoriausDiena-DATE(YEAR(KalendoriausDiena),1,0)))","v":"Diena 273"},{"$f":"IF(DAY(KalendoriausDiena)=1,CONCATENATE(\"Savaitė \",WEEKNUM(KalendoriausDiena),\"/Diena \",KalendoriausDiena-DATE(YEAR(KalendoriausDiena),1,0)),CONCATENATE(\"Diena \",KalendoriausDiena-DATE(YEAR(KalendoriausDiena),1,0)))","v":"Savaitė 40/Diena 274"},{"$f":"IF(DAY(KalendoriausDiena)=1,CONCATENATE(\"Savaitė \",WEEKNUM(KalendoriausDiena),\"/Diena \",KalendoriausDiena-DATE(YEAR(KalendoriausDiena),1,0)),CONCATENATE(\"Diena \",KalendoriausDiena-DATE(YEAR(KalendoriausDiena),1,0)))","v":"Diena 275"},{"$f":"IF(DAY(KalendoriausDiena)=1,CONCATENATE(\"Savaitė \",WEEKNUM(KalendoriausDiena),\"/Diena \",KalendoriausDiena-DATE(YEAR(KalendoriausDiena),1,0)),CONCATENATE(\"Diena \",KalendoriausDiena-DATE(YEAR(KalendoriausDiena),1,0)))","v":"Diena 276"},{"$f":"IF(DAY(KalendoriausDiena)=1,CONCATENATE(\"Savaitė \",WEEKNUM(KalendoriausDiena),\"/Diena \",KalendoriausDiena-DATE(YEAR(KalendoriausDiena),1,0)),CONCATENATE(\"Diena \",KalendoriausDiena-DATE(YEAR(KalendoriausDiena),1,0)))","v":"Diena 277"},{"$f":"IF(DAY(KalendoriausDiena)=1,CONCATENATE(\"Savaitė \",WEEKNUM(KalendoriausDiena),\"/Diena \",KalendoriausDiena-DATE(YEAR(KalendoriausDiena),1,0)),CONCATENATE(\"Diena \",KalendoriausDiena-DATE(YEAR(KalendoriausDiena),1,0)))","v":"Diena 278"},{"$f":"IF(DAY(KalendoriausDiena)=1,CONCATENATE(\"Savaitė \",WEEKNUM(KalendoriausDiena),\"/Diena \",KalendoriausDiena-DATE(YEAR(KalendoriausDiena),1,0)),CONCATENATE(\"Diena \",KalendoriausDiena-DATE(YEAR(KalendoriausDiena),1,0)))","v":"Diena 279"}]
[]
[null,null,{"$f":"DienosIrSavaitės+DATE(KalendoriniaiMetai,10,1)-WEEKDAY(DATE(KalendoriniaiMetai,10,1),(SavaitėsPradžia=\"PR\")+1)+8","v":"2018-10-07"},"2018-10-08","2018-10-09","2018-10-10","2018-10-11","2018-10-12","2018-10-13"]
[null,null,{"$f":"IF(WEEKDAY(KalendoriausDiena)=SavaitėsPradžiosReikšmė,CONCATENATE(\"Savaitė \",WEEKNUM(KalendoriausDiena),\"/Diena \",KalendoriausDiena-DATE(YEAR(KalendoriausDiena),1,0)),CONCATENATE(\"Diena \",KalendoriausDiena-DATE(YEAR(KalendoriausDiena),1,0)))","v":"Savaitė 41/Diena 280"},{"$f":"IF(WEEKDAY(KalendoriausDiena)=SavaitėsPradžiosReikšmė,CONCATENATE(\"Savaitė \",WEEKNUM(KalendoriausDiena),\"/Diena \",KalendoriausDiena-DATE(YEAR(KalendoriausDiena),1,0)),CONCATENATE(\"Diena \",KalendoriausDiena-DATE(YEAR(KalendoriausDiena),1,0)))","v":"Diena 281"},{"$f":"IF(WEEKDAY(KalendoriausDiena)=SavaitėsPradžiosReikšmė,CONCATENATE(\"Savaitė \",WEEKNUM(KalendoriausDiena),\"/Diena \",KalendoriausDiena-DATE(YEAR(KalendoriausDiena),1,0)),CONCATENATE(\"Diena \",KalendoriausDiena-DATE(YEAR(KalendoriausDiena),1,0)))","v":"Diena 282"},{"$f":"IF(WEEKDAY(KalendoriausDiena)=SavaitėsPradžiosReikšmė,CONCATENATE(\"Savaitė \",WEEKNUM(KalendoriausDiena),\"/Diena \",KalendoriausDiena-DATE(YEAR(KalendoriausDiena),1,0)),CONCATENATE(\"Diena \",KalendoriausDiena-DATE(YEAR(KalendoriausDiena),1,0)))","v":"Diena 283"},{"$f":"IF(WEEKDAY(KalendoriausDiena)=SavaitėsPradžiosReikšmė,CONCATENATE(\"Savaitė \",WEEKNUM(KalendoriausDiena),\"/Diena \",KalendoriausDiena-DATE(YEAR(KalendoriausDiena),1,0)),CONCATENATE(\"Diena \",KalendoriausDiena-DATE(YEAR(KalendoriausDiena),1,0)))","v":"Diena 284"},{"$f":"IF(WEEKDAY(KalendoriausDiena)=SavaitėsPradžiosReikšmė,CONCATENATE(\"Savaitė \",WEEKNUM(KalendoriausDiena),\"/Diena \",KalendoriausDiena-DATE(YEAR(KalendoriausDiena),1,0)),CONCATENATE(\"Diena \",KalendoriausDiena-DATE(YEAR(KalendoriausDiena),1,0)))","v":"Diena 285"},{"$f":"IF(WEEKDAY(KalendoriausDiena)=SavaitėsPradžiosReikšmė,CONCATENATE(\"Savaitė \",WEEKNUM(KalendoriausDiena),\"/Diena \",KalendoriausDiena-DATE(YEAR(KalendoriausDiena),1,0)),CONCATENATE(\"Diena \",KalendoriausDiena-DATE(YEAR(KalendoriausDiena),1,0)))","v":"Diena 286"}]
[]
[null,null,{"$f":"DienosIrSavaitės+DATE(KalendoriniaiMetai,10,1)-WEEKDAY(DATE(KalendoriniaiMetai,10,1),(SavaitėsPradžia=\"PR\")+1)+15","v":"2018-10-14"},"2018-10-15","2018-10-16","2018-10-17","2018-10-18","2018-10-19","2018-10-20"]
[null,null,{"$f":"IF(WEEKDAY(KalendoriausDiena)=SavaitėsPradžiosReikšmė,CONCATENATE(\"Savaitė \",WEEKNUM(KalendoriausDiena),\"/Diena \",KalendoriausDiena-DATE(YEAR(KalendoriausDiena),1,0)),CONCATENATE(\"Diena \",KalendoriausDiena-DATE(YEAR(KalendoriausDiena),1,0)))","v":"Savaitė 42/Diena 287"},{"$f":"IF(WEEKDAY(KalendoriausDiena)=SavaitėsPradžiosReikšmė,CONCATENATE(\"Savaitė \",WEEKNUM(KalendoriausDiena),\"/Diena \",KalendoriausDiena-DATE(YEAR(KalendoriausDiena),1,0)),CONCATENATE(\"Diena \",KalendoriausDiena-DATE(YEAR(KalendoriausDiena),1,0)))","v":"Diena 288"},{"$f":"IF(WEEKDAY(KalendoriausDiena)=SavaitėsPradžiosReikšmė,CONCATENATE(\"Savaitė \",WEEKNUM(KalendoriausDiena),\"/Diena \",KalendoriausDiena-DATE(YEAR(KalendoriausDiena),1,0)),CONCATENATE(\"Diena \",KalendoriausDiena-DATE(YEAR(KalendoriausDiena),1,0)))","v":"Diena 289"},{"$f":"IF(WEEKDAY(KalendoriausDiena)=SavaitėsPradžiosReikšmė,CONCATENATE(\"Savaitė \",WEEKNUM(KalendoriausDiena),\"/Diena \",KalendoriausDiena-DATE(YEAR(KalendoriausDiena),1,0)),CONCATENATE(\"Diena \",KalendoriausDiena-DATE(YEAR(KalendoriausDiena),1,0)))","v":"Diena 290"},{"$f":"IF(WEEKDAY(KalendoriausDiena)=SavaitėsPradžiosReikšmė,CONCATENATE(\"Savaitė \",WEEKNUM(KalendoriausDiena),\"/Diena \",KalendoriausDiena-DATE(YEAR(KalendoriausDiena),1,0)),CONCATENATE(\"Diena \",KalendoriausDiena-DATE(YEAR(KalendoriausDiena),1,0)))","v":"Diena 291"},{"$f":"IF(WEEKDAY(KalendoriausDiena)=SavaitėsPradžiosReikšmė,CONCATENATE(\"Savaitė \",WEEKNUM(KalendoriausDiena),\"/Diena \",KalendoriausDiena-DATE(YEAR(KalendoriausDiena),1,0)),CONCATENATE(\"Diena \",KalendoriausDiena-DATE(YEAR(KalendoriausDiena),1,0)))","v":"Diena 292"},{"$f":"IF(WEEKDAY(KalendoriausDiena)=SavaitėsPradžiosReikšmė,CONCATENATE(\"Savaitė \",WEEKNUM(KalendoriausDiena),\"/Diena \",KalendoriausDiena-DATE(YEAR(KalendoriausDiena),1,0)),CONCATENATE(\"Diena \",KalendoriausDiena-DATE(YEAR(KalendoriausDiena),1,0)))","v":"Diena 293"}]
[]
[null,null,{"$f":"DienosIrSavaitės+DATE(KalendoriniaiMetai,10,1)-WEEKDAY(DATE(KalendoriniaiMetai,10,1),(SavaitėsPradžia=\"PR\")+1)+22","v":"2018-10-21"},"2018-10-22","2018-10-23","2018-10-24","2018-10-25","2018-10-26","2018-10-27"]
[null,null,{"$f":"IF(WEEKDAY(KalendoriausDiena)=SavaitėsPradžiosReikšmė,CONCATENATE(\"Savaitė \",WEEKNUM(KalendoriausDiena),\"/Diena \",KalendoriausDiena-DATE(YEAR(KalendoriausDiena),1,0)),CONCATENATE(\"Diena \",KalendoriausDiena-DATE(YEAR(KalendoriausDiena),1,0)))","v":"Savaitė 43/Diena 294"},{"$f":"IF(WEEKDAY(KalendoriausDiena)=SavaitėsPradžiosReikšmė,CONCATENATE(\"Savaitė \",WEEKNUM(KalendoriausDiena),\"/Diena \",KalendoriausDiena-DATE(YEAR(KalendoriausDiena),1,0)),CONCATENATE(\"Diena \",KalendoriausDiena-DATE(YEAR(KalendoriausDiena),1,0)))","v":"Diena 295"},{"$f":"IF(WEEKDAY(KalendoriausDiena)=SavaitėsPradžiosReikšmė,CONCATENATE(\"Savaitė \",WEEKNUM(KalendoriausDiena),\"/Diena \",KalendoriausDiena-DATE(YEAR(KalendoriausDiena),1,0)),CONCATENATE(\"Diena \",KalendoriausDiena-DATE(YEAR(KalendoriausDiena),1,0)))","v":"Diena 296"},{"$f":"IF(WEEKDAY(KalendoriausDiena)=SavaitėsPradžiosReikšmė,CONCATENATE(\"Savaitė \",WEEKNUM(KalendoriausDiena),\"/Diena \",KalendoriausDiena-DATE(YEAR(KalendoriausDiena),1,0)),CONCATENATE(\"Diena \",KalendoriausDiena-DATE(YEAR(KalendoriausDiena),1,0)))","v":"Diena 297"},{"$f":"IF(WEEKDAY(KalendoriausDiena)=SavaitėsPradžiosReikšmė,CONCATENATE(\"Savaitė \",WEEKNUM(KalendoriausDiena),\"/Diena \",KalendoriausDiena-DATE(YEAR(KalendoriausDiena),1,0)),CONCATENATE(\"Diena \",KalendoriausDiena-DATE(YEAR(KalendoriausDiena),1,0)))","v":"Diena 298"},{"$f":"IF(WEEKDAY(KalendoriausDiena)=SavaitėsPradžiosReikšmė,CONCATENATE(\"Savaitė \",WEEKNUM(KalendoriausDiena),\"/Diena \",KalendoriausDiena-DATE(YEAR(KalendoriausDiena),1,0)),CONCATENATE(\"Diena \",KalendoriausDiena-DATE(YEAR(KalendoriausDiena),1,0)))","v":"Diena 299"},{"$f":"IF(WEEKDAY(KalendoriausDiena)=SavaitėsPradžiosReikšmė,CONCATENATE(\"Savaitė \",WEEKNUM(KalendoriausDiena),\"/Diena \",KalendoriausDiena-DATE(YEAR(KalendoriausDiena),1,0)),CONCATENATE(\"Diena \",KalendoriausDiena-DATE(YEAR(KalendoriausDiena),1,0)))","v":"Diena 300"}]
[]
[null,null,{"$f":"DienosIrSavaitės+DATE(KalendoriniaiMetai,10,1)-WEEKDAY(DATE(KalendoriniaiMetai,10,1),(SavaitėsPradžia=\"PR\")+1)+29","v":"2018-10-28"},"2018-10-29","2018-10-30","2018-10-31","2018-11-01","2018-11-02","2018-11-03"]
[null,null,{"$f":"IF(WEEKDAY(KalendoriausDiena)=SavaitėsPradžiosReikšmė,CONCATENATE(\"Savaitė \",WEEKNUM(KalendoriausDiena),\"/Diena \",KalendoriausDiena-DATE(YEAR(KalendoriausDiena),1,0)),CONCATENATE(\"Diena \",KalendoriausDiena-DATE(YEAR(KalendoriausDiena),1,0)))","v":"Savaitė 44/Diena 301"},{"$f":"IF(WEEKDAY(KalendoriausDiena)=SavaitėsPradžiosReikšmė,CONCATENATE(\"Savaitė \",WEEKNUM(KalendoriausDiena),\"/Diena \",KalendoriausDiena-DATE(YEAR(KalendoriausDiena),1,0)),CONCATENATE(\"Diena \",KalendoriausDiena-DATE(YEAR(KalendoriausDiena),1,0)))","v":"Diena 302"},{"$f":"IF(WEEKDAY(KalendoriausDiena)=SavaitėsPradžiosReikšmė,CONCATENATE(\"Savaitė \",WEEKNUM(KalendoriausDiena),\"/Diena \",KalendoriausDiena-DATE(YEAR(KalendoriausDiena),1,0)),CONCATENATE(\"Diena \",KalendoriausDiena-DATE(YEAR(KalendoriausDiena),1,0)))","v":"Diena 303"},{"$f":"IF(WEEKDAY(KalendoriausDiena)=SavaitėsPradžiosReikšmė,CONCATENATE(\"Savaitė \",WEEKNUM(KalendoriausDiena),\"/Diena \",KalendoriausDiena-DATE(YEAR(KalendoriausDiena),1,0)),CONCATENATE(\"Diena \",KalendoriausDiena-DATE(YEAR(KalendoriausDiena),1,0)))","v":"Diena 304"},{"$f":"IF(WEEKDAY(KalendoriausDiena)=SavaitėsPradžiosReikšmė,CONCATENATE(\"Savaitė \",WEEKNUM(KalendoriausDiena),\"/Diena \",KalendoriausDiena-DATE(YEAR(KalendoriausDiena),1,0)),CONCATENATE(\"Diena \",KalendoriausDiena-DATE(YEAR(KalendoriausDiena),1,0)))","v":"Diena 305"},{"$f":"IF(WEEKDAY(KalendoriausDiena)=SavaitėsPradžiosReikšmė,CONCATENATE(\"Savaitė \",WEEKNUM(KalendoriausDiena),\"/Diena \",KalendoriausDiena-DATE(YEAR(KalendoriausDiena),1,0)),CONCATENATE(\"Diena \",KalendoriausDiena-DATE(YEAR(KalendoriausDiena),1,0)))","v":"Diena 306"},{"$f":"IF(WEEKDAY(KalendoriausDiena)=SavaitėsPradžiosReikšmė,CONCATENATE(\"Savaitė \",WEEKNUM(KalendoriausDiena),\"/Diena \",KalendoriausDiena-DATE(YEAR(KalendoriausDiena),1,0)),CONCATENATE(\"Diena \",KalendoriausDiena-DATE(YEAR(KalendoriausDiena),1,0)))","v":"Diena 307"}]
[{"$nulls":4},"PASTABOS"]
[]
[null,null,{"$f":"DienosIrSavaitės+DATE(KalendoriniaiMetai,10,1)-WEEKDAY(DATE(KalendoriniaiMetai,10,1),(SavaitėsPradžia=\"PR\")+1)+36","v":"2018-11-04"},"2018-11-05"]
[null,null,{"$f":"IF(WEEKDAY(KalendoriausDiena)=SavaitėsPradžiosReikšmė,CONCATENATE(\"Savaitė \",WEEKNUM(KalendoriausDiena),\"/Diena \",KalendoriausDiena-DATE(YEAR(KalendoriausDiena),1,0)),CONCATENATE(\"Diena \",KalendoriausDiena-DATE(YEAR(KalendoriausDiena),1,0)))","v":"Savaitė 45/Diena 308"},{"$f":"IF(WEEKDAY(KalendoriausDiena)=SavaitėsPradžiosReikšmė,CONCATENATE(\"Savaitė \",WEEKNUM(KalendoriausDiena),\"/Diena \",KalendoriausDiena-DATE(YEAR(KalendoriausDiena),1,0)),CONCATENATE(\"Diena \",KalendoriausDiena-DATE(YEAR(KalendoriausDiena),1,0)))","v":"Diena 309"}]

{"sheet":"LAP","index":10,"n_rows":20,"n_cols":9,"rows_kept":20,"merged":[[16,2,17,2],[17,4,19,8]]}
[null,"LAP",{"$f":"UPPER(TEXT(SavaitėsPradžia,\"ddd\"))","v":"SK"},{"$f":"UPPER(TEXT(D3,\"aaa\"))","v":"PR"},"AN","TR","KT","PN","ŠT"]
[null,{"$f":"KalendoriniaiMetai","v":2018}]
[null,null,{"$f":"DienosIrSavaitės+DATE(KalendoriniaiMetai,11,1)-WEEKDAY(DATE(KalendoriniaiMetai,11,1),(SavaitėsPradžia=\"PR\")+1)+1","v":"2018-10-28"},"2018-10-29","2018-10-30","2018-10-31","2018-11-01","2018-11-02","2018-11-03"]
[null,null,{"$f":"IF(DAY(KalendoriausDiena)=1,CONCATENATE(\"Savaitė \",WEEKNUM(KalendoriausDiena),\"/Diena \",KalendoriausDiena-DATE(YEAR(KalendoriausDiena),1,0)),CONCATENATE(\"Diena \",KalendoriausDiena-DATE(YEAR(KalendoriausDiena),1,0)))","v":"Diena 301"},{"$f":"IF(DAY(KalendoriausDiena)=1,CONCATENATE(\"Savaitė \",WEEKNUM(KalendoriausDiena),\"/Diena \",KalendoriausDiena-DATE(YEAR(KalendoriausDiena),1,0)),CONCATENATE(\"Diena \",KalendoriausDiena-DATE(YEAR(KalendoriausDiena),1,0)))","v":"Diena 302"},{"$f":"IF(DAY(KalendoriausDiena)=1,CONCATENATE(\"Savaitė \",WEEKNUM(KalendoriausDiena),\"/Diena \",KalendoriausDiena-DATE(YEAR(KalendoriausDiena),1,0)),CONCATENATE(\"Diena \",KalendoriausDiena-DATE(YEAR(KalendoriausDiena),1,0)))","v":"Diena 303"},{"$f":"IF(DAY(KalendoriausDiena)=1,CONCATENATE(\"Savaitė \",WEEKNUM(KalendoriausDiena),\"/Diena \",KalendoriausDiena-DATE(YEAR(KalendoriausDiena),1,0)),CONCATENATE(\"Diena \",KalendoriausDiena-DATE(YEAR(KalendoriausDiena),1,0)))","v":"Diena 304"},{"$f":"IF(DAY(KalendoriausDiena)=1,CONCATENATE(\"Savaitė \",WEEKNUM(KalendoriausDiena),\"/Diena \",KalendoriausDiena-DATE(YEAR(KalendoriausDiena),1,0)),CONCATENATE(\"Diena \",KalendoriausDiena-DATE(YEAR(KalendoriausDiena),1,0)))","v":"Savaitė 44/Diena 305"},{"$f":"IF(DAY(KalendoriausDiena)=1,CONCATENATE(\"Savaitė \",WEEKNUM(KalendoriausDiena),\"/Diena \",KalendoriausDiena-DATE(YEAR(KalendoriausDiena),1,0)),CONCATENATE(\"Diena \",KalendoriausDiena-DATE(YEAR(KalendoriausDiena),1,0)))","v":"Diena 306"},{"$f":"IF(DAY(KalendoriausDiena)=1,CONCATENATE(\"Savaitė \",WEEKNUM(KalendoriausDiena),\"/Diena \",KalendoriausDiena-DATE(YEAR(KalendoriausDiena),1,0)),CONCATENATE(\"Diena \",KalendoriausDiena-DATE(YEAR(KalendoriausDiena),1,0)))","v":"Diena 307"}]
[]
[null,null,{"$f":"DienosIrSavaitės+DATE(KalendoriniaiMetai,11,1)-WEEKDAY(DATE(KalendoriniaiMetai,11,1),(SavaitėsPradžia=\"PR\")+1)+8","v":"2018-11-04"},"2018-11-05","2018-11-06","2018-11-07","2018-11-08","2018-11-09","2018-11-10"]
[null,null,{"$f":"IF(WEEKDAY(KalendoriausDiena)=SavaitėsPradžiosReikšmė,CONCATENATE(\"Savaitė \",WEEKNUM(KalendoriausDiena),\"/Diena \",KalendoriausDiena-DATE(YEAR(KalendoriausDiena),1,0)),CONCATENATE(\"Diena \",KalendoriausDiena-DATE(YEAR(KalendoriausDiena),1,0)))","v":"Savaitė 45/Diena 308"},{"$f":"IF(WEEKDAY(KalendoriausDiena)=SavaitėsPradžiosReikšmė,CONCATENATE(\"Savaitė \",WEEKNUM(KalendoriausDiena),\"/Diena \",KalendoriausDiena-DATE(YEAR(KalendoriausDiena),1,0)),CONCATENATE(\"Diena \",KalendoriausDiena-DATE(YEAR(KalendoriausDiena),1,0)))","v":"Diena 309"},{"$f":"IF(WEEKDAY(KalendoriausDiena)=SavaitėsPradžiosReikšmė,CONCATENATE(\"Savaitė \",WEEKNUM(KalendoriausDiena),\"/Diena \",KalendoriausDiena-DATE(YEAR(KalendoriausDiena),1,0)),CONCATENATE(\"Diena \",KalendoriausDiena-DATE(YEAR(KalendoriausDiena),1,0)))","v":"Diena 310"},{"$f":"IF(WEEKDAY(KalendoriausDiena)=SavaitėsPradžiosReikšmė,CONCATENATE(\"Savaitė \",WEEKNUM(KalendoriausDiena),\"/Diena \",KalendoriausDiena-DATE(YEAR(KalendoriausDiena),1,0)),CONCATENATE(\"Diena \",KalendoriausDiena-DATE(YEAR(KalendoriausDiena),1,0)))","v":"Diena 311"},{"$f":"IF(WEEKDAY(KalendoriausDiena)=SavaitėsPradžiosReikšmė,CONCATENATE(\"Savaitė \",WEEKNUM(KalendoriausDiena),\"/Diena \",KalendoriausDiena-DATE(YEAR(KalendoriausDiena),1,0)),CONCATENATE(\"Diena \",KalendoriausDiena-DATE(YEAR(KalendoriausDiena),1,0)))","v":"Diena 312"},{"$f":"IF(WEEKDAY(KalendoriausDiena)=SavaitėsPradžiosReikšmė,CONCATENATE(\"Savaitė \",WEEKNUM(KalendoriausDiena),\"/Diena \",KalendoriausDiena-DATE(YEAR(KalendoriausDiena),1,0)),CONCATENATE(\"Diena \",KalendoriausDiena-DATE(YEAR(KalendoriausDiena),1,0)))","v":"Diena 313"},{"$f":"IF(WEEKDAY(KalendoriausDiena)=SavaitėsPradžiosReikšmė,CONCATENATE(\"Savaitė \",WEEKNUM(KalendoriausDiena),\"/Diena \",KalendoriausDiena-DATE(YEAR(KalendoriausDiena),1,0)),CONCATENATE(\"Diena \",KalendoriausDiena-DATE(YEAR(KalendoriausDiena),1,0)))","v":"Diena 314"}]
[]
[null,null,{"$f":"DienosIrSavaitės+DATE(KalendoriniaiMetai,11,1)-WEEKDAY(DATE(KalendoriniaiMetai,11,1),(SavaitėsPradžia=\"PR\")+1)+15","v":"2018-11-11"},"2018-11-12","2018-11-13","2018-11-14","2018-11-15","2018-11-16","2018-11-17"]
[null,null,{"$f":"IF(WEEKDAY(KalendoriausDiena)=SavaitėsPradžiosReikšmė,CONCATENATE(\"Savaitė \",WEEKNUM(KalendoriausDiena),\"/Diena \",KalendoriausDiena-DATE(YEAR(KalendoriausDiena),1,0)),CONCATENATE(\"Diena \",KalendoriausDiena-DATE(YEAR(KalendoriausDiena),1,0)))","v":"Savaitė 46/Diena 315"},{"$f":"IF(WEEKDAY(KalendoriausDiena)=SavaitėsPradžiosReikšmė,CONCATENATE(\"Savaitė \",WEEKNUM(KalendoriausDiena),\"/Diena \",KalendoriausDiena-DATE(YEAR(KalendoriausDiena),1,0)),CONCATENATE(\"Diena \",KalendoriausDiena-DATE(YEAR(KalendoriausDiena),1,0)))","v":"Diena 316"},{"$f":"IF(WEEKDAY(KalendoriausDiena)=SavaitėsPradžiosReikšmė,CONCATENATE(\"Savaitė \",WEEKNUM(KalendoriausDiena),\"/Diena \",KalendoriausDiena-DATE(YEAR(KalendoriausDiena),1,0)),CONCATENATE(\"Diena \",KalendoriausDiena-DATE(YEAR(KalendoriausDiena),1,0)))","v":"Diena 317"},{"$f":"IF(WEEKDAY(KalendoriausDiena)=SavaitėsPradžiosReikšmė,CONCATENATE(\"Savaitė \",WEEKNUM(KalendoriausDiena),\"/Diena \",KalendoriausDiena-DATE(YEAR(KalendoriausDiena),1,0)),CONCATENATE(\"Diena \",KalendoriausDiena-DATE(YEAR(KalendoriausDiena),1,0)))","v":"Diena 318"},{"$f":"IF(WEEKDAY(KalendoriausDiena)=SavaitėsPradžiosReikšmė,CONCATENATE(\"Savaitė \",WEEKNUM(KalendoriausDiena),\"/Diena \",KalendoriausDiena-DATE(YEAR(KalendoriausDiena),1,0)),CONCATENATE(\"Diena \",KalendoriausDiena-DATE(YEAR(KalendoriausDiena),1,0)))","v":"Diena 319"},{"$f":"IF(WEEKDAY(KalendoriausDiena)=SavaitėsPradžiosReikšmė,CONCATENATE(\"Savaitė \",WEEKNUM(KalendoriausDiena),\"/Diena \",KalendoriausDiena-DATE(YEAR(KalendoriausDiena),1,0)),CONCATENATE(\"Diena \",KalendoriausDiena-DATE(YEAR(KalendoriausDiena),1,0)))","v":"Diena 320"},{"$f":"IF(WEEKDAY(KalendoriausDiena)=SavaitėsPradžiosReikšmė,CONCATENATE(\"Savaitė \",WEEKNUM(KalendoriausDiena),\"/Diena \",KalendoriausDiena-DATE(YEAR(KalendoriausDiena),1,0)),CONCATENATE(\"Diena \",KalendoriausDiena-DATE(YEAR(KalendoriausDiena),1,0)))","v":"Diena 321"}]
[]
[null,null,{"$f":"DienosIrSavaitės+DATE(KalendoriniaiMetai,11,1)-WEEKDAY(DATE(KalendoriniaiMetai,11,1),(SavaitėsPradžia=\"PR\")+1)+22","v":"2018-11-18"},"2018-11-19","2018-11-20","2018-11-21","2018-11-22","2018-11-23","2018-11-24"]
[null,null,{"$f":"IF(WEEKDAY(KalendoriausDiena)=SavaitėsPradžiosReikšmė,CONCATENATE(\"Savaitė \",WEEKNUM(KalendoriausDiena),\"/Diena \",KalendoriausDiena-DATE(YEAR(KalendoriausDiena),1,0)),CONCATENATE(\"Diena \",KalendoriausDiena-DATE(YEAR(KalendoriausDiena),1,0)))","v":"Savaitė 47/Diena 322"},{"$f":"IF(WEEKDAY(KalendoriausDiena)=SavaitėsPradžiosReikšmė,CONCATENATE(\"Savaitė \",WEEKNUM(KalendoriausDiena),\"/Diena \",KalendoriausDiena-DATE(YEAR(KalendoriausDiena),1,0)),CONCATENATE(\"Diena \",KalendoriausDiena-DATE(YEAR(KalendoriausDiena),1,0)))","v":"Diena 323"},{"$f":"IF(WEEKDAY(KalendoriausDiena)=SavaitėsPradžiosReikšmė,CONCATENATE(\"Savaitė \",WEEKNUM(KalendoriausDiena),\"/Diena \",KalendoriausDiena-DATE(YEAR(KalendoriausDiena),1,0)),CONCATENATE(\"Diena \",KalendoriausDiena-DATE(YEAR(KalendoriausDiena),1,0)))","v":"Diena 324"},{"$f":"IF(WEEKDAY(KalendoriausDiena)=SavaitėsPradžiosReikšmė,CONCATENATE(\"Savaitė \",WEEKNUM(KalendoriausDiena),\"/Diena \",KalendoriausDiena-DATE(YEAR(KalendoriausDiena),1,0)),CONCATENATE(\"Diena \",KalendoriausDiena-DATE(YEAR(KalendoriausDiena),1,0)))","v":"Diena 325"},{"$f":"IF(WEEKDAY(KalendoriausDiena)=SavaitėsPradžiosReikšmė,CONCATENATE(\"Savaitė \",WEEKNUM(KalendoriausDiena),\"/Diena \",KalendoriausDiena-DATE(YEAR(KalendoriausDiena),1,0)),CONCATENATE(\"Diena \",KalendoriausDiena-DATE(YEAR(KalendoriausDiena),1,0)))","v":"Diena 326"},{"$f":"IF(WEEKDAY(KalendoriausDiena)=SavaitėsPradžiosReikšmė,CONCATENATE(\"Savaitė \",WEEKNUM(KalendoriausDiena),\"/Diena \",KalendoriausDiena-DATE(YEAR(KalendoriausDiena),1,0)),CONCATENATE(\"Diena \",KalendoriausDiena-DATE(YEAR(KalendoriausDiena),1,0)))","v":"Diena 327"},{"$f":"IF(WEEKDAY(KalendoriausDiena)=SavaitėsPradžiosReikšmė,CONCATENATE(\"Savaitė \",WEEKNUM(KalendoriausDiena),\"/Diena \",KalendoriausDiena-DATE(YEAR(KalendoriausDiena),1,0)),CONCATENATE(\"Diena \",KalendoriausDiena-DATE(YEAR(KalendoriausDiena),1,0)))","v":"Diena 328"}]
[]
[null,null,{"$f":"DienosIrSavaitės+DATE(KalendoriniaiMetai,11,1)-WEEKDAY(DATE(KalendoriniaiMetai,11,1),(SavaitėsPradžia=\"PR\")+1)+29","v":"2018-11-25"},"2018-11-26","2018-11-27","2018-11-28","2018-11-29","2018-11-30","2018-12-01"]
[null,null,{"$f":"IF(WEEKDAY(KalendoriausDiena)=SavaitėsPradžiosReikšmė,CONCATENATE(\"Savaitė \",WEEKNUM(KalendoriausDiena),\"/Diena \",KalendoriausDiena-DATE(YEAR(KalendoriausDiena),1,0)),CONCATENATE(\"Diena \",KalendoriausDiena-DATE(YEAR(KalendoriausDiena),1,0)))","v":"Savaitė 48/Diena 329"},{"$f":"IF(WEEKDAY(KalendoriausDiena)=SavaitėsPradžiosReikšmė,CONCATENATE(\"Savaitė \",WEEKNUM(KalendoriausDiena),\"/Diena \",KalendoriausDiena-DATE(YEAR(KalendoriausDiena),1,0)),CONCATENATE(\"Diena \",KalendoriausDiena-DATE(YEAR(KalendoriausDiena),1,0)))","v":"Diena 330"},{"$f":"IF(WEEKDAY(KalendoriausDiena)=SavaitėsPradžiosReikšmė,CONCATENATE(\"Savaitė \",WEEKNUM(KalendoriausDiena),\"/Diena \",KalendoriausDiena-DATE(YEAR(KalendoriausDiena),1,0)),CONCATENATE(\"Diena \",KalendoriausDiena-DATE(YEAR(KalendoriausDiena),1,0)))","v":"Diena 331"},{"$f":"IF(WEEKDAY(KalendoriausDiena)=SavaitėsPradžiosReikšmė,CONCATENATE(\"Savaitė \",WEEKNUM(KalendoriausDiena),\"/Diena \",KalendoriausDiena-DATE(YEAR(KalendoriausDiena),1,0)),CONCATENATE(\"Diena \",KalendoriausDiena-DATE(YEAR(KalendoriausDiena),1,0)))","v":"Diena 332"},{"$f":"IF(WEEKDAY(KalendoriausDiena)=SavaitėsPradžiosReikšmė,CONCATENATE(\"Savaitė \",WEEKNUM(KalendoriausDiena),\"/Diena \",KalendoriausDiena-DATE(YEAR(KalendoriausDiena),1,0)),CONCATENATE(\"Diena \",KalendoriausDiena-DATE(YEAR(KalendoriausDiena),1,0)))","v":"Diena 333"},{"$f":"IF(WEEKDAY(KalendoriausDiena)=SavaitėsPradžiosReikšmė,CONCATENATE(\"Savaitė \",WEEKNUM(KalendoriausDiena),\"/Diena \",KalendoriausDiena-DATE(YEAR(KalendoriausDiena),1,0)),CONCATENATE(\"Diena \",KalendoriausDiena-DATE(YEAR(KalendoriausDiena),1,0)))","v":"Diena 334"},{"$f":"IF(WEEKDAY(KalendoriausDiena)=SavaitėsPradžiosReikšmė,CONCATENATE(\"Savaitė \",WEEKNUM(KalendoriausDiena),\"/Diena \",KalendoriausDiena-DATE(YEAR(KalendoriausDiena),1,0)),CONCATENATE(\"Diena \",KalendoriausDiena-DATE(YEAR(KalendoriausDiena),1,0)))","v":"Diena 335"}]
[{"$nulls":4},"PASTABOS"]
[]
[null,null,{"$f":"DienosIrSavaitės+DATE(KalendoriniaiMetai,11,1)-WEEKDAY(DATE(KalendoriniaiMetai,11,1),(SavaitėsPradžia=\"PR\")+1)+36","v":"2018-12-02"},"2018-12-03"]
[null,null,{"$f":"IF(WEEKDAY(KalendoriausDiena)=SavaitėsPradžiosReikšmė,CONCATENATE(\"Savaitė \",WEEKNUM(KalendoriausDiena),\"/Diena \",KalendoriausDiena-DATE(YEAR(KalendoriausDiena),1,0)),CONCATENATE(\"Diena \",KalendoriausDiena-DATE(YEAR(KalendoriausDiena),1,0)))","v":"Savaitė 49/Diena 336"},{"$f":"IF(WEEKDAY(KalendoriausDiena)=SavaitėsPradžiosReikšmė,CONCATENATE(\"Savaitė \",WEEKNUM(KalendoriausDiena),\"/Diena \",KalendoriausDiena-DATE(YEAR(KalendoriausDiena),1,0)),CONCATENATE(\"Diena \",KalendoriausDiena-DATE(YEAR(KalendoriausDiena),1,0)))","v":"Diena 337"}]

{"sheet":"GRD","index":11,"n_rows":20,"n_cols":9,"rows_kept":20,"merged":[[16,2,17,2],[17,4,19,8]]}
[null,"GRD",{"$f":"UPPER(TEXT(SavaitėsPradžia,\"ddd\"))","v":"SK"},{"$f":"UPPER(TEXT(D3,\"aaa\"))","v":"PR"},"AN","TR","KT","PN","ŠT"]
[null,{"$f":"KalendoriniaiMetai","v":2018}]
[null,null,{"$f":"DienosIrSavaitės+DATE(KalendoriniaiMetai,12,1)-WEEKDAY(DATE(KalendoriniaiMetai,12,1),(SavaitėsPradžia=\"PR\")+1)+1","v":"2018-11-25"},"2018-11-26","2018-11-27","2018-11-28","2018-11-29","2018-11-30","2018-12-01"]
[null,null,{"$f":"IF(DAY(KalendoriausDiena)=1,CONCATENATE(\"Savaitė \",WEEKNUM(KalendoriausDiena),\"/Diena \",KalendoriausDiena-DATE(YEAR(KalendoriausDiena),1,0)),CONCATENATE(\"Diena \",KalendoriausDiena-DATE(YEAR(KalendoriausDiena),1,0)))","v":"Diena 329"},{"$f":"IF(DAY(KalendoriausDiena)=1,CONCATENATE(\"Savaitė \",WEEKNUM(KalendoriausDiena),\"/Diena \",KalendoriausDiena-DATE(YEAR(KalendoriausDiena),1,0)),CONCATENATE(\"Diena \",KalendoriausDiena-DATE(YEAR(KalendoriausDiena),1,0)))","v":"Diena 330"},{"$f":"IF(DAY(KalendoriausDiena)=1,CONCATENATE(\"Savaitė \",WEEKNUM(KalendoriausDiena),\"/Diena \",KalendoriausDiena-DATE(YEAR(KalendoriausDiena),1,0)),CONCATENATE(\"Diena \",KalendoriausDiena-DATE(YEAR(KalendoriausDiena),1,0)))","v":"Diena 331"},{"$f":"IF(DAY(KalendoriausDiena)=1,CONCATENATE(\"Savaitė \",WEEKNUM(KalendoriausDiena),\"/Diena \",KalendoriausDiena-DATE(YEAR(KalendoriausDiena),1,0)),CONCATENATE(\"Diena \",KalendoriausDiena-DATE(YEAR(KalendoriausDiena),1,0)))","v":"Diena 332"},{"$f":"IF(DAY(KalendoriausDiena)=1,CONCATENATE(\"Savaitė \",WEEKNUM(KalendoriausDiena),\"/Diena \",KalendoriausDiena-DATE(YEAR(KalendoriausDiena),1,0)),CONCATENATE(\"Diena \",KalendoriausDiena-DATE(YEAR(KalendoriausDiena),1,0)))","v":"Diena 333"},{"$f":"IF(DAY(KalendoriausDiena)=1,CONCATENATE(\"Savaitė \",WEEKNUM(KalendoriausDiena),\"/Diena \",KalendoriausDiena-DATE(YEAR(KalendoriausDiena),1,0)),CONCATENATE(\"Diena \",KalendoriausDiena-DATE(YEAR(KalendoriausDiena),1,0)))","v":"Diena 334"},{"$f":"IF(DAY(KalendoriausDiena)=1,CONCATENATE(\"Savaitė \",WEEKNUM(KalendoriausDiena),\"/Diena \",KalendoriausDiena-DATE(YEAR(KalendoriausDiena),1,0)),CONCATENATE(\"Diena \",KalendoriausDiena-DATE(YEAR(KalendoriausDiena),1,0)))","v":"Savaitė 48/Diena 335"}]
[]
[null,null,{"$f":"DienosIrSavaitės+DATE(KalendoriniaiMetai,12,1)-WEEKDAY(DATE(KalendoriniaiMetai,12,1),(SavaitėsPradžia=\"PR\")+1)+8","v":"2018-12-02"},"2018-12-03","2018-12-04","2018-12-05","2018-12-06","2018-12-07","2018-12-08"]
[null,null,{"$f":"IF(WEEKDAY(KalendoriausDiena)=SavaitėsPradžiosReikšmė,CONCATENATE(\"Savaitė \",WEEKNUM(KalendoriausDiena),\"/Diena \",KalendoriausDiena-DATE(YEAR(KalendoriausDiena),1,0)),CONCATENATE(\"Diena \",KalendoriausDiena-DATE(YEAR(KalendoriausDiena),1,0)))","v":"Savaitė 49/Diena 336"},{"$f":"IF(WEEKDAY(KalendoriausDiena)=SavaitėsPradžiosReikšmė,CONCATENATE(\"Savaitė \",WEEKNUM(KalendoriausDiena),\"/Diena \",KalendoriausDiena-DATE(YEAR(KalendoriausDiena),1,0)),CONCATENATE(\"Diena \",KalendoriausDiena-DATE(YEAR(KalendoriausDiena),1,0)))","v":"Diena 337"},{"$f":"IF(WEEKDAY(KalendoriausDiena)=SavaitėsPradžiosReikšmė,CONCATENATE(\"Savaitė \",WEEKNUM(KalendoriausDiena),\"/Diena \",KalendoriausDiena-DATE(YEAR(KalendoriausDiena),1,0)),CONCATENATE(\"Diena \",KalendoriausDiena-DATE(YEAR(KalendoriausDiena),1,0)))","v":"Diena 338"},{"$f":"IF(WEEKDAY(KalendoriausDiena)=SavaitėsPradžiosReikšmė,CONCATENATE(\"Savaitė \",WEEKNUM(KalendoriausDiena),\"/Diena \",KalendoriausDiena-DATE(YEAR(KalendoriausDiena),1,0)),CONCATENATE(\"Diena \",KalendoriausDiena-DATE(YEAR(KalendoriausDiena),1,0)))","v":"Diena 339"},{"$f":"IF(WEEKDAY(KalendoriausDiena)=SavaitėsPradžiosReikšmė,CONCATENATE(\"Savaitė \",WEEKNUM(KalendoriausDiena),\"/Diena \",KalendoriausDiena-DATE(YEAR(KalendoriausDiena),1,0)),CONCATENATE(\"Diena \",KalendoriausDiena-DATE(YEAR(KalendoriausDiena),1,0)))","v":"Diena 340"},{"$f":"IF(WEEKDAY(KalendoriausDiena)=SavaitėsPradžiosReikšmė,CONCATENATE(\"Savaitė \",WEEKNUM(KalendoriausDiena),\"/Diena \",KalendoriausDiena-DATE(YEAR(KalendoriausDiena),1,0)),CONCATENATE(\"Diena \",KalendoriausDiena-DATE(YEAR(KalendoriausDiena),1,0)))","v":"Diena 341"},{"$f":"IF(WEEKDAY(KalendoriausDiena)=SavaitėsPradžiosReikšmė,CONCATENATE(\"Savaitė \",WEEKNUM(KalendoriausDiena),\"/Diena \",KalendoriausDiena-DATE(YEAR(KalendoriausDiena),1,0)),CONCATENATE(\"Diena \",KalendoriausDiena-DATE(YEAR(KalendoriausDiena),1,0)))","v":"Diena 342"}]
[]
[null,null,{"$f":"DienosIrSavaitės+DATE(KalendoriniaiMetai,12,1)-WEEKDAY(DATE(KalendoriniaiMetai,12,1),(SavaitėsPradžia=\"PR\")+1)+15","v":"2018-12-09"},"2018-12-10","2018-12-11","2018-12-12","2018-12-13","2018-12-14","2018-12-15"]
[null,null,{"$f":"IF(WEEKDAY(KalendoriausDiena)=SavaitėsPradžiosReikšmė,CONCATENATE(\"Savaitė \",WEEKNUM(KalendoriausDiena),\"/Diena \",KalendoriausDiena-DATE(YEAR(KalendoriausDiena),1,0)),CONCATENATE(\"Diena \",KalendoriausDiena-DATE(YEAR(KalendoriausDiena),1,0)))","v":"Savaitė 50/Diena 343"},{"$f":"IF(WEEKDAY(KalendoriausDiena)=SavaitėsPradžiosReikšmė,CONCATENATE(\"Savaitė \",WEEKNUM(KalendoriausDiena),\"/Diena \",KalendoriausDiena-DATE(YEAR(KalendoriausDiena),1,0)),CONCATENATE(\"Diena \",KalendoriausDiena-DATE(YEAR(KalendoriausDiena),1,0)))","v":"Diena 344"},{"$f":"IF(WEEKDAY(KalendoriausDiena)=SavaitėsPradžiosReikšmė,CONCATENATE(\"Savaitė \",WEEKNUM(KalendoriausDiena),\"/Diena \",KalendoriausDiena-DATE(YEAR(KalendoriausDiena),1,0)),CONCATENATE(\"Diena \",KalendoriausDiena-DATE(YEAR(KalendoriausDiena),1,0)))","v":"Diena 345"},{"$f":"IF(WEEKDAY(KalendoriausDiena)=SavaitėsPradžiosReikšmė,CONCATENATE(\"Savaitė \",WEEKNUM(KalendoriausDiena),\"/Diena \",KalendoriausDiena-DATE(YEAR(KalendoriausDiena),1,0)),CONCATENATE(\"Diena \",KalendoriausDiena-DATE(YEAR(KalendoriausDiena),1,0)))","v":"Diena 346"},{"$f":"IF(WEEKDAY(KalendoriausDiena)=SavaitėsPradžiosReikšmė,CONCATENATE(\"Savaitė \",WEEKNUM(KalendoriausDiena),\"/Diena \",KalendoriausDiena-DATE(YEAR(KalendoriausDiena),1,0)),CONCATENATE(\"Diena \",KalendoriausDiena-DATE(YEAR(KalendoriausDiena),1,0)))","v":"Diena 347"},{"$f":"IF(WEEKDAY(KalendoriausDiena)=SavaitėsPradžiosReikšmė,CONCATENATE(\"Savaitė \",WEEKNUM(KalendoriausDiena),\"/Diena \",KalendoriausDiena-DATE(YEAR(KalendoriausDiena),1,0)),CONCATENATE(\"Diena \",KalendoriausDiena-DATE(YEAR(KalendoriausDiena),1,0)))","v":"Diena 348"},{"$f":"IF(WEEKDAY(KalendoriausDiena)=SavaitėsPradžiosReikšmė,CONCATENATE(\"Savaitė \",WEEKNUM(KalendoriausDiena),\"/Diena \",KalendoriausDiena-DATE(YEAR(KalendoriausDiena),1,0)),CONCATENATE(\"Diena \",KalendoriausDiena-DATE(YEAR(KalendoriausDiena),1,0)))","v":"Diena 349"}]
[]
[null,null,{"$f":"DienosIrSavaitės+DATE(KalendoriniaiMetai,12,1)-WEEKDAY(DATE(KalendoriniaiMetai,12,1),(SavaitėsPradžia=\"PR\")+1)+22","v":"2018-12-16"},"2018-12-17","2018-12-18","2018-12-19","2018-12-20","2018-12-21","2018-12-22"]
[null,null,{"$f":"IF(WEEKDAY(KalendoriausDiena)=SavaitėsPradžiosReikšmė,CONCATENATE(\"Savaitė \",WEEKNUM(KalendoriausDiena),\"/Diena \",KalendoriausDiena-DATE(YEAR(KalendoriausDiena),1,0)),CONCATENATE(\"Diena \",KalendoriausDiena-DATE(YEAR(KalendoriausDiena),1,0)))","v":"Savaitė 51/Diena 350"},{"$f":"IF(WEEKDAY(KalendoriausDiena)=SavaitėsPradžiosReikšmė,CONCATENATE(\"Savaitė \",WEEKNUM(KalendoriausDiena),\"/Diena \",KalendoriausDiena-DATE(YEAR(KalendoriausDiena),1,0)),CONCATENATE(\"Diena \",KalendoriausDiena-DATE(YEAR(KalendoriausDiena),1,0)))","v":"Diena 351"},{"$f":"IF(WEEKDAY(KalendoriausDiena)=SavaitėsPradžiosReikšmė,CONCATENATE(\"Savaitė \",WEEKNUM(KalendoriausDiena),\"/Diena \",KalendoriausDiena-DATE(YEAR(KalendoriausDiena),1,0)),CONCATENATE(\"Diena \",KalendoriausDiena-DATE(YEAR(KalendoriausDiena),1,0)))","v":"Diena 352"},{"$f":"IF(WEEKDAY(KalendoriausDiena)=SavaitėsPradžiosReikšmė,CONCATENATE(\"Savaitė \",WEEKNUM(KalendoriausDiena),\"/Diena \",KalendoriausDiena-DATE(YEAR(KalendoriausDiena),1,0)),CONCATENATE(\"Diena \",KalendoriausDiena-DATE(YEAR(KalendoriausDiena),1,0)))","v":"Diena 353"},{"$f":"IF(WEEKDAY(KalendoriausDiena)=SavaitėsPradžiosReikšmė,CONCATENATE(\"Savaitė \",WEEKNUM(KalendoriausDiena),\"/Diena \",KalendoriausDiena-DATE(YEAR(KalendoriausDiena),1,0)),CONCATENATE(\"Diena \",KalendoriausDiena-DATE(YEAR(KalendoriausDiena),1,0)))","v":"Diena 354"},{"$f":"IF(WEEKDAY(KalendoriausDiena)=SavaitėsPradžiosReikšmė,CONCATENATE(\"Savaitė \",WEEKNUM(KalendoriausDiena),\"/Diena \",KalendoriausDiena-DATE(YEAR(KalendoriausDiena),1,0)),CONCATENATE(\"Diena \",KalendoriausDiena-DATE(YEAR(KalendoriausDiena),1,0)))","v":"Diena 355"},{"$f":"IF(WEEKDAY(KalendoriausDiena)=SavaitėsPradžiosReikšmė,CONCATENATE(\"Savaitė \",WEEKNUM(KalendoriausDiena),\"/Diena \",KalendoriausDiena-DATE(YEAR(KalendoriausDiena),1,0)),CONCATENATE(\"Diena \",KalendoriausDiena-DATE(YEAR(KalendoriausDiena),1,0)))","v":"Diena 356"}]
[]
[null,null,{"$f":"DienosIrSavaitės+DATE(KalendoriniaiMetai,12,1)-WEEKDAY(DATE(KalendoriniaiMetai,12,1),(SavaitėsPradžia=\"PR\")+1)+29","v":"2018-12-23"},"2018-12-24","2018-12-25","2018-12-26","2018-12-27","2018-12-28","2018-12-29"]
[null,null,{"$f":"IF(WEEKDAY(KalendoriausDiena)=SavaitėsPradžiosReikšmė,CONCATENATE(\"Savaitė \",WEEKNUM(KalendoriausDiena),\"/Diena \",KalendoriausDiena-DATE(YEAR(KalendoriausDiena),1,0)),CONCATENATE(\"Diena \",KalendoriausDiena-DATE(YEAR(KalendoriausDiena),1,0)))","v":"Savaitė 52/Diena 357"},{"$f":"IF(WEEKDAY(KalendoriausDiena)=SavaitėsPradžiosReikšmė,CONCATENATE(\"Savaitė \",WEEKNUM(KalendoriausDiena),\"/Diena \",KalendoriausDiena-DATE(YEAR(KalendoriausDiena),1,0)),CONCATENATE(\"Diena \",KalendoriausDiena-DATE(YEAR(KalendoriausDiena),1,0)))","v":"Diena 358"},{"$f":"IF(WEEKDAY(KalendoriausDiena)=SavaitėsPradžiosReikšmė,CONCATENATE(\"Savaitė \",WEEKNUM(KalendoriausDiena),\"/Diena \",KalendoriausDiena-DATE(YEAR(KalendoriausDiena),1,0)),CONCATENATE(\"Diena \",KalendoriausDiena-DATE(YEAR(KalendoriausDiena),1,0)))","v":"Diena 359"},{"$f":"IF(WEEKDAY(KalendoriausDiena)=SavaitėsPradžiosReikšmė,CONCATENATE(\"Savaitė \",WEEKNUM(KalendoriausDiena),\"/Diena \",KalendoriausDiena-DATE(YEAR(KalendoriausDiena),1,0)),CONCATENATE(\"Diena \",KalendoriausDiena-DATE(YEAR(KalendoriausDiena),1,0)))","v":"Diena 360"},{"$f":"IF(WEEKDAY(KalendoriausDiena)=SavaitėsPradžiosReikšmė,CONCATENATE(\"Savaitė \",WEEKNUM(KalendoriausDiena),\"/Diena \",KalendoriausDiena-DATE(YEAR(KalendoriausDiena),1,0)),CONCATENATE(\"Diena \",KalendoriausDiena-DATE(YEAR(KalendoriausDiena),1,0)))","v":"Diena 361"},{"$f":"IF(WEEKDAY(KalendoriausDiena)=SavaitėsPradžiosReikšmė,CONCATENATE(\"Savaitė \",WEEKNUM(KalendoriausDiena),\"/Diena \",KalendoriausDiena-DATE(YEAR(KalendoriausDiena),1,0)),CONCATENATE(\"Diena \",KalendoriausDiena-DATE(YEAR(KalendoriausDiena),1,0)))","v":"Diena 362"},{"$f":"IF(WEEKDAY(KalendoriausDiena)=SavaitėsPradžiosReikšmė,CONCATENATE(\"Savaitė \",WEEKNUM(KalendoriausDiena),\"/Diena \",KalendoriausDiena-DATE(YEAR(KalendoriausDiena),1,0)),CONCATENATE(\"Diena \",KalendoriausDiena-DATE(YEAR(KalendoriausDiena),1,0)))","v":"Diena 363"}]
[{"$nulls":4},"PASTABOS"]
[]
[null,null,{"$f":"DienosIrSavaitės+DATE(KalendoriniaiMetai,12,1)-WEEKDAY(DATE(KalendoriniaiMetai,12,1),(SavaitėsPradžia=\"PR\")+1)+36","v":"2018-12-30"},"2018-12-31"]
[null,null,{"$f":"IF(WEEKDAY(KalendoriausDiena)=SavaitėsPradžiosReikšmė,CONCATENATE(\"Savaitė \",WEEKNUM(KalendoriausDiena),\"/Diena \",KalendoriausDiena-DATE(YEAR(KalendoriausDiena),1,0)),CONCATENATE(\"Diena \",KalendoriausDiena-DATE(YEAR(KalendoriausDiena),1,0)))","v":"Savaitė 53/Diena 364"},{"$f":"IF(WEEKDAY(KalendoriausDiena)=SavaitėsPradžiosReikšmė,CONCATENATE(\"Savaitė \",WEEKNUM(KalendoriausDiena),\"/Diena \",KalendoriausDiena-DATE(YEAR(KalendoriausDiena),1,0)),CONCATENATE(\"Diena \",KalendoriausDiena-DATE(YEAR(KalendoriausDiena),1,0)))","v":"Diena 365"}]